Transaction Date,Local Authority Department,Beneficiary,Purpose of Expenditure,Amount (excluding VAT),Non Recoverable VAT,Merchant Category,,
 27-10-2021,Adults,Lodge Group Care UK Ltd,Home Care - Private Contractors Payment,500.00,0.00,COMMERCIAL SUPPLIER ,,
 27-10-2021,Adults,Lodge Group Care UK Ltd,Home Care - Private Contractors Payment,500.31,0.00,COMMERCIAL SUPPLIER ,,
 18-10-2021,Adults,Home Support Services (Havering & Essex) Ltd,Home Care - Private Contractors Payment,500.43,0.00,COMMERCIAL SUPPLIER ,,
 15-10-2021,Adults,John Stanleys Care Agency Ltd,Home Care - Private Contractors Payment,500.54,0.00,COMMERCIAL SUPPLIER ,,
 22-10-2021,Adults,Marmora Ltd,Residential Placements - Private Contractors Payment,500.57,0.00,COMMERCIAL SUPPLIER ,,
 04-10-2021,Adults,Lodge Group Care UK Ltd,Home Care - Private Contractors Payment,500.62,0.00,COMMERCIAL SUPPLIER ,,
 27-10-2021,Adults,Lodge Group Care UK Ltd,Home Care - Private Contractors Payment,500.62,0.00,COMMERCIAL SUPPLIER ,,
 10-10-2021,Adults,Hospiva Care & Associates Agency Ltd_a,Home Care - Private Contractors Payment,500.93,0.00,COMMERCIAL SUPPLIER ,,
 14-10-2021,Adults,Prestige Care & Support Ltd,Home Care - Private Contractors Payment,500.93,0.00,COMMERCIAL SUPPLIER ,,
 01-10-2021,Adults,Home Sweet Home Care Ltd,Home Care - Private Contractors Payment,501.55,0.00,COMMERCIAL SUPPLIER ,,
 04-10-2021,Adults,Lodge Group Care UK Ltd,Home Care - Private Contractors Payment,501.55,0.00,COMMERCIAL SUPPLIER ,,
 11-10-2021,Adults,Outreach Support Services Ltd,Home Care - Private Contractors Payment,501.55,0.00,COMMERCIAL SUPPLIER ,,
 01-10-2021,Adults,Home Sweet Home Care Ltd,Home Care - Private Contractors Payment,501.66,0.00,COMMERCIAL SUPPLIER ,,
 15-10-2021,Adults,Anytime Care 2020_a,Home Care - Private Contractors Payment,502.17,0.00,COMMERCIAL SUPPLIER ,,
 04-10-2021,Adults,Lodge Group Care UK Ltd,Home Care - Private Contractors Payment,502.28,0.00,COMMERCIAL SUPPLIER ,,
 27-10-2021,Adults,Lodge Group Care UK Ltd,Home Care - Private Contractors Payment,502.59,0.00,COMMERCIAL SUPPLIER ,,
 04-10-2021,Adults,Lodge Group Care UK Ltd,Home Care - Private Contractors Payment,503.53,0.00,COMMERCIAL SUPPLIER ,,
 27-10-2021,Adults,Lodge Group Care UK Ltd,Home Care - Private Contractors Payment,503.72,0.00,COMMERCIAL SUPPLIER ,,
 14-10-2021,Adults,John Stanleys Care Agency Ltd,Home Care - Private Contractors Payment,504.03,0.00,COMMERCIAL SUPPLIER ,,
 22-10-2021,Adults,Home Sweet Home Care Ltd,Home Care - Private Contractors Payment,504.34,0.00,COMMERCIAL SUPPLIER ,,
 18-10-2021,Adults,Home Support Services (Havering & Essex) Ltd,Home Care - Private Contractors Payment,504.96,0.00,COMMERCIAL SUPPLIER ,,
 26-10-2021,Adults,Homestead Care Service,Home Care - Private Contractors Payment,505.36,0.00,COMMERCIAL SUPPLIER ,,
 04-10-2021,Adults,Lodge Group Care UK Ltd,Home Care - Private Contractors Payment,506.20,0.00,COMMERCIAL SUPPLIER ,,
 27-10-2021,Adults,Lodge Group Care UK Ltd,Home Care - Private Contractors Payment,506.82,0.00,COMMERCIAL SUPPLIER ,,
 27-10-2021,Adults,Lodge Group Care UK Ltd,Home Care - Private Contractors Payment,507.12,0.00,COMMERCIAL SUPPLIER ,,
 14-10-2021,Adults,Prestige Care & Support Ltd,Home Care - Private Contractors Payment,507.74,0.00,COMMERCIAL SUPPLIER ,,
 18-10-2021,Adults,Home Support Services (Havering & Essex) Ltd,Home Care - Private Contractors Payment,507.74,0.00,COMMERCIAL SUPPLIER ,,
 26-10-2021,Adults,Homestead Care Service,Home Care - Private Contractors Payment,507.74,0.00,COMMERCIAL SUPPLIER ,,
 18-10-2021,Adults,Home Support Services (Havering & Essex) Ltd,Home Care - Private Contractors Payment,508.05,0.00,COMMERCIAL SUPPLIER ,,
 05-10-2021,Adults,Prior Care Ltd_a,Home Care - Private Contractors Payment,508.48,0.00,COMMERCIAL SUPPLIER ,,
 27-10-2021,Adults,Morepower Ltd t/a Aqs Homecare,Home Care - Private Contractors Payment,508.67,0.00,COMMERCIAL SUPPLIER ,,
 26-10-2021,Adults,Homestead Care Service,Home Care - Private Contractors Payment,508.77,0.00,COMMERCIAL SUPPLIER ,,
 14-10-2021,Adults,Prestige Care & Support Ltd,Home Care - Private Contractors Payment,509.40,0.00,COMMERCIAL SUPPLIER ,,
 01-10-2021,Adults,Home Sweet Home Care Ltd,Home Care - Private Contractors Payment,510.22,0.00,COMMERCIAL SUPPLIER ,,
 26-10-2021,Adults,Homestead Care Service,Home Care - Private Contractors Payment,510.22,0.00,COMMERCIAL SUPPLIER ,,
 26-10-2021,Adults,Homestead Care Service,Home Care - Private Contractors Payment,510.53,0.00,COMMERCIAL SUPPLIER ,,
 26-10-2021,Adults,Homestead Care Service,Home Care - Private Contractors Payment,511.30,0.00,COMMERCIAL SUPPLIER ,,
 04-10-2021,Adults,Cera Care Operations Ltd,Home Care - Private Contractors Payment,511.46,0.00,COMMERCIAL SUPPLIER ,,
 05-10-2021,Adults,Prior Care Ltd_a,Home Care - Private Contractors Payment,511.46,0.00,COMMERCIAL SUPPLIER ,,
 27-10-2021,Adults,Lodge Group Care UK Ltd,Home Care - Private Contractors Payment,512.18,0.00,COMMERCIAL SUPPLIER ,,
 18-10-2021,Adults,Home Support Services (Havering & Essex) Ltd,Home Care - Private Contractors Payment,513.32,0.00,COMMERCIAL SUPPLIER ,,
 04-10-2021,Adults,Lodge Group Care UK Ltd,Home Care - Private Contractors Payment,513.63,0.00,COMMERCIAL SUPPLIER ,,
 27-10-2021,Adults,Morepower Ltd t/a Aqs Homecare,Home Care - Private Contractors Payment,513.63,0.00,COMMERCIAL SUPPLIER ,,
 21-10-2021,Adults,Allied Health Services Ltd,Home Care - Private Contractors Payment,514.25,0.00,COMMERCIAL SUPPLIER ,,
 27-10-2021,Adults,Lodge Group Care UK Ltd,Home Care - Private Contractors Payment,514.35,0.00,COMMERCIAL SUPPLIER ,,
 26-10-2021,Adults,Homestead Care Service,Home Care - Private Contractors Payment,514.86,0.00,COMMERCIAL SUPPLIER ,,
 27-10-2021,Adults,Morepower Ltd t/a Aqs Homecare,Home Care - Private Contractors Payment,515.34,0.00,COMMERCIAL SUPPLIER ,,
 06-10-2021,Adults,Matrix SCM Ltd,Agency Staff,516.60,0.00,COMMERCIAL SUPPLIER ,,
 13-10-2021,Adults,Matrix SCM Ltd,Agency Staff,516.60,0.00,COMMERCIAL SUPPLIER ,,
 20-10-2021,Adults,Matrix SCM Ltd,Agency Staff,516.60,0.00,COMMERCIAL SUPPLIER ,,
 27-10-2021,Adults,Matrix SCM Ltd,Agency Staff,516.60,0.00,COMMERCIAL SUPPLIER ,,
 06-10-2021,Adults,Matrix SCM Ltd,Agency Staff,517.20,0.00,COMMERCIAL SUPPLIER ,,
 13-10-2021,Adults,Matrix SCM Ltd,Agency Staff,517.20,0.00,COMMERCIAL SUPPLIER ,,
 20-10-2021,Adults,Matrix SCM Ltd,Agency Staff,517.20,0.00,COMMERCIAL SUPPLIER ,,
 27-10-2021,Adults,Matrix SCM Ltd,Agency Staff,517.20,0.00,COMMERCIAL SUPPLIER ,,
 22-10-2021,Adults,Affinia Healthcare Ltd_a,Supported Other Accommodation - Private Contractors Payment,517.32,0.00,COMMERCIAL SUPPLIER ,,
 27-10-2021,Adults,Lodge Group Care UK Ltd,Home Care - Private Contractors Payment,517.34,0.00,COMMERCIAL SUPPLIER ,,
 27-10-2021,Adults,Lodge Group Care UK Ltd,Home Care - Private Contractors Payment,517.76,0.00,COMMERCIAL SUPPLIER ,,
 22-10-2021,Adults,Home Sweet Home Care Ltd,Home Care - Private Contractors Payment,518.89,0.00,COMMERCIAL SUPPLIER ,,
 04-10-2021,Adults,Lodge Group Care UK Ltd,Home Care - Private Contractors Payment,519.82,0.00,COMMERCIAL SUPPLIER ,,
 21-10-2021,Adults,Quality Healthcare Solutions Ltd t/a Kare Plus Romford,Home Care - Private Contractors Payment,519.82,0.00,COMMERCIAL SUPPLIER ,,
 26-10-2021,Adults,Homestead Care Service,Home Care - Private Contractors Payment,519.82,0.00,COMMERCIAL SUPPLIER ,,
 04-10-2021,Adults,Quality Healthcare Solutions Ltd t/a Kare Plus Romford,Home Care - Private Contractors Payment,519.93,0.00,COMMERCIAL SUPPLIER ,,
 07-10-2021,Adults,Independent Living Agency (Non Direct Payments),Home Care - Private Contractors Payment,520.00,0.00,COMMERCIAL SUPPLIER ,,
 12-10-2021,Adults,The Camden Society,Daycare - Private Contractors Payment,520.00,0.00,NON COMMERCIAL SUPPLIER ,,
 01-10-2021,Adults,Home Sweet Home Care Ltd,Home Care - Private Contractors Payment,520.13,0.00,COMMERCIAL SUPPLIER ,,
 01-10-2021,Adults,Home Sweet Home Care Ltd,Home Care - Private Contractors Payment,520.13,0.00,COMMERCIAL SUPPLIER ,,
 10-10-2021,Adults,Hospiva Care & Associates Agency Ltd_a,Home Care - Private Contractors Payment,520.13,0.00,COMMERCIAL SUPPLIER ,,
 11-10-2021,Adults,Outreach Support Services Ltd,Home Care - Private Contractors Payment,520.13,0.00,COMMERCIAL SUPPLIER ,,
 22-10-2021,Adults,Home Sweet Home Care Ltd,Home Care - Private Contractors Payment,520.13,0.00,COMMERCIAL SUPPLIER ,,
 22-10-2021,Adults,Paradise Independent Living,Supported Other Accommodation - Private Contractors Payment,520.24,0.00,NON COMMERCIAL SUPPLIER ,,
 05-10-2021,Adults,Prior Care Ltd_a,Home Care - Private Contractors Payment,520.44,0.00,COMMERCIAL SUPPLIER ,,
 27-10-2021,Adults,Lodge Group Care UK Ltd,Home Care - Private Contractors Payment,520.75,0.00,COMMERCIAL SUPPLIER ,,
 21-10-2021,Adults,Allied Health Services Ltd,Home Care - Private Contractors Payment,521.06,0.00,COMMERCIAL SUPPLIER ,,
 20-10-2021,Adults,Cera Care Operations Ltd,Home Care - Private Contractors Payment,521.37,0.00,COMMERCIAL SUPPLIER ,,
 26-10-2021,Adults,Homestead Care Service,Home Care - Private Contractors Payment,522.41,0.00,COMMERCIAL SUPPLIER ,,
 04-10-2021,Adults,Lodge Group Care UK Ltd,Home Care - Private Contractors Payment,523.03,0.00,COMMERCIAL SUPPLIER ,,
 27-10-2021,Adults,Lodge Group Care UK Ltd,Home Care - Private Contractors Payment,523.22,0.00,COMMERCIAL SUPPLIER ,,
 04-10-2021,Adults,Lodge Group Care UK Ltd,Home Care - Private Contractors Payment,523.35,0.00,COMMERCIAL SUPPLIER ,,
 27-10-2021,Adults,Lodge Group Care UK Ltd,Home Care - Private Contractors Payment,523.65,0.00,COMMERCIAL SUPPLIER ,,
 22-10-2021,Adults,Hysopp Care Ltd,Respite Care - Private Contractors Payment,523.86,0.00,COMMERCIAL SUPPLIER ,,
 05-10-2021,Adults,Prior Care Ltd_a,Home Care - Private Contractors Payment,524.15,0.00,COMMERCIAL SUPPLIER ,,
 21-10-2021,Adults,Quality Healthcare Solutions Ltd t/a Kare Plus Romford,Home Care - Private Contractors Payment,524.57,0.00,COMMERCIAL SUPPLIER ,,
 25-10-2021,Adults,Westminster Homecare Ltd_a,Home Care - Private Contractors Payment,525.08,0.00,COMMERCIAL SUPPLIER ,,
 04-10-2021,Adults,Lodge Group Care UK Ltd,Home Care - Private Contractors Payment,525.50,0.00,COMMERCIAL SUPPLIER ,,
 04-10-2021,Adults,Lodge Group Care UK Ltd,Home Care - Private Contractors Payment,525.70,0.00,COMMERCIAL SUPPLIER ,,
 18-10-2021,Adults,Home Support Services (Havering & Essex) Ltd,Home Care - Private Contractors Payment,526.32,0.00,COMMERCIAL SUPPLIER ,,
 15-10-2021,Adults,Anytime Care 2020_a,Home Care - Private Contractors Payment,526.63,0.00,COMMERCIAL SUPPLIER ,,
 27-10-2021,Adults,Morepower Ltd t/a Aqs Homecare,Home Care - Private Contractors Payment,526.63,0.00,COMMERCIAL SUPPLIER ,,
 04-10-2021,Adults,Lodge Group Care UK Ltd,Home Care - Private Contractors Payment,526.94,0.00,COMMERCIAL SUPPLIER ,,
 01-10-2021,Adults,Home Sweet Home Care Ltd,Home Care - Private Contractors Payment,528.49,0.00,COMMERCIAL SUPPLIER ,,
 20-10-2021,Adults,Cera Care Operations Ltd,Home Care - Private Contractors Payment,528.49,0.00,COMMERCIAL SUPPLIER ,,
 26-10-2021,Adults,Homestead Care Service,Home Care - Private Contractors Payment,528.49,0.00,COMMERCIAL SUPPLIER ,,
 04-10-2021,Adults,Quality Healthcare Solutions Ltd t/a Kare Plus Romford,Home Care - Private Contractors Payment,529.11,0.00,COMMERCIAL SUPPLIER ,,
 14-10-2021,Adults,Prestige Care & Support Ltd,Home Care - Private Contractors Payment,529.11,0.00,COMMERCIAL SUPPLIER ,,
 22-10-2021,Adults,Home Sweet Home Care Ltd,Home Care - Private Contractors Payment,530.04,0.00,COMMERCIAL SUPPLIER ,,
 18-10-2021,Adults,Home Support Services (Havering & Essex) Ltd,Home Care - Private Contractors Payment,531.27,0.00,COMMERCIAL SUPPLIER ,,
 18-10-2021,Adults,Home Support Services (Havering & Essex) Ltd,Home Care - Private Contractors Payment,531.69,0.00,COMMERCIAL SUPPLIER ,,
 13-10-2021,Adults,Matrix SCM Ltd,Agency Staff,532.20,0.00,COMMERCIAL SUPPLIER ,,
 15-10-2021,Adults,Anytime Care 2020_a,Home Care - Private Contractors Payment,532.20,0.00,COMMERCIAL SUPPLIER ,,
 20-10-2021,Adults,Matrix SCM Ltd,Agency Staff,532.20,0.00,COMMERCIAL SUPPLIER ,,
 22-10-2021,Adults,Home Sweet Home Care Ltd,Home Care - Private Contractors Payment,532.20,0.00,COMMERCIAL SUPPLIER ,,
 27-10-2021,Adults,Lodge Group Care UK Ltd,Home Care - Private Contractors Payment,532.20,0.00,COMMERCIAL SUPPLIER ,,
 27-10-2021,Adults,Matrix SCM Ltd,Agency Staff,532.20,0.00,COMMERCIAL SUPPLIER ,,
 04-10-2021,Adults,Lodge Group Care UK Ltd,Home Care - Private Contractors Payment,532.51,0.00,COMMERCIAL SUPPLIER ,,
 27-10-2021,Adults,Lodge Group Care UK Ltd,Home Care - Private Contractors Payment,534.68,0.00,COMMERCIAL SUPPLIER ,,
 04-10-2021,Adults,Lodge Group Care UK Ltd,Home Care - Private Contractors Payment,535.30,0.00,COMMERCIAL SUPPLIER ,,
 14-10-2021,Adults,Prestige Care & Support Ltd,Home Care - Private Contractors Payment,535.61,0.00,COMMERCIAL SUPPLIER ,,
 04-10-2021,Adults,Lodge Group Care UK Ltd,Home Care - Private Contractors Payment,535.92,0.00,COMMERCIAL SUPPLIER ,,
 26-10-2021,Adults,Homestead Care Service,Home Care - Private Contractors Payment,536.23,0.00,COMMERCIAL SUPPLIER ,,
 27-10-2021,Adults,Lodge Group Care UK Ltd,Home Care - Private Contractors Payment,536.33,0.00,COMMERCIAL SUPPLIER ,,
 14-10-2021,Adults,Prestige Care & Support Ltd,Home Care - Private Contractors Payment,537.16,0.00,COMMERCIAL SUPPLIER ,,
 18-10-2021,Adults,Home Support Services (Havering & Essex) Ltd,Home Care - Private Contractors Payment,537.16,0.00,COMMERCIAL SUPPLIER ,,
 22-10-2021,Adults,Home Sweet Home Care Ltd,Home Care - Private Contractors Payment,537.58,0.00,COMMERCIAL SUPPLIER ,,
 20-10-2021,Adults,Cera Care Operations Ltd,Home Care - Private Contractors Payment,537.78,0.00,COMMERCIAL SUPPLIER ,,
 27-10-2021,Adults,Matrix SCM Ltd,Agency Staff,538.20,0.00,COMMERCIAL SUPPLIER ,,
 15-10-2021,Adults,Anytime Care 2020_a,Home Care - Private Contractors Payment,538.70,0.00,COMMERCIAL SUPPLIER ,,
 19-10-2021,Adults,Rosemont Care Limited,Home Care - Private Contractors Payment,538.70,0.00,COMMERCIAL SUPPLIER ,,
 04-10-2021,Adults,Lodge Group Care UK Ltd,Home Care - Private Contractors Payment,539.94,0.00,COMMERCIAL SUPPLIER ,,
 26-10-2021,Adults,Homestead Care Service,Home Care - Private Contractors Payment,540.25,0.00,COMMERCIAL SUPPLIER ,,
 04-10-2021,Adults,Lodge Group Care UK Ltd,Home Care - Private Contractors Payment,541.18,0.00,COMMERCIAL SUPPLIER ,,
 22-10-2021,Adults,Home Sweet Home Care Ltd,Home Care - Private Contractors Payment,541.18,0.00,COMMERCIAL SUPPLIER ,,
 27-10-2021,Adults,Lodge Group Care UK Ltd,Home Care - Private Contractors Payment,541.80,0.00,COMMERCIAL SUPPLIER ,,
 27-10-2021,Adults,Lodge Group Care UK Ltd,Home Care - Private Contractors Payment,542.11,0.00,COMMERCIAL SUPPLIER ,,
 26-10-2021,Adults,Homestead Care Service,Home Care - Private Contractors Payment,542.73,0.00,COMMERCIAL SUPPLIER ,,
 26-10-2021,Adults,Homestead Care Service,Home Care - Private Contractors Payment,543.04,0.00,COMMERCIAL SUPPLIER ,,
 27-10-2021,Adults,Lodge Group Care UK Ltd,Home Care - Private Contractors Payment,543.97,0.00,COMMERCIAL SUPPLIER ,,
 04-10-2021,Adults,Lodge Group Care UK Ltd,Home Care - Private Contractors Payment,544.28,0.00,COMMERCIAL SUPPLIER ,,
 27-10-2021,Adults,Lodge Group Care UK Ltd,Home Care - Private Contractors Payment,545.01,0.00,COMMERCIAL SUPPLIER ,,
 14-10-2021,Adults,Prestige Care & Support Ltd,Home Care - Private Contractors Payment,546.44,0.00,COMMERCIAL SUPPLIER ,,
 22-10-2021,Adults,Leonard Cheshire Disability_a.,Residential Placements - Private Contractors Payment,548.16,0.00,COMMERCIAL SUPPLIER ,,
 26-10-2021,Adults,Homestead Care Service,Home Care - Private Contractors Payment,548.61,0.00,COMMERCIAL SUPPLIER ,,
 20-10-2021,Adults,Cera Care Operations Ltd,Home Care - Private Contractors Payment,549.23,0.00,COMMERCIAL SUPPLIER ,,
 15-10-2021,Adults,Anytime Care 2020_a,Home Care - Private Contractors Payment,549.85,0.00,COMMERCIAL SUPPLIER ,,
 26-10-2021,Adults,Homestead Care Service,Home Care - Private Contractors Payment,549.85,0.00,COMMERCIAL SUPPLIER ,,
 05-10-2021,Adults,Prior Care Ltd_a,Home Care - Private Contractors Payment,550.16,0.00,COMMERCIAL SUPPLIER ,,
 22-10-2021,Adults,Home Sweet Home Care Ltd,Home Care - Private Contractors Payment,550.78,0.00,COMMERCIAL SUPPLIER ,,
 05-10-2021,Adults,The Riverside Group,Respite Care - Private Contractors Payment,551.72,0.00, ,,
 18-10-2021,Adults,Home Support Services (Havering & Essex) Ltd,Home Care - Private Contractors Payment,552.64,0.00,COMMERCIAL SUPPLIER ,,
 26-10-2021,Adults,Homestead Care Service,Home Care - Private Contractors Payment,553.05,0.00,COMMERCIAL SUPPLIER ,,
 18-10-2021,Adults,Home Support Services (Havering & Essex) Ltd,Home Care - Private Contractors Payment,553.26,0.00,COMMERCIAL SUPPLIER ,,
 01-10-2021,Adults,Home Sweet Home Care Ltd,Home Care - Private Contractors Payment,554.18,0.00,COMMERCIAL SUPPLIER ,,
 04-10-2021,Adults,Quality Healthcare Solutions Ltd t/a Kare Plus Romford,Home Care - Private Contractors Payment,554.18,0.00,COMMERCIAL SUPPLIER ,,
 14-10-2021,Adults,Prestige Care & Support Ltd,Home Care - Private Contractors Payment,554.18,0.00,COMMERCIAL SUPPLIER ,,
 27-10-2021,Adults,Lodge Group Care UK Ltd,Home Care - Private Contractors Payment,554.18,0.00,COMMERCIAL SUPPLIER ,,
 18-10-2021,Adults,Home Support Services (Havering & Essex) Ltd,Home Care - Private Contractors Payment,554.49,0.00,COMMERCIAL SUPPLIER ,,
 22-10-2021,Adults,Home Sweet Home Care Ltd,Home Care - Private Contractors Payment,555.22,0.00,COMMERCIAL SUPPLIER ,,
 04-10-2021,Adults,Lodge Group Care UK Ltd,Home Care - Private Contractors Payment,555.23,0.00,COMMERCIAL SUPPLIER ,,
 22-10-2021,Adults,Home Sweet Home Care Ltd,Home Care - Private Contractors Payment,555.42,0.00,COMMERCIAL SUPPLIER ,,
 04-10-2021,Adults,Cera Care Operations Ltd,Home Care - Private Contractors Payment,556.04,0.00,COMMERCIAL SUPPLIER ,,
 22-10-2021,Adults,Home Sweet Home Care Ltd,Home Care - Private Contractors Payment,556.04,0.00,COMMERCIAL SUPPLIER ,,
 04-10-2021,Adults,Lodge Group Care UK Ltd,Home Care - Private Contractors Payment,556.35,0.00,COMMERCIAL SUPPLIER ,,
 26-10-2021,Adults,Homestead Care Service,Home Care - Private Contractors Payment,556.35,0.00,COMMERCIAL SUPPLIER ,,
 04-10-2021,Adults,Lodge Group Care UK Ltd,Home Care - Private Contractors Payment,556.47,0.00,COMMERCIAL SUPPLIER ,,
 04-10-2021,Adults,Lodge Group Care UK Ltd,Home Care - Private Contractors Payment,556.66,0.00,COMMERCIAL SUPPLIER ,,
 14-10-2021,Adults,Prestige Care & Support Ltd,Home Care - Private Contractors Payment,556.97,0.00,COMMERCIAL SUPPLIER ,,
 19-10-2021,Adults,Rosemont Care Limited,Home Care - Private Contractors Payment,557.28,0.00,COMMERCIAL SUPPLIER ,,
 19-10-2021,Adults,Rosemont Care Limited,Home Care - Private Contractors Payment,557.28,0.00,COMMERCIAL SUPPLIER ,,
 26-10-2021,Adults,Homestead Care Service,Home Care - Private Contractors Payment,557.39,0.00,COMMERCIAL SUPPLIER ,,
 27-10-2021,Adults,Lodge Group Care UK Ltd,Home Care - Private Contractors Payment,557.59,0.00,COMMERCIAL SUPPLIER ,,
 18-10-2021,Adults,London Care Plc_a,Home Care - Private Contractors Payment,557.70,0.00,COMMERCIAL SUPPLIER ,,
 18-10-2021,Adults,Home Support Services (Havering & Essex) Ltd,Home Care - Private Contractors Payment,558.83,0.00,COMMERCIAL SUPPLIER ,,
 04-10-2021,Adults,Cera Care Operations Ltd,Home Care - Private Contractors Payment,559.76,0.00,COMMERCIAL SUPPLIER ,,
 22-10-2021,Adults,Home Sweet Home Care Ltd,Home Care - Private Contractors Payment,560.07,0.00,COMMERCIAL SUPPLIER ,,
 15-10-2021,Adults,Anytime Care 2020_a,Home Care - Private Contractors Payment,560.38,0.00,COMMERCIAL SUPPLIER ,,
 27-10-2021,Adults,Lodge Group Care UK Ltd,Home Care - Private Contractors Payment,560.69,0.00,COMMERCIAL SUPPLIER ,,
 18-10-2021,Adults,Home Support Services (Havering & Essex) Ltd,Home Care - Private Contractors Payment,561.61,0.00,COMMERCIAL SUPPLIER ,,
 26-10-2021,Adults,Homestead Care Service,Home Care - Private Contractors Payment,561.61,0.00,COMMERCIAL SUPPLIER ,,
 01-10-2021,Adults,The Lodge_a,Residential Placements - Private Contractors Payment,562.29,0.00,COMMERCIAL SUPPLIER ,,
 22-10-2021,Adults,HC-One Oval Ltd - The Hornchurch Nursing Centre,Residential Placements - Private Contractors Payment,562.29,0.00,COMMERCIAL SUPPLIER ,,
 15-10-2021,Adults,Anytime Care 2020_a,Home Care - Private Contractors Payment,562.35,0.00,COMMERCIAL SUPPLIER ,,
 04-10-2021,Adults,Lodge Group Care UK Ltd,Home Care - Private Contractors Payment,562.54,0.00,COMMERCIAL SUPPLIER ,,
 04-10-2021,Adults,Lodge Group Care UK Ltd,Home Care - Private Contractors Payment,563.16,0.00,COMMERCIAL SUPPLIER ,,
 27-10-2021,Adults,Matrix SCM Ltd,Agency Staff,563.78,0.00,COMMERCIAL SUPPLIER ,,
 22-10-2021,Adults,Home Sweet Home Care Ltd,Home Care - Private Contractors Payment,564.09,0.00,COMMERCIAL SUPPLIER ,,
 27-10-2021,Adults,Lodge Group Care UK Ltd,Home Care - Private Contractors Payment,564.09,0.00,COMMERCIAL SUPPLIER ,,
 22-10-2021,Adults,Oaks Residential Home,Residential Care Income,565.00,0.00,COMMERCIAL SUPPLIER ,,
 26-10-2021,Adults,Homestead Care Service,Home Care - Private Contractors Payment,565.33,0.00,COMMERCIAL SUPPLIER ,,
 14-10-2021,Adults,Prestige Care & Support Ltd,Home Care - Private Contractors Payment,565.64,0.00,COMMERCIAL SUPPLIER ,,
 26-10-2021,Adults,Homestead Care Service,Home Care - Private Contractors Payment,565.64,0.00,COMMERCIAL SUPPLIER ,,
 18-10-2021,Adults,Home Support Services (Havering & Essex) Ltd,Home Care - Private Contractors Payment,566.57,0.00,COMMERCIAL SUPPLIER ,,
 04-10-2021,Adults,Lodge Group Care UK Ltd,Home Care - Private Contractors Payment,567.19,0.00,COMMERCIAL SUPPLIER ,,
 04-10-2021,Adults,Lodge Group Care UK Ltd,Home Care - Private Contractors Payment,567.81,0.00,COMMERCIAL SUPPLIER ,,
 04-10-2021,Adults,Lodge Group Care UK Ltd,Home Care - Private Contractors Payment,567.81,0.00,COMMERCIAL SUPPLIER ,,
 04-10-2021,Adults,Lodge Group Care UK Ltd,Home Care - Private Contractors Payment,567.81,0.00,COMMERCIAL SUPPLIER ,,
 18-10-2021,Adults,Home Support Services (Havering & Essex) Ltd,Home Care - Private Contractors Payment,567.81,0.00,COMMERCIAL SUPPLIER ,,
 22-10-2021,Adults,Home Sweet Home Care Ltd,Home Care - Private Contractors Payment,568.43,0.00,COMMERCIAL SUPPLIER ,,
 18-10-2021,Adults,Home Support Services (Havering & Essex) Ltd,Home Care - Private Contractors Payment,569.04,0.00,COMMERCIAL SUPPLIER ,,
 22-10-2021,Adults,Prior Care Ltd_a,Home Care - Private Contractors Payment,570.41,0.00,COMMERCIAL SUPPLIER ,,
 01-10-2021,Adults,Home Sweet Home Care Ltd,Home Care - Private Contractors Payment,570.71,0.00,COMMERCIAL SUPPLIER ,,
 01-10-2021,Adults,Home Sweet Home Care Ltd,Home Care - Private Contractors Payment,570.90,0.00,COMMERCIAL SUPPLIER ,,
 21-10-2021,Adults,Allied Health Services Ltd,Home Care - Private Contractors Payment,571.21,0.00,COMMERCIAL SUPPLIER ,,
 14-10-2021,Adults,John Stanleys Care Agency Ltd,Home Care - Private Contractors Payment,572.45,0.00,COMMERCIAL SUPPLIER ,,
 10-10-2021,Adults,Hospiva Care & Associates Agency Ltd_a,Home Care - Private Contractors Payment,572.76,0.00,COMMERCIAL SUPPLIER ,,
 14-10-2021,Adults,Prestige Care & Support Ltd,Home Care - Private Contractors Payment,573.07,0.00,COMMERCIAL SUPPLIER ,,
 27-10-2021,Adults,Lodge Group Care UK Ltd,Home Care - Private Contractors Payment,573.07,0.00,COMMERCIAL SUPPLIER ,,
 26-10-2021,Adults,Homestead Care Service,Home Care - Private Contractors Payment,574.00,0.00,COMMERCIAL SUPPLIER ,,
 12-10-2021,Adults,Care-Away Ltd T/A Care Support,Home Care - Private Contractors Payment,574.08,0.00,COMMERCIAL SUPPLIER ,,
 12-10-2021,Adults,Care-Away Ltd T/A Care Support,Home Care - Private Contractors Payment,574.08,0.00,COMMERCIAL SUPPLIER ,,
 04-10-2021,Adults,Cera Care Operations Ltd,Home Care - Private Contractors Payment,574.31,0.00,COMMERCIAL SUPPLIER ,,
 18-10-2021,Adults,Home Support Services (Havering & Essex) Ltd,Home Care - Private Contractors Payment,574.62,0.00,COMMERCIAL SUPPLIER ,,
 22-10-2021,Adults,Home Sweet Home Care Ltd,Home Care - Private Contractors Payment,574.93,0.00,COMMERCIAL SUPPLIER ,,
 18-10-2021,Adults,Home Support Services (Havering & Essex) Ltd,Home Care - Private Contractors Payment,575.05,0.00,COMMERCIAL SUPPLIER ,,
 26-10-2021,Adults,Homestead Care Service,Home Care - Private Contractors Payment,575.55,0.00,COMMERCIAL SUPPLIER ,,
 18-10-2021,Adults,Home Support Services (Havering & Essex) Ltd,Home Care - Private Contractors Payment,576.29,0.00,COMMERCIAL SUPPLIER ,,
 14-10-2021,Adults,John Stanleys Care Agency Ltd,Home Care - Private Contractors Payment,576.48,0.00,COMMERCIAL SUPPLIER ,,
 06-10-2021,Adults,Matrix SCM Ltd,Agency Staff,577.09,0.00,COMMERCIAL SUPPLIER ,,
 13-10-2021,Adults,Matrix SCM Ltd,Agency Staff,577.09,0.00,COMMERCIAL SUPPLIER ,,
 20-10-2021,Adults,Matrix SCM Ltd,Agency Staff,577.09,0.00,COMMERCIAL SUPPLIER ,,
 27-10-2021,Adults,Lodge Group Care UK Ltd,Home Care - Private Contractors Payment,577.09,0.00,COMMERCIAL SUPPLIER ,,
 27-10-2021,Adults,Matrix SCM Ltd,Agency Staff,577.09,0.00,COMMERCIAL SUPPLIER ,,
 21-10-2021,Adults,Quality Healthcare Solutions Ltd t/a Kare Plus Romford,Home Care - Private Contractors Payment,577.40,0.00,COMMERCIAL SUPPLIER ,,
 04-10-2021,Adults,Lodge Group Care UK Ltd,Home Care - Private Contractors Payment,578.02,0.00,COMMERCIAL SUPPLIER ,,
 20-10-2021,Adults,Cera Care Operations Ltd,Home Care - Private Contractors Payment,578.02,0.00,COMMERCIAL SUPPLIER ,,
 22-10-2021,Adults,Home Sweet Home Care Ltd,Home Care - Private Contractors Payment,578.33,0.00,COMMERCIAL SUPPLIER ,,
 22-10-2021,Adults,Maison Moti Ltd,Supported Other Accommodation - Private Contractors Payment,578.57,0.00,COMMERCIAL SUPPLIER ,,
 27-10-2021,Adults,Morepower Ltd t/a Aqs Homecare,Home Care - Private Contractors Payment,578.95,0.00,COMMERCIAL SUPPLIER ,,
 27-10-2021,Adults,Lodge Group Care UK Ltd,Home Care - Private Contractors Payment,579.57,0.00,COMMERCIAL SUPPLIER ,,
 18-10-2021,Adults,Home Support Services (Havering & Essex) Ltd,Home Care - Private Contractors Payment,579.88,0.00,COMMERCIAL SUPPLIER ,,
 22-10-2021,Adults,Bettertogether Limited,Supported Other Accommodation - Private Contractors Payment,580.00,0.00,NON COMMERCIAL SUPPLIER ,,
 04-10-2021,Adults,Lodge Group Care UK Ltd,Home Care - Private Contractors Payment,580.31,0.00,COMMERCIAL SUPPLIER ,,
 27-10-2021,Adults,Lodge Group Care UK Ltd,Home Care - Private Contractors Payment,581.74,0.00,COMMERCIAL SUPPLIER ,,
 26-10-2021,Adults,Homestead Care Service,Home Care - Private Contractors Payment,582.05,0.00,COMMERCIAL SUPPLIER ,,
 12-10-2021,Adults,Care-Away Ltd T/A Care Support,Home Care - Private Contractors Payment,582.40,0.00,COMMERCIAL SUPPLIER ,,
 12-10-2021,Adults,Care-Away Ltd T/A Care Support,Home Care - Private Contractors Payment,582.40,0.00,COMMERCIAL SUPPLIER ,,
 13-10-2021,Adults,Care-Away Ltd T/A Care Support,Home Care - Private Contractors Payment,582.40,0.00,COMMERCIAL SUPPLIER ,,
 27-10-2021,Adults,Lodge Group Care UK Ltd,Home Care - Private Contractors Payment,583.29,0.00,COMMERCIAL SUPPLIER ,,
 27-10-2021,Adults,Lodge Group Care UK Ltd,Home Care - Private Contractors Payment,583.29,0.00,COMMERCIAL SUPPLIER ,,
 27-10-2021,Adults,Lodge Group Care UK Ltd,Home Care - Private Contractors Payment,583.60,0.00,COMMERCIAL SUPPLIER ,,
 04-10-2021,Adults,Lodge Group Care UK Ltd,Home Care - Private Contractors Payment,583.91,0.00,COMMERCIAL SUPPLIER ,,
 27-10-2021,Adults,Lodge Group Care UK Ltd,Home Care - Private Contractors Payment,583.91,0.00,COMMERCIAL SUPPLIER ,,
 26-10-2021,Adults,Homestead Care Service,Home Care - Private Contractors Payment,584.22,0.00,COMMERCIAL SUPPLIER ,,
 06-10-2021,Adults,Matrix SCM Ltd,Agency Staff,585.36,0.00,COMMERCIAL SUPPLIER ,,
 27-10-2021,Adults,Matrix SCM Ltd,Agency Staff,585.36,0.00,COMMERCIAL SUPPLIER ,,
 13-10-2021,Adults,Matrix SCM Ltd,Agency Staff,585.38,0.00,COMMERCIAL SUPPLIER ,,
 20-10-2021,Adults,Matrix SCM Ltd,Agency Staff,585.38,0.00,COMMERCIAL SUPPLIER ,,
 22-10-2021,Adults,Home Sweet Home Care Ltd,Home Care - Private Contractors Payment,586.38,0.00,COMMERCIAL SUPPLIER ,,
 27-10-2021,Adults,Lodge Group Care UK Ltd,Home Care - Private Contractors Payment,586.38,0.00,COMMERCIAL SUPPLIER ,,
 27-10-2021,Adults,Morepower Ltd t/a Aqs Homecare,Home Care - Private Contractors Payment,586.69,0.00,COMMERCIAL SUPPLIER ,,
 20-10-2021,Adults,Cera Care Operations Ltd,Home Care - Private Contractors Payment,587.00,0.00,COMMERCIAL SUPPLIER ,,
 04-10-2021,Adults,Lodge Group Care UK Ltd,Home Care - Private Contractors Payment,587.31,0.00,COMMERCIAL SUPPLIER ,,
 14-10-2021,Adults,John Stanleys Care Agency Ltd,Home Care - Private Contractors Payment,587.31,0.00,COMMERCIAL SUPPLIER ,,
 18-10-2021,Adults,Home Support Services (Havering & Essex) Ltd,Home Care - Private Contractors Payment,587.31,0.00,COMMERCIAL SUPPLIER ,,
 05-10-2021,Adults,Prior Care Ltd_a,Home Care - Private Contractors Payment,587.93,0.00,COMMERCIAL SUPPLIER ,,
 27-10-2021,Adults,Lodge Group Care UK Ltd,Home Care - Private Contractors Payment,587.93,0.00,COMMERCIAL SUPPLIER ,,
 27-10-2021,Adults,Lodge Group Care UK Ltd,Home Care - Private Contractors Payment,588.06,0.00,COMMERCIAL SUPPLIER ,,
 22-10-2021,Adults,Home Sweet Home Care Ltd,Home Care - Private Contractors Payment,588.24,0.00,COMMERCIAL SUPPLIER ,,
 14-10-2021,Adults,Prestige Care & Support Ltd,Home Care - Private Contractors Payment,588.99,0.00,COMMERCIAL SUPPLIER ,,
 27-10-2021,Adults,Matrix SCM Ltd,Agency Staff,589.05,0.00,COMMERCIAL SUPPLIER ,,
 27-10-2021,Adults,Lodge Group Care UK Ltd,Home Care - Private Contractors Payment,589.48,0.00,COMMERCIAL SUPPLIER ,,
 19-10-2021,Adults,Rosemont Care Limited,Home Care - Private Contractors Payment,589.79,0.00,COMMERCIAL SUPPLIER ,,
 26-10-2021,Adults,Homestead Care Service,Home Care - Private Contractors Payment,589.79,0.00,COMMERCIAL SUPPLIER ,,
 15-10-2021,Adults,Anytime Care 2020_a,Home Care - Private Contractors Payment,589.91,0.00,COMMERCIAL SUPPLIER ,,
 04-10-2021,Adults,Lodge Group Care UK Ltd,Home Care - Private Contractors Payment,590.10,0.00,COMMERCIAL SUPPLIER ,,
 04-10-2021,Adults,Lodge Group Care UK Ltd,Home Care - Private Contractors Payment,590.10,0.00,COMMERCIAL SUPPLIER ,,
 18-10-2021,Adults,Home Support Services (Havering & Essex) Ltd,Home Care - Private Contractors Payment,591.03,0.00,COMMERCIAL SUPPLIER ,,
 22-10-2021,Adults,Prior Care Ltd_a,Home Care - Private Contractors Payment,591.03,0.00,COMMERCIAL SUPPLIER ,,
 22-10-2021,Adults,Prior Care Ltd_a,Home Care - Private Contractors Payment,591.03,0.00,COMMERCIAL SUPPLIER ,,
 05-10-2021,Adults,Prior Care Ltd_a,Home Care - Private Contractors Payment,591.65,0.00,COMMERCIAL SUPPLIER ,,
 04-10-2021,Adults,Lodge Group Care UK Ltd,Home Care - Private Contractors Payment,591.78,0.00,COMMERCIAL SUPPLIER ,,
 21-10-2021,Adults,Allied Health Services Ltd,Home Care - Private Contractors Payment,591.96,0.00,COMMERCIAL SUPPLIER ,,
 22-10-2021,Adults,Home Sweet Home Care Ltd,Home Care - Private Contractors Payment,591.96,0.00,COMMERCIAL SUPPLIER ,,
 27-10-2021,Adults,Lodge Group Care UK Ltd,Home Care - Private Contractors Payment,592.26,0.00,COMMERCIAL SUPPLIER ,,
 26-10-2021,Adults,Homestead Care Service,Home Care - Private Contractors Payment,593.50,0.00,COMMERCIAL SUPPLIER ,,
 01-10-2021,Adults,Home Sweet Home Care Ltd,Home Care - Private Contractors Payment,594.43,0.00,COMMERCIAL SUPPLIER ,,
 22-10-2021,Adults,Prior Care Ltd_a,Home Care - Private Contractors Payment,594.74,0.00,COMMERCIAL SUPPLIER ,,
 27-10-2021,Adults,Lodge Group Care UK Ltd,Home Care - Private Contractors Payment,594.74,0.00,COMMERCIAL SUPPLIER ,,
 04-10-2021,Adults,Lodge Group Care UK Ltd,Home Care - Private Contractors Payment,595.05,0.00,COMMERCIAL SUPPLIER ,,
 04-10-2021,Adults,Lodge Group Care UK Ltd,Home Care - Private Contractors Payment,595.36,0.00,COMMERCIAL SUPPLIER ,,
 14-10-2021,Adults,John Stanleys Care Agency Ltd,Home Care - Private Contractors Payment,595.98,0.00,COMMERCIAL SUPPLIER ,,
 27-10-2021,Adults,Lodge Group Care UK Ltd,Home Care - Private Contractors Payment,597.53,0.00,COMMERCIAL SUPPLIER ,,
 18-10-2021,Adults,Home Support Services (Havering & Essex) Ltd,Home Care - Private Contractors Payment,597.84,0.00,COMMERCIAL SUPPLIER ,,
 04-10-2021,Adults,Lodge Group Care UK Ltd,Home Care - Private Contractors Payment,598.15,0.00,COMMERCIAL SUPPLIER ,,
 04-10-2021,Adults,Cera Care Operations Ltd,Home Care - Private Contractors Payment,598.15,0.00,COMMERCIAL SUPPLIER ,,
 15-10-2021,Adults,Anytime Care 2020_a,Home Care - Private Contractors Payment,598.77,0.00,COMMERCIAL SUPPLIER ,,
 27-10-2021,Adults,Lodge Group Care UK Ltd,Home Care - Private Contractors Payment,598.77,0.00,COMMERCIAL SUPPLIER ,,
 04-10-2021,Adults,Lodge Group Care UK Ltd,Home Care - Private Contractors Payment,599.08,0.00,COMMERCIAL SUPPLIER ,,
 12-10-2021,Adults,KJD Care Limited,Home Care - Private Contractors Payment,599.61,0.00,INDIVIDUALS ,,
 08-10-2021,Adults,Emerson Court_a,Other Short Term Support,600.00,0.00,COMMERCIAL SUPPLIER ,,
 08-10-2021,Adults,Clover Cottage Ltd,Other Short Term Support,600.00,0.00,COMMERCIAL SUPPLIER ,,
 08-10-2021,Adults,Manor Lodge_a,Other Short Term Support,600.00,0.00,COMMERCIAL SUPPLIER ,,
 08-10-2021,Adults,Churchill House_a,Other Short Term Support,600.00,0.00,COMMERCIAL SUPPLIER ,,
 08-10-2021,Adults,Clearwater Care (Hackney) Ltd - Searsons Way,Other Short Term Support,600.00,0.00,COMMERCIAL SUPPLIER ,,
 08-10-2021,Adults,Clearwater Care (Hackney) Ltd - Searsons Way,Other Short Term Support,600.00,0.00,COMMERCIAL SUPPLIER ,,
 08-10-2021,Adults,R G Care Ltd ,Other Short Term Support,600.00,0.00,COMMERCIAL SUPPLIER ,,
 08-10-2021,Adults,R G Care Ltd ,Other Short Term Support,600.00,0.00,COMMERCIAL SUPPLIER ,,
 08-10-2021,Adults,R G Care Ltd ,Other Short Term Support,600.00,0.00,COMMERCIAL SUPPLIER ,,
 08-10-2021,Adults,Rose House_a,Other Short Term Support,600.00,0.00,COMMERCIAL SUPPLIER ,,
 12-10-2021,Adults,Ashchurch House,Other Short Term Support,600.00,0.00,COMMERCIAL SUPPLIER ,,
 12-10-2021,Adults,Ashgate House Ltd_a,Other Short Term Support,600.00,0.00,COMMERCIAL SUPPLIER ,,
 12-10-2021,Adults,Ashking House Ltd,Other Short Term Support,600.00,0.00,COMMERCIAL SUPPLIER ,,
 12-10-2021,Adults,Little Gaynes,Other Short Term Support,600.00,0.00,COMMERCIAL SUPPLIER ,,
 12-10-2021,Adults,Genesis Residential Homes Ltd - Dothan House,Other Short Term Support,600.00,0.00,COMMERCIAL SUPPLIER ,,
 12-10-2021,Adults,Outlook Care - 74 Neave Crescent,Other Short Term Support,600.00,0.00,COMMERCIAL SUPPLIER ,,
 12-10-2021,Adults,Outlook Care - 86 Veronica Close,Other Short Term Support,600.00,0.00,COMMERCIAL SUPPLIER ,,
 12-10-2021,Adults,Outlook Care - 1A Hulse Avenue,Other Short Term Support,600.00,0.00,COMMERCIAL SUPPLIER ,,
 12-10-2021,Adults,North London Care (Havering) Ltd_a,Other Short Term Support,600.00,0.00,COMMERCIAL SUPPLIER ,,
 12-10-2021,Adults,Arran Manor,Other Short Term Support,600.00,0.00,COMMERCIAL SUPPLIER ,,
 12-10-2021,Adults,Ashling House_a,Other Short Term Support,600.00,0.00,COMMERCIAL SUPPLIER ,,
 22-10-2021,Adults,Home Sweet Home Care Ltd,Home Care - Private Contractors Payment,600.00,0.00,COMMERCIAL SUPPLIER ,,
 26-10-2021,Adults,All Therapy Solutions Ltd,Occupational Health,600.00,0.00,COMMERCIAL SUPPLIER ,,
 20-10-2021,Adults,Matrix SCM Ltd,Agency Staff,602.32,0.00,COMMERCIAL SUPPLIER ,,
 04-10-2021,Adults,Lodge Group Care UK Ltd,Home Care - Private Contractors Payment,602.48,0.00,COMMERCIAL SUPPLIER ,,
 11-10-2021,Adults,London Homecare Ltd,Home Care - Private Contractors Payment,603.72,0.00,COMMERCIAL SUPPLIER ,,
 27-10-2021,Adults,Lodge Group Care UK Ltd,Home Care - Private Contractors Payment,604.34,0.00,COMMERCIAL SUPPLIER ,,
 27-10-2021,Adults,Lodge Group Care UK Ltd,Home Care - Private Contractors Payment,604.65,0.00,COMMERCIAL SUPPLIER ,,
 04-10-2021,Adults,Lodge Group Care UK Ltd,Home Care - Private Contractors Payment,605.27,0.00,COMMERCIAL SUPPLIER ,,
 27-10-2021,Adults,Lodge Group Care UK Ltd,Home Care - Private Contractors Payment,605.39,0.00,COMMERCIAL SUPPLIER ,,
 27-10-2021,Adults,Matrix SCM Ltd,Agency Staff,605.89,0.00,COMMERCIAL SUPPLIER ,,
 04-10-2021,Adults,Lodge Group Care UK Ltd,Home Care - Private Contractors Payment,607.44,0.00,COMMERCIAL SUPPLIER ,,
 26-10-2021,Adults,Homestead Care Service,Home Care - Private Contractors Payment,607.44,0.00,COMMERCIAL SUPPLIER ,,
 20-10-2021,Adults,Cera Care Operations Ltd,Home Care - Private Contractors Payment,607.74,0.00,COMMERCIAL SUPPLIER ,,
 27-10-2021,Adults,Lodge Group Care UK Ltd,Home Care - Private Contractors Payment,607.74,0.00,COMMERCIAL SUPPLIER ,,
 14-10-2021,Adults,John Stanleys Care Agency Ltd,Home Care - Private Contractors Payment,609.29,0.00,COMMERCIAL SUPPLIER ,,
 04-10-2021,Adults,Lodge Group Care UK Ltd,Home Care - Private Contractors Payment,609.60,0.00,COMMERCIAL SUPPLIER ,,
 22-10-2021,Adults,Home Sweet Home Care Ltd,Home Care - Private Contractors Payment,609.74,0.00,COMMERCIAL SUPPLIER ,,
 27-10-2021,Adults,Lodge Group Care UK Ltd,Home Care - Private Contractors Payment,610.53,0.00,COMMERCIAL SUPPLIER ,,
 04-10-2021,Adults,Lodge Group Care UK Ltd,Home Care - Private Contractors Payment,610.84,0.00,COMMERCIAL SUPPLIER ,,
 27-10-2021,Adults,Lodge Group Care UK Ltd,Home Care - Private Contractors Payment,611.15,0.00,COMMERCIAL SUPPLIER ,,
 27-10-2021,Adults,Lodge Group Care UK Ltd,Home Care - Private Contractors Payment,611.90,0.00,COMMERCIAL SUPPLIER ,,
 04-10-2021,Adults,Lodge Group Care UK Ltd,Home Care - Private Contractors Payment,612.70,0.00,COMMERCIAL SUPPLIER ,,
 04-10-2021,Adults,Cera Care Operations Ltd,Home Care - Private Contractors Payment,612.70,0.00,COMMERCIAL SUPPLIER ,,
 06-10-2021,Adults,Matrix SCM Ltd,Agency Staff,612.72,0.00,COMMERCIAL SUPPLIER ,,
 06-10-2021,Adults,Matrix SCM Ltd,Agency Staff,614.16,0.00,COMMERCIAL SUPPLIER ,,
 13-10-2021,Adults,Matrix SCM Ltd,Agency Staff,614.16,0.00,COMMERCIAL SUPPLIER ,,
 13-10-2021,Adults,Matrix SCM Ltd,Agency Staff,614.16,0.00,COMMERCIAL SUPPLIER ,,
 20-10-2021,Adults,Matrix SCM Ltd,Agency Staff,614.16,0.00,COMMERCIAL SUPPLIER ,,
 27-10-2021,Adults,Matrix SCM Ltd,Agency Staff,614.16,0.00,COMMERCIAL SUPPLIER ,,
 06-10-2021,Adults,Matrix SCM Ltd,Agency Staff,614.18,0.00,COMMERCIAL SUPPLIER ,,
 13-10-2021,Adults,Matrix SCM Ltd,Agency Staff,614.18,0.00,COMMERCIAL SUPPLIER ,,
 27-10-2021,Adults,Matrix SCM Ltd,Agency Staff,614.18,0.00,COMMERCIAL SUPPLIER ,,
 15-10-2021,Adults,Anytime Care 2020_a,Home Care - Private Contractors Payment,614.25,0.00,COMMERCIAL SUPPLIER ,,
 25-10-2021,Adults,Westminster Homecare Ltd_a,Home Care - Private Contractors Payment,614.56,0.00,COMMERCIAL SUPPLIER ,,
 27-10-2021,Adults,Lodge Group Care UK Ltd,Home Care - Private Contractors Payment,615.93,0.00,COMMERCIAL SUPPLIER ,,
 21-10-2021,Adults,Allied Health Services Ltd,Home Care - Private Contractors Payment,617.03,0.00,COMMERCIAL SUPPLIER ,,
 27-10-2021,Adults,Lodge Group Care UK Ltd,Home Care - Private Contractors Payment,617.34,0.00,COMMERCIAL SUPPLIER ,,
 22-10-2021,Adults,Prior Care Ltd_a,Home Care - Private Contractors Payment,617.65,0.00,COMMERCIAL SUPPLIER ,,
 04-10-2021,Adults,Quality Healthcare Solutions Ltd t/a Kare Plus Romford,Home Care - Private Contractors Payment,617.79,0.00,COMMERCIAL SUPPLIER ,,
 22-10-2021,Adults,Prior Care Ltd_a,Home Care - Private Contractors Payment,618.41,0.00,COMMERCIAL SUPPLIER ,,
 14-10-2021,Adults,Prestige Care & Support Ltd,Home Care - Private Contractors Payment,618.58,0.00,COMMERCIAL SUPPLIER ,,
 22-10-2021,Adults,Home Sweet Home Care Ltd,Home Care - Private Contractors Payment,618.89,0.00,COMMERCIAL SUPPLIER ,,
 04-10-2021,Adults,Lodge Group Care UK Ltd,Home Care - Private Contractors Payment,619.20,0.00,COMMERCIAL SUPPLIER ,,
 18-10-2021,Adults,London Care Plc_a,Home Care - Private Contractors Payment,619.51,0.00,COMMERCIAL SUPPLIER ,,
 04-10-2021,Adults,Lodge Group Care UK Ltd,Home Care - Private Contractors Payment,620.13,0.00,COMMERCIAL SUPPLIER ,,
 04-10-2021,Adults,Lodge Group Care UK Ltd,Home Care - Private Contractors Payment,620.13,0.00,COMMERCIAL SUPPLIER ,,
 04-10-2021,Adults,Lodge Group Care UK Ltd,Home Care - Private Contractors Payment,620.13,0.00,COMMERCIAL SUPPLIER ,,
 27-10-2021,Adults,Lodge Group Care UK Ltd,Home Care - Private Contractors Payment,620.88,0.00,COMMERCIAL SUPPLIER ,,
 18-10-2021,Adults,London Care Plc_a,Home Care - Private Contractors Payment,621.37,0.00,COMMERCIAL SUPPLIER ,,
 22-10-2021,Adults,Home Sweet Home Care Ltd,Home Care - Private Contractors Payment,622.30,0.00,COMMERCIAL SUPPLIER ,,
 14-10-2021,Adults,Prestige Care & Support Ltd,Home Care - Private Contractors Payment,623.67,0.00,COMMERCIAL SUPPLIER ,,
 22-10-2021,Adults,Prior Care Ltd_a,Home Care - Private Contractors Payment,623.84,0.00,COMMERCIAL SUPPLIER ,,
 27-10-2021,Adults,Lodge Group Care UK Ltd,Home Care - Private Contractors Payment,623.84,0.00,COMMERCIAL SUPPLIER ,,
 20-10-2021,Adults,Cera Care Operations Ltd,Home Care - Private Contractors Payment,624.15,0.00,COMMERCIAL SUPPLIER ,,
 27-10-2021,Adults,Morepower Ltd t/a Aqs Homecare,Home Care - Private Contractors Payment,624.15,0.00,COMMERCIAL SUPPLIER ,,
 20-10-2021,Adults,Cera Care Operations Ltd,Home Care - Private Contractors Payment,624.46,0.00,COMMERCIAL SUPPLIER ,,
 04-10-2021,Adults,Lodge Group Care UK Ltd,Home Care - Private Contractors Payment,625.08,0.00,COMMERCIAL SUPPLIER ,,
 04-10-2021,Adults,Lodge Group Care UK Ltd,Home Care - Private Contractors Payment,626.01,0.00,COMMERCIAL SUPPLIER ,,
 14-10-2021,Adults,Prestige Care & Support Ltd,Home Care - Private Contractors Payment,626.01,0.00,COMMERCIAL SUPPLIER ,,
 27-10-2021,Adults,Morepower Ltd t/a Aqs Homecare,Home Care - Private Contractors Payment,626.32,0.00,COMMERCIAL SUPPLIER ,,
 01-10-2021,Adults,Home Sweet Home Care Ltd,Home Care - Private Contractors Payment,626.63,0.00,COMMERCIAL SUPPLIER ,,
 18-10-2021,Adults,Home Support Services (Havering & Essex) Ltd,Home Care - Private Contractors Payment,626.63,0.00,COMMERCIAL SUPPLIER ,,
 15-10-2021,Adults,Anytime Care 2020_a,Home Care - Private Contractors Payment,628.00,0.00,COMMERCIAL SUPPLIER ,,
 18-10-2021,Adults,Home Support Services (Havering & Essex) Ltd,Home Care - Private Contractors Payment,628.18,0.00,COMMERCIAL SUPPLIER ,,
 04-10-2021,Adults,Lodge Group Care UK Ltd,Home Care - Private Contractors Payment,628.49,0.00,COMMERCIAL SUPPLIER ,,
 04-10-2021,Adults,Lodge Group Care UK Ltd,Home Care - Private Contractors Payment,629.11,0.00,COMMERCIAL SUPPLIER ,,
 21-10-2021,Adults,Quality Healthcare Solutions Ltd t/a Kare Plus Romford,Home Care - Private Contractors Payment,630.49,0.00,COMMERCIAL SUPPLIER ,,
 22-10-2021,Adults,Chosen Care Group Ltd,Supported Other Accommodation - Private Contractors Payment,630.60,0.00,COMMERCIAL SUPPLIER ,,
 22-10-2021,Adults,Prior Care Ltd_a,Home Care - Private Contractors Payment,630.66,0.00,COMMERCIAL SUPPLIER ,,
 01-10-2021,Adults,Home Sweet Home Care Ltd,Home Care - Private Contractors Payment,630.96,0.00,COMMERCIAL SUPPLIER ,,
 27-10-2021,Adults,Morepower Ltd t/a Aqs Homecare,Home Care - Private Contractors Payment,631.10,0.00,COMMERCIAL SUPPLIER ,,
 04-10-2021,Adults,Lodge Group Care UK Ltd,Home Care - Private Contractors Payment,631.58,0.00,COMMERCIAL SUPPLIER ,,
 26-10-2021,Adults,Homestead Care Service,Home Care - Private Contractors Payment,631.58,0.00,COMMERCIAL SUPPLIER ,,
 11-10-2021,Adults,Care-Away Ltd T/A Care Support,Home Care - Private Contractors Payment,632.32,0.00,COMMERCIAL SUPPLIER ,,
 27-10-2021,Adults,Lodge Group Care UK Ltd,Home Care - Private Contractors Payment,632.51,0.00,COMMERCIAL SUPPLIER ,,
 04-10-2021,Adults,Lodge Group Care UK Ltd,Home Care - Private Contractors Payment,632.82,0.00,COMMERCIAL SUPPLIER ,,
 14-10-2021,Adults,John Stanleys Care Agency Ltd,Home Care - Private Contractors Payment,632.82,0.00,COMMERCIAL SUPPLIER ,,
 18-10-2021,Adults,Home Support Services (Havering & Essex) Ltd,Home Care - Private Contractors Payment,633.44,0.00,COMMERCIAL SUPPLIER ,,
 18-10-2021,Adults,Home Support Services (Havering & Essex) Ltd,Home Care - Private Contractors Payment,633.44,0.00,COMMERCIAL SUPPLIER ,,
 22-10-2021,Adults,Home Sweet Home Care Ltd,Home Care - Private Contractors Payment,633.75,0.00,COMMERCIAL SUPPLIER ,,
 05-10-2021,Adults,Prior Care Ltd_a,Home Care - Private Contractors Payment,634.06,0.00,COMMERCIAL SUPPLIER ,,
 26-10-2021,Adults,Homestead Care Service,Home Care - Private Contractors Payment,634.06,0.00,COMMERCIAL SUPPLIER ,,
 26-10-2021,Adults,Homestead Care Service,Home Care - Private Contractors Payment,634.68,0.00,COMMERCIAL SUPPLIER ,,
 22-10-2021,Adults,Lukka Care Homes Ltd - Ravenscourt,Nursing Care Income,634.73,0.00,COMMERCIAL SUPPLIER ,,
 21-10-2021,Adults,Quality Healthcare Solutions Ltd t/a Kare Plus Romford,Home Care - Private Contractors Payment,635.13,0.00,COMMERCIAL SUPPLIER ,,
 05-10-2021,Adults,Prior Care Ltd_a,Home Care - Private Contractors Payment,635.30,0.00,COMMERCIAL SUPPLIER ,,
 14-10-2021,Adults,John Stanleys Care Agency Ltd,Home Care - Private Contractors Payment,636.23,0.00,COMMERCIAL SUPPLIER ,,
 12-10-2021,Adults,Care-Away Ltd T/A Care Support,Home Care - Private Contractors Payment,636.48,0.00,COMMERCIAL SUPPLIER ,,
 05-10-2021,Adults,Prior Care Ltd_a,Home Care - Private Contractors Payment,636.54,0.00,COMMERCIAL SUPPLIER ,,
 18-10-2021,Adults,Home Support Services (Havering & Essex) Ltd,Home Care - Private Contractors Payment,636.85,0.00,COMMERCIAL SUPPLIER ,,
 14-10-2021,Adults,John Stanleys Care Agency Ltd,Home Care - Private Contractors Payment,637.16,0.00,COMMERCIAL SUPPLIER ,,
 14-10-2021,Adults,John Stanleys Care Agency Ltd,Home Care - Private Contractors Payment,637.47,0.00,COMMERCIAL SUPPLIER ,,
 27-10-2021,Adults,Lodge Group Care UK Ltd,Home Care - Private Contractors Payment,637.47,0.00,COMMERCIAL SUPPLIER ,,
 04-10-2021,Adults,Lodge Group Care UK Ltd,Home Care - Private Contractors Payment,638.40,0.00,COMMERCIAL SUPPLIER ,,
 04-10-2021,Adults,Lodge Group Care UK Ltd,Home Care - Private Contractors Payment,638.70,0.00,COMMERCIAL SUPPLIER ,,
 27-10-2021,Adults,Lodge Group Care UK Ltd,Home Care - Private Contractors Payment,638.70,0.00,COMMERCIAL SUPPLIER ,,
 27-10-2021,Adults,Lodge Group Care UK Ltd,Home Care - Private Contractors Payment,639.32,0.00,COMMERCIAL SUPPLIER ,,
 01-10-2021,Adults,Home Sweet Home Care Ltd,Home Care - Private Contractors Payment,639.63,0.00,COMMERCIAL SUPPLIER ,,
 27-10-2021,Adults,Lodge Group Care UK Ltd,Home Care - Private Contractors Payment,639.94,0.00,COMMERCIAL SUPPLIER ,,
 05-10-2021,Adults,Romford Private Hire Ltd,Client Transport,640.00,0.00,COMMERCIAL SUPPLIER ,,
 22-10-2021,Adults,Ladyville Lodge_a,Nursing Homes - Private Contractors Payment,640.00,0.00,COMMERCIAL SUPPLIER ,,
 04-10-2021,Adults,Lodge Group Care UK Ltd,Home Care - Private Contractors Payment,640.25,0.00,COMMERCIAL SUPPLIER ,,
 22-10-2021,Adults,One Tree Estates Ltd t/a Ashbrook Nursing Home,Nursing Care Income,640.28,0.00,COMMERCIAL SUPPLIER ,,
 18-10-2021,Adults,Home Support Services (Havering & Essex) Ltd,Home Care - Private Contractors Payment,640.68,0.00,COMMERCIAL SUPPLIER ,,
 26-10-2021,Adults,Homestead Care Service,Home Care - Private Contractors Payment,641.18,0.00,COMMERCIAL SUPPLIER ,,
 14-10-2021,Adults,John Stanleys Care Agency Ltd,Home Care - Private Contractors Payment,641.49,0.00,COMMERCIAL SUPPLIER ,,
 04-10-2021,Adults,Cera Care Operations Ltd,Home Care - Private Contractors Payment,642.42,0.00,COMMERCIAL SUPPLIER ,,
 26-10-2021,Adults,Homestead Care Service,Home Care - Private Contractors Payment,642.42,0.00,COMMERCIAL SUPPLIER ,,
 14-10-2021,Adults,Prestige Care & Support Ltd,Home Care - Private Contractors Payment,642.73,0.00,COMMERCIAL SUPPLIER ,,
 22-10-2021,Adults,Euroloos Limited,Premises Hire - Facilities,642.84,0.00,NON COMMERCIAL SUPPLIER ,,
 22-10-2021,Adults,Ladyville Lodge_a,Respite Care - Private Contractors Payment,642.86,0.00,COMMERCIAL SUPPLIER ,,
 15-10-2021,Adults,Anytime Care 2020_a,Home Care - Private Contractors Payment,643.35,0.00,COMMERCIAL SUPPLIER ,,
 18-10-2021,Adults,Home Support Services (Havering & Essex) Ltd,Home Care - Private Contractors Payment,643.35,0.00,COMMERCIAL SUPPLIER ,,
 18-10-2021,Adults,Home Support Services (Havering & Essex) Ltd,Home Care - Private Contractors Payment,644.90,0.00,COMMERCIAL SUPPLIER ,,
 05-10-2021,Adults,Prior Care Ltd_a,Home Care - Private Contractors Payment,645.21,0.00,COMMERCIAL SUPPLIER ,,
 27-10-2021,Adults,Lodge Group Care UK Ltd,Home Care - Private Contractors Payment,645.21,0.00,COMMERCIAL SUPPLIER ,,
 04-10-2021,Adults,Lodge Group Care UK Ltd,Home Care - Private Contractors Payment,646.14,0.00,COMMERCIAL SUPPLIER ,,
 04-10-2021,Adults,Cera Care Operations Ltd,Home Care - Private Contractors Payment,646.44,0.00,COMMERCIAL SUPPLIER ,,
 22-10-2021,Adults,Affinia Healthcare Ltd_a,Supported Other Accommodation - Private Contractors Payment,646.64,0.00,COMMERCIAL SUPPLIER ,,
 15-10-2021,Adults,Anytime Care 2020_a,Home Care - Private Contractors Payment,647.06,0.00,COMMERCIAL SUPPLIER ,,
 26-10-2021,Adults,Homestead Care Service,Home Care - Private Contractors Payment,647.37,0.00,COMMERCIAL SUPPLIER ,,
 26-10-2021,Adults,Homestead Care Service,Home Care - Private Contractors Payment,647.99,0.00,COMMERCIAL SUPPLIER ,,
 13-10-2021,Adults,Care-Away Ltd T/A Care Support,Home Care - Private Contractors Payment,648.96,0.00,COMMERCIAL SUPPLIER ,,
 05-10-2021,Adults,Prior Care Ltd_a,Home Care - Private Contractors Payment,649.54,0.00,COMMERCIAL SUPPLIER ,,
 22-10-2021,Adults,Home Sweet Home Care Ltd,Home Care - Private Contractors Payment,650.16,0.00,COMMERCIAL SUPPLIER ,,
 27-10-2021,Adults,Lodge Group Care UK Ltd,Home Care - Private Contractors Payment,650.47,0.00,COMMERCIAL SUPPLIER ,,
 27-10-2021,Adults,Matrix SCM Ltd,Agency Staff,650.76,0.00,COMMERCIAL SUPPLIER ,,
 27-10-2021,Adults,Lodge Group Care UK Ltd,Home Care - Private Contractors Payment,651.40,0.00,COMMERCIAL SUPPLIER ,,
 27-10-2021,Adults,Lodge Group Care UK Ltd,Home Care - Private Contractors Payment,651.71,0.00,COMMERCIAL SUPPLIER ,,
 27-10-2021,Adults,Morepower Ltd t/a Aqs Homecare,Home Care - Private Contractors Payment,652.33,0.00,COMMERCIAL SUPPLIER ,,
 01-10-2021,Adults,Home Sweet Home Care Ltd,Home Care - Private Contractors Payment,652.95,0.00,COMMERCIAL SUPPLIER ,,
 26-10-2021,Adults,Homestead Care Service,Home Care - Private Contractors Payment,653.26,0.00,COMMERCIAL SUPPLIER ,,
 26-10-2021,Adults,Homestead Care Service,Home Care - Private Contractors Payment,653.57,0.00,COMMERCIAL SUPPLIER ,,
 15-10-2021,Adults,Anytime Care 2020_a,Home Care - Private Contractors Payment,654.34,0.00,COMMERCIAL SUPPLIER ,,
 27-10-2021,Adults,Lodge Group Care UK Ltd,Home Care - Private Contractors Payment,654.49,0.00,COMMERCIAL SUPPLIER ,,
 04-10-2021,Adults,Lodge Group Care UK Ltd,Home Care - Private Contractors Payment,655.11,0.00,COMMERCIAL SUPPLIER ,,
 04-10-2021,Adults,Lodge Group Care UK Ltd,Home Care - Private Contractors Payment,656.35,0.00,COMMERCIAL SUPPLIER ,,
 27-10-2021,Adults,Lodge Group Care UK Ltd,Home Care - Private Contractors Payment,656.66,0.00,COMMERCIAL SUPPLIER ,,
 04-10-2021,Adults,Lodge Group Care UK Ltd,Home Care - Private Contractors Payment,656.80,0.00,COMMERCIAL SUPPLIER ,,
 04-10-2021,Adults,Cera Care Operations Ltd,Home Care - Private Contractors Payment,656.97,0.00,COMMERCIAL SUPPLIER ,,
 14-10-2021,Adults,Prestige Care & Support Ltd,Home Care - Private Contractors Payment,659.45,0.00,COMMERCIAL SUPPLIER ,,
 22-10-2021,Adults,Home Sweet Home Care Ltd,Home Care - Private Contractors Payment,659.45,0.00,COMMERCIAL SUPPLIER ,,
 27-10-2021,Adults,Lodge Group Care UK Ltd,Home Care - Private Contractors Payment,659.45,0.00,COMMERCIAL SUPPLIER ,,
 04-10-2021,Adults,Lodge Group Care UK Ltd,Home Care - Private Contractors Payment,659.76,0.00,COMMERCIAL SUPPLIER ,,
 14-10-2021,Adults,Prestige Care & Support Ltd,Home Care - Private Contractors Payment,659.76,0.00,COMMERCIAL SUPPLIER ,,
 11-10-2021,Adults,Tapestry_a.,Daycare - Private Contractors Payment,660.00,0.00,COMMERCIAL SUPPLIER ,,
 11-10-2021,Adults,Tapestry_a.,Daycare - Private Contractors Payment,660.00,0.00,COMMERCIAL SUPPLIER ,,
 11-10-2021,Adults,Tapestry_a.,Daycare - Private Contractors Payment,660.00,0.00,COMMERCIAL SUPPLIER ,,
 11-10-2021,Adults,Tapestry_a.,Daycare - Private Contractors Payment,660.00,0.00,COMMERCIAL SUPPLIER ,,
 12-10-2021,Adults,Tapestry_a.,Daycare - Private Contractors Payment,660.00,0.00,COMMERCIAL SUPPLIER ,,
 12-10-2021,Adults,Tapestry_a.,Daycare - Private Contractors Payment,660.00,0.00,COMMERCIAL SUPPLIER ,,
 21-10-2021,Adults,Crystal Social Care Ltd,Home Care - Private Contractors Payment,660.00,0.00,COMMERCIAL SUPPLIER ,,
 04-10-2021,Adults,Lodge Group Care UK Ltd,Home Care - Private Contractors Payment,660.07,0.00,COMMERCIAL SUPPLIER ,,
 22-10-2021,Adults,Prior Care Ltd_a,Home Care - Private Contractors Payment,660.07,0.00,COMMERCIAL SUPPLIER ,,
 22-10-2021,Adults,Home Sweet Home Care Ltd,Home Care - Private Contractors Payment,660.07,0.00,COMMERCIAL SUPPLIER ,,
 21-10-2021,Adults,Quality Healthcare Solutions Ltd t/a Kare Plus Romford,Home Care - Private Contractors Payment,661.14,0.00,COMMERCIAL SUPPLIER ,,
 04-10-2021,Adults,Lodge Group Care UK Ltd,Home Care - Private Contractors Payment,661.31,0.00,COMMERCIAL SUPPLIER ,,
 14-10-2021,Adults,Prestige Care & Support Ltd,Home Care - Private Contractors Payment,661.31,0.00,COMMERCIAL SUPPLIER ,,
 27-10-2021,Adults,Lodge Group Care UK Ltd,Home Care - Private Contractors Payment,662.54,0.00,COMMERCIAL SUPPLIER ,,
 27-10-2021,Adults,Lodge Group Care UK Ltd,Home Care - Private Contractors Payment,662.85,0.00,COMMERCIAL SUPPLIER ,,
 06-10-2021,Adults,Matrix SCM Ltd,Agency Staff,662.94,0.00,COMMERCIAL SUPPLIER ,,
 26-10-2021,Adults,Homestead Care Service,Home Care - Private Contractors Payment,663.16,0.00,COMMERCIAL SUPPLIER ,,
 26-10-2021,Adults,Homestead Care Service,Home Care - Private Contractors Payment,663.47,0.00,COMMERCIAL SUPPLIER ,,
 14-10-2021,Adults,Prestige Care & Support Ltd,Home Care - Private Contractors Payment,664.40,0.00,COMMERCIAL SUPPLIER ,,
 22-10-2021,Adults,Black Swan International Ltd - Drummonds,Residential Placements - Private Contractors Payment,664.72,0.00,COMMERCIAL SUPPLIER ,,
 05-10-2021,Adults,Coastal Supported Living CIC,Supported Other Accommodation - Private Contractors Payment,664.95,0.00,COMMERCIAL SUPPLIER ,,
 20-10-2021,Adults,Cera Care Operations Ltd,Home Care - Private Contractors Payment,665.33,0.00,COMMERCIAL SUPPLIER ,,
 27-10-2021,Adults,Lodge Group Care UK Ltd,Home Care - Private Contractors Payment,665.33,0.00,COMMERCIAL SUPPLIER ,,
 22-10-2021,Adults,Prior Care Ltd_a,Home Care - Private Contractors Payment,665.64,0.00,COMMERCIAL SUPPLIER ,,
 11-10-2021,Adults,Bluebird Care Havering,Home Care - Private Contractors Payment,666.16,0.00,COMMERCIAL SUPPLIER ,,
 25-10-2021,Adults,Bluebird Care Havering,Home Care - Private Contractors Payment,666.16,0.00,COMMERCIAL SUPPLIER ,,
 15-10-2021,Adults,Anytime Care 2020_a,Home Care - Private Contractors Payment,666.26,0.00,COMMERCIAL SUPPLIER ,,
 22-10-2021,Adults,One Tree Estates Ltd t/a Ashbrook Nursing Home,Nursing Homes - Private Contractors Payment,667.14,0.00,COMMERCIAL SUPPLIER ,,
 15-10-2021,Adults,Anytime Care 2020_a,Home Care - Private Contractors Payment,667.19,0.00,COMMERCIAL SUPPLIER ,,
 20-10-2021,Adults,Cera Care Operations Ltd,Home Care - Private Contractors Payment,667.64,0.00,COMMERCIAL SUPPLIER ,,
 04-10-2021,Adults,Lodge Group Care UK Ltd,Home Care - Private Contractors Payment,667.81,0.00,COMMERCIAL SUPPLIER ,,
 26-10-2021,Adults,Homestead Care Service,Home Care - Private Contractors Payment,668.12,0.00,COMMERCIAL SUPPLIER ,,
 01-10-2021,Adults,Home Sweet Home Care Ltd,Home Care - Private Contractors Payment,668.43,0.00,COMMERCIAL SUPPLIER ,,
 26-10-2021,Adults,Homestead Care Service,Home Care - Private Contractors Payment,668.43,0.00,COMMERCIAL SUPPLIER ,,
 04-10-2021,Adults,Cera Care Operations Ltd,Home Care - Private Contractors Payment,668.74,0.00,COMMERCIAL SUPPLIER ,,
 10-10-2021,Adults,Hospiva Care & Associates Agency Ltd_a,Home Care - Private Contractors Payment,668.74,0.00,COMMERCIAL SUPPLIER ,,
 14-10-2021,Adults,Passion Tree Care Services Ltd,Home Care - Private Contractors Payment,668.74,0.00,COMMERCIAL SUPPLIER ,,
 04-10-2021,Adults,Lodge Group Care UK Ltd,Home Care - Private Contractors Payment,670.43,0.00,COMMERCIAL SUPPLIER ,,
 20-10-2021,Adults,Matrix SCM Ltd,Agency Staff,670.56,0.00,COMMERCIAL SUPPLIER ,,
 18-10-2021,Adults,Home Support Services (Havering & Essex) Ltd,Home Care - Private Contractors Payment,670.59,0.00,COMMERCIAL SUPPLIER ,,
 04-10-2021,Adults,Lodge Group Care UK Ltd,Home Care - Private Contractors Payment,671.21,0.00,COMMERCIAL SUPPLIER ,,
 14-10-2021,Adults,Prestige Care & Support Ltd,Home Care - Private Contractors Payment,672.14,0.00,COMMERCIAL SUPPLIER ,,
 04-10-2021,Adults,Lodge Group Care UK Ltd,Home Care - Private Contractors Payment,673.69,0.00,COMMERCIAL SUPPLIER ,,
 18-10-2021,Adults,Home Support Services (Havering & Essex) Ltd,Home Care - Private Contractors Payment,673.69,0.00,COMMERCIAL SUPPLIER ,,
 22-10-2021,Adults,One Tree Estates Ltd t/a Ashbrook Nursing Home,Nursing Homes - Private Contractors Payment,677.14,0.00,COMMERCIAL SUPPLIER ,,
 27-10-2021,Adults,Lodge Group Care UK Ltd,Home Care - Private Contractors Payment,678.95,0.00,COMMERCIAL SUPPLIER ,,
 18-10-2021,Adults,Home Support Services (Havering & Essex) Ltd,Home Care - Private Contractors Payment,679.57,0.00,COMMERCIAL SUPPLIER ,,
 22-10-2021,Adults,Prior Care Ltd_a,Home Care - Private Contractors Payment,679.88,0.00,COMMERCIAL SUPPLIER ,,
 06-10-2021,Adults,Matrix SCM Ltd,Agency Staff,682.08,0.00,COMMERCIAL SUPPLIER ,,
 13-10-2021,Adults,Matrix SCM Ltd,Agency Staff,682.08,0.00,COMMERCIAL SUPPLIER ,,
 20-10-2021,Adults,Matrix SCM Ltd,Agency Staff,682.08,0.00,COMMERCIAL SUPPLIER ,,
 27-10-2021,Adults,Matrix SCM Ltd,Agency Staff,682.08,0.00,COMMERCIAL SUPPLIER ,,
 05-10-2021,Adults,Prior Care Ltd_a,Home Care - Private Contractors Payment,682.36,0.00,COMMERCIAL SUPPLIER ,,
 14-10-2021,Adults,Prestige Care & Support Ltd,Home Care - Private Contractors Payment,682.36,0.00,COMMERCIAL SUPPLIER ,,
 11-10-2021,Adults,London Homecare Ltd,Home Care - Private Contractors Payment,682.67,0.00,COMMERCIAL SUPPLIER ,,
 04-10-2021,Adults,Cera Care Operations Ltd,Home Care - Private Contractors Payment,682.98,0.00,COMMERCIAL SUPPLIER ,,
 22-10-2021,Adults,Prior Care Ltd_a,Home Care - Private Contractors Payment,683.60,0.00,COMMERCIAL SUPPLIER ,,
 05-10-2021,Adults,Prior Care Ltd_a,Home Care - Private Contractors Payment,683.91,0.00,COMMERCIAL SUPPLIER ,,
 20-10-2021,Adults,Cera Care Operations Ltd,Home Care - Private Contractors Payment,685.14,0.00,COMMERCIAL SUPPLIER ,,
 22-10-2021,Adults,Nightingale Residential Care Home Ltd,Residential Care Income,685.33,0.00,COMMERCIAL SUPPLIER ,,
 27-10-2021,Adults,Lodge Group Care UK Ltd,Home Care - Private Contractors Payment,685.76,0.00,COMMERCIAL SUPPLIER ,,
 18-10-2021,Adults,Home Support Services (Havering & Essex) Ltd,Home Care - Private Contractors Payment,686.38,0.00,COMMERCIAL SUPPLIER ,,
 22-10-2021,Adults,Gemini Assisted Living Ltd,Supported Other Accommodation - Private Contractors Payment,686.40,0.00,COMMERCIAL SUPPLIER ,,
 05-10-2021,Adults,Prior Care Ltd_a,Home Care - Private Contractors Payment,686.69,0.00,COMMERCIAL SUPPLIER ,,
 18-10-2021,Adults,Home Support Services (Havering & Essex) Ltd,Home Care - Private Contractors Payment,686.69,0.00,COMMERCIAL SUPPLIER ,,
 14-10-2021,Adults,Prestige Care & Support Ltd,Home Care - Private Contractors Payment,687.45,0.00,COMMERCIAL SUPPLIER ,,
 18-10-2021,Adults,Home Support Services (Havering & Essex) Ltd,Home Care - Private Contractors Payment,687.46,0.00,COMMERCIAL SUPPLIER ,,
 01-10-2021,Adults,Home Sweet Home Care Ltd,Home Care - Private Contractors Payment,687.93,0.00,COMMERCIAL SUPPLIER ,,
 07-10-2021,Adults,Mayflower Travel,Client Transport,688.00,0.00,COMMERCIAL SUPPLIER ,,
 04-10-2021,Adults,Quality Healthcare Solutions Ltd t/a Kare Plus Romford,Home Care - Private Contractors Payment,688.24,0.00,COMMERCIAL SUPPLIER ,,
 20-10-2021,Adults,Cera Care Operations Ltd,Home Care - Private Contractors Payment,688.55,0.00,COMMERCIAL SUPPLIER ,,
 18-10-2021,Adults,London Care Plc_a,Home Care - Private Contractors Payment,688.86,0.00,COMMERCIAL SUPPLIER ,,
 27-10-2021,Adults,Matrix SCM Ltd,Agency Staff,689.00,0.00,COMMERCIAL SUPPLIER ,,
 27-10-2021,Adults,Morepower Ltd t/a Aqs Homecare,Home Care - Private Contractors Payment,689.48,0.00,COMMERCIAL SUPPLIER ,,
 04-10-2021,Adults,Lodge Group Care UK Ltd,Home Care - Private Contractors Payment,690.10,0.00,COMMERCIAL SUPPLIER ,,
 18-10-2021,Adults,Home Support Services (Havering & Essex) Ltd,Home Care - Private Contractors Payment,690.10,0.00,COMMERCIAL SUPPLIER ,,
 27-10-2021,Adults,Lodge Group Care UK Ltd,Home Care - Private Contractors Payment,690.55,0.00,COMMERCIAL SUPPLIER ,,
 18-10-2021,Adults,Home Support Services (Havering & Essex) Ltd,Home Care - Private Contractors Payment,691.77,0.00,COMMERCIAL SUPPLIER ,,
 27-10-2021,Adults,Matrix SCM Ltd,Agency Staff,692.65,0.00,COMMERCIAL SUPPLIER ,,
 27-10-2021,Adults,Lodge Group Care UK Ltd,Home Care - Private Contractors Payment,692.88,0.00,COMMERCIAL SUPPLIER ,,
 27-10-2021,Adults,Morepower Ltd t/a Aqs Homecare,Home Care - Private Contractors Payment,694.43,0.00,COMMERCIAL SUPPLIER ,,
 22-10-2021,Adults,Home Sweet Home Care Ltd,Home Care - Private Contractors Payment,694.74,0.00,COMMERCIAL SUPPLIER ,,
 04-10-2021,Adults,Lodge Group Care UK Ltd,Home Care - Private Contractors Payment,695.67,0.00,COMMERCIAL SUPPLIER ,,
 14-10-2021,Adults,Prestige Care & Support Ltd,Home Care - Private Contractors Payment,695.67,0.00,COMMERCIAL SUPPLIER ,,
 26-10-2021,Adults,Homestead Care Service,Home Care - Private Contractors Payment,695.67,0.00,COMMERCIAL SUPPLIER ,,
 27-10-2021,Adults,Lodge Group Care UK Ltd,Home Care - Private Contractors Payment,695.67,0.00,COMMERCIAL SUPPLIER ,,
 22-10-2021,Adults,Home Sweet Home Care Ltd,Home Care - Private Contractors Payment,696.60,0.00,COMMERCIAL SUPPLIER ,,
 06-10-2021,Adults,Matrix SCM Ltd,Agency Staff,697.20,0.00,COMMERCIAL SUPPLIER ,,
 13-10-2021,Adults,Matrix SCM Ltd,Agency Staff,697.20,0.00,COMMERCIAL SUPPLIER ,,
 20-10-2021,Adults,Matrix SCM Ltd,Agency Staff,697.20,0.00,COMMERCIAL SUPPLIER ,,
 27-10-2021,Adults,Matrix SCM Ltd,Agency Staff,697.20,0.00,COMMERCIAL SUPPLIER ,,
 27-10-2021,Adults,Lodge Group Care UK Ltd,Home Care - Private Contractors Payment,697.22,0.00,COMMERCIAL SUPPLIER ,,
 22-10-2021,Adults,Home Sweet Home Care Ltd,Home Care - Private Contractors Payment,697.84,0.00,COMMERCIAL SUPPLIER ,,
 06-10-2021,Adults,Inclusive Care Support Limited,Long Term Support - Community: Supported Living,698.40,0.00,COMMERCIAL SUPPLIER ,,
 06-10-2021,Adults,Inclusive Care Support Limited,Supported Other Accommodation - Private Contractors Payment,698.40,0.00,COMMERCIAL SUPPLIER ,,
 22-10-2021,Adults,Home Sweet Home Care Ltd,Home Care - Private Contractors Payment,698.77,0.00,COMMERCIAL SUPPLIER ,,
 12-10-2021,Adults,Care-Away Ltd T/A Care Support,Home Care - Private Contractors Payment,698.88,0.00,COMMERCIAL SUPPLIER ,,
 12-10-2021,Adults,Care-Away Ltd T/A Care Support,Home Care - Private Contractors Payment,698.88,0.00,COMMERCIAL SUPPLIER ,,
 12-10-2021,Adults,Care-Away Ltd T/A Care Support,Home Care - Private Contractors Payment,698.88,0.00,COMMERCIAL SUPPLIER ,,
 12-10-2021,Adults,Care-Away Ltd T/A Care Support,Home Care - Private Contractors Payment,698.88,0.00,COMMERCIAL SUPPLIER ,,
 12-10-2021,Adults,Care-Away Ltd T/A Care Support,Home Care - Private Contractors Payment,698.88,0.00,COMMERCIAL SUPPLIER ,,
 13-10-2021,Adults,Care-Away Ltd T/A Care Support,Home Care - Private Contractors Payment,698.88,0.00,COMMERCIAL SUPPLIER ,,
 04-10-2021,Adults,Lodge Group Care UK Ltd,Home Care - Private Contractors Payment,700.32,0.00,COMMERCIAL SUPPLIER ,,
 06-10-2021,Adults,Matrix SCM Ltd,Agency Staff,700.65,0.00,COMMERCIAL SUPPLIER ,,
 18-10-2021,Adults,Home Support Services (Havering & Essex) Ltd,Home Care - Private Contractors Payment,701.86,0.00,COMMERCIAL SUPPLIER ,,
 22-10-2021,Adults,Home Sweet Home Care Ltd,Home Care - Private Contractors Payment,703.72,0.00,COMMERCIAL SUPPLIER ,,
 22-10-2021,Adults,GCH - Hillside Nursing Home,Nursing Homes - Private Contractors Payment,704.00,0.00,COMMERCIAL SUPPLIER ,,
 05-10-2021,Adults,Prior Care Ltd_a,Home Care - Private Contractors Payment,704.96,0.00,COMMERCIAL SUPPLIER ,,
 14-10-2021,Adults,Prestige Care & Support Ltd,Home Care - Private Contractors Payment,705.43,0.00,COMMERCIAL SUPPLIER ,,
 13-10-2021,Adults,Matrix SCM Ltd,Agency Staff,705.84,0.00,COMMERCIAL SUPPLIER ,,
 19-10-2021,Adults,Rosemont Care Limited,Home Care - Private Contractors Payment,705.89,0.00,COMMERCIAL SUPPLIER ,,
 19-10-2021,Adults,Rosemont Care Limited,Home Care - Private Contractors Payment,705.89,0.00,COMMERCIAL SUPPLIER ,,
 26-10-2021,Adults,Homestead Care Service,Home Care - Private Contractors Payment,706.51,0.00,COMMERCIAL SUPPLIER ,,
 22-10-2021,Adults,Prior Care Ltd_a,Home Care - Private Contractors Payment,706.82,0.00,COMMERCIAL SUPPLIER ,,
 27-10-2021,Adults,Lodge Group Care UK Ltd,Home Care - Private Contractors Payment,706.82,0.00,COMMERCIAL SUPPLIER ,,
 26-10-2021,Adults,Homestead Care Service,Home Care - Private Contractors Payment,707.13,0.00,COMMERCIAL SUPPLIER ,,
 26-10-2021,Adults,Homestead Care Service,Home Care - Private Contractors Payment,707.44,0.00,COMMERCIAL SUPPLIER ,,
 18-10-2021,Adults,Home Support Services (Havering & Essex) Ltd,Home Care - Private Contractors Payment,707.91,0.00,COMMERCIAL SUPPLIER ,,
 26-10-2021,Adults,Homestead Care Service,Home Care - Private Contractors Payment,708.36,0.00,COMMERCIAL SUPPLIER ,,
 05-10-2021,Adults,Prior Care Ltd_a,Home Care - Private Contractors Payment,708.52,0.00,COMMERCIAL SUPPLIER ,,
 18-10-2021,Adults,Home Support Services (Havering & Essex) Ltd,Home Care - Private Contractors Payment,708.67,0.00,COMMERCIAL SUPPLIER ,,
 22-10-2021,Adults,Home Sweet Home Care Ltd,Home Care - Private Contractors Payment,708.67,0.00,COMMERCIAL SUPPLIER ,,
 18-10-2021,Adults,Home Support Services (Havering & Essex) Ltd,Home Care - Private Contractors Payment,709.13,0.00,COMMERCIAL SUPPLIER ,,
 26-10-2021,Adults,Homestead Care Service,Home Care - Private Contractors Payment,710.84,0.00,COMMERCIAL SUPPLIER ,,
 06-10-2021,Adults,Matrix SCM Ltd,Agency Staff,711.03,0.00,COMMERCIAL SUPPLIER ,,
 04-10-2021,Adults,Lodge Group Care UK Ltd,Home Care - Private Contractors Payment,711.46,0.00,COMMERCIAL SUPPLIER ,,
 13-10-2021,Adults,Matrix SCM Ltd,Agency Staff,711.68,0.00,COMMERCIAL SUPPLIER ,,
 14-10-2021,Adults,Prestige Care & Support Ltd,Home Care - Private Contractors Payment,711.77,0.00,COMMERCIAL SUPPLIER ,,
 14-10-2021,Adults,John Stanleys Care Agency Ltd,Home Care - Private Contractors Payment,712.08,0.00,COMMERCIAL SUPPLIER ,,
 18-10-2021,Adults,Home Support Services (Havering & Essex) Ltd,Home Care - Private Contractors Payment,712.08,0.00,COMMERCIAL SUPPLIER ,,
 27-10-2021,Adults,Lodge Group Care UK Ltd,Home Care - Private Contractors Payment,713.01,0.00,COMMERCIAL SUPPLIER ,,
 05-10-2021,Adults,Prior Care Ltd_a,Home Care - Private Contractors Payment,713.32,0.00,COMMERCIAL SUPPLIER ,,
 18-10-2021,Adults,Home Support Services (Havering & Essex) Ltd,Home Care - Private Contractors Payment,713.32,0.00,COMMERCIAL SUPPLIER ,,
 18-10-2021,Adults,Home Support Services (Havering & Essex) Ltd,Home Care - Private Contractors Payment,714.25,0.00,COMMERCIAL SUPPLIER ,,
 18-10-2021,Adults,Home Support Services (Havering & Essex) Ltd,Home Care - Private Contractors Payment,714.41,0.00,COMMERCIAL SUPPLIER ,,
 21-10-2021,Adults,Allied Health Services Ltd,Home Care - Private Contractors Payment,715.49,0.00,COMMERCIAL SUPPLIER ,,
 22-10-2021,Adults,Home Sweet Home Care Ltd,Home Care - Private Contractors Payment,715.49,0.00,COMMERCIAL SUPPLIER ,,
 27-10-2021,Adults,Lodge Group Care UK Ltd,Home Care - Private Contractors Payment,715.49,0.00,COMMERCIAL SUPPLIER ,,
 12-10-2021,Adults,Care-Away Ltd T/A Care Support,Home Care - Private Contractors Payment,715.52,0.00,COMMERCIAL SUPPLIER ,,
 20-10-2021,Adults,Cera Care Operations Ltd,Home Care - Private Contractors Payment,716.41,0.00,COMMERCIAL SUPPLIER ,,
 06-10-2021,Adults,Matrix SCM Ltd,Agency Staff,716.95,0.00,COMMERCIAL SUPPLIER ,,
 26-10-2021,Adults,Homestead Care Service,Home Care - Private Contractors Payment,717.03,0.00,COMMERCIAL SUPPLIER ,,
 27-10-2021,Adults,Lodge Group Care UK Ltd,Home Care - Private Contractors Payment,717.03,0.00,COMMERCIAL SUPPLIER ,,
 21-10-2021,Adults,Allied Health Services Ltd,Home Care - Private Contractors Payment,717.65,0.00,COMMERCIAL SUPPLIER ,,
 18-10-2021,Adults,Home Support Services (Havering & Essex) Ltd,Home Care - Private Contractors Payment,718.58,0.00,COMMERCIAL SUPPLIER ,,
 22-10-2021,Adults,Prior Care Ltd_a,Home Care - Private Contractors Payment,718.58,0.00,COMMERCIAL SUPPLIER ,,
 04-10-2021,Adults,Quality Healthcare Solutions Ltd t/a Kare Plus Romford,Home Care - Private Contractors Payment,718.89,0.00,COMMERCIAL SUPPLIER ,,
 22-10-2021,Adults,Home Sweet Home Care Ltd,Home Care - Private Contractors Payment,719.82,0.00,COMMERCIAL SUPPLIER ,,
 11-10-2021,Adults,All Therapy Solutions Ltd,Occupational Health,720.00,0.00,COMMERCIAL SUPPLIER ,,
 27-10-2021,Adults,Morepower Ltd t/a Aqs Homecare,Home Care - Private Contractors Payment,720.75,0.00,COMMERCIAL SUPPLIER ,,
 27-10-2021,Adults,Morepower Ltd t/a Aqs Homecare,Home Care - Private Contractors Payment,721.37,0.00,COMMERCIAL SUPPLIER ,,
 05-10-2021,Adults,Prior Care Ltd_a,Home Care - Private Contractors Payment,721.54,0.00,COMMERCIAL SUPPLIER ,,
 05-10-2021,Adults,Prior Care Ltd_a,Home Care - Private Contractors Payment,721.99,0.00,COMMERCIAL SUPPLIER ,,
 06-10-2021,Adults,Matrix SCM Ltd,Agency Staff,722.12,0.00,COMMERCIAL SUPPLIER ,,
 14-10-2021,Adults,Prestige Care & Support Ltd,Home Care - Private Contractors Payment,723.23,0.00,COMMERCIAL SUPPLIER ,,
 27-10-2021,Adults,Lodge Group Care UK Ltd,Home Care - Private Contractors Payment,723.23,0.00,COMMERCIAL SUPPLIER ,,
 18-10-2021,Adults,Home Support Services (Havering & Essex) Ltd,Home Care - Private Contractors Payment,724.29,0.00,COMMERCIAL SUPPLIER ,,
 14-10-2021,Adults,John Stanleys Care Agency Ltd,Home Care - Private Contractors Payment,725.70,0.00,COMMERCIAL SUPPLIER ,,
 18-10-2021,Adults,London Care Plc_a,Home Care - Private Contractors Payment,726.32,0.00,COMMERCIAL SUPPLIER ,,
 18-10-2021,Adults,Home Support Services (Havering & Essex) Ltd,Home Care - Private Contractors Payment,727.25,0.00,COMMERCIAL SUPPLIER ,,
 22-10-2021,Adults,Ashgate House Ltd_a,Residential Placements - Private Contractors Payment,727.96,0.00,COMMERCIAL SUPPLIER ,,
 22-10-2021,Adults,Beechcourt Care Centre - Bondcare,Nursing Care Income,729.28,0.00,COMMERCIAL SUPPLIER ,,
 22-10-2021,Adults,Beechcourt Care Centre - Bondcare,Nursing Care Income,729.28,0.00,COMMERCIAL SUPPLIER ,,
 01-10-2021,Adults,Home Sweet Home Care Ltd,Home Care - Private Contractors Payment,730.35,0.00,COMMERCIAL SUPPLIER ,,
 04-10-2021,Adults,Quality Healthcare Solutions Ltd t/a Kare Plus Romford,Home Care - Private Contractors Payment,730.97,0.00,COMMERCIAL SUPPLIER ,,
 01-10-2021,Adults,Home Sweet Home Care Ltd,Home Care - Private Contractors Payment,731.58,0.00,COMMERCIAL SUPPLIER ,,
 21-10-2021,Adults,Quality Healthcare Solutions Ltd t/a Kare Plus Romford,Home Care - Private Contractors Payment,731.89,0.00,COMMERCIAL SUPPLIER ,,
 27-10-2021,Adults,Lodge Group Care UK Ltd,Home Care - Private Contractors Payment,732.51,0.00,COMMERCIAL SUPPLIER ,,
 27-10-2021,Adults,Morepower Ltd t/a Aqs Homecare,Home Care - Private Contractors Payment,732.51,0.00,COMMERCIAL SUPPLIER ,,
 27-10-2021,Adults,Morepower Ltd t/a Aqs Homecare,Home Care - Private Contractors Payment,732.51,0.00,COMMERCIAL SUPPLIER ,,
 14-10-2021,Adults,John Stanleys Care Agency Ltd,Home Care - Private Contractors Payment,732.82,0.00,COMMERCIAL SUPPLIER ,,
 15-10-2021,Adults,Anytime Care 2020_a,Home Care - Private Contractors Payment,734.06,0.00,COMMERCIAL SUPPLIER ,,
 21-10-2021,Adults,Allied Health Services Ltd,Home Care - Private Contractors Payment,734.68,0.00,COMMERCIAL SUPPLIER ,,
 01-10-2021,Adults,Home Sweet Home Care Ltd,Home Care - Private Contractors Payment,734.99,0.00,COMMERCIAL SUPPLIER ,,
 14-10-2021,Adults,Prestige Care & Support Ltd,Home Care - Private Contractors Payment,734.99,0.00,COMMERCIAL SUPPLIER ,,
 22-10-2021,Adults,Beechcourt Care Centre - Bondcare,Nursing Care Income,735.49,0.00,COMMERCIAL SUPPLIER ,,
 22-10-2021,Adults,Chosen Care Group Ltd,Supported Other Accommodation - Private Contractors Payment,735.80,0.00,COMMERCIAL SUPPLIER ,,
 22-10-2021,Adults,Home Sweet Home Care Ltd,Home Care - Private Contractors Payment,738.09,0.00,COMMERCIAL SUPPLIER ,,
 27-10-2021,Adults,Lodge Group Care UK Ltd,Home Care - Private Contractors Payment,738.09,0.00,COMMERCIAL SUPPLIER ,,
 27-10-2021,Adults,Morepower Ltd t/a Aqs Homecare,Home Care - Private Contractors Payment,738.71,0.00,COMMERCIAL SUPPLIER ,,
 21-10-2021,Adults,Allied Health Services Ltd,Home Care - Private Contractors Payment,739.02,0.00,COMMERCIAL SUPPLIER ,,
 20-10-2021,Adults,Matrix SCM Ltd,Agency Staff,740.04,0.00,COMMERCIAL SUPPLIER ,,
 14-10-2021,Adults,Prestige Care & Support Ltd,Home Care - Private Contractors Payment,740.56,0.00,COMMERCIAL SUPPLIER ,,
 04-10-2021,Adults,Lodge Group Care UK Ltd,Home Care - Private Contractors Payment,741.03,0.00,COMMERCIAL SUPPLIER ,,
 21-10-2021,Adults,Allied Health Services Ltd,Home Care - Private Contractors Payment,741.18,0.00,COMMERCIAL SUPPLIER ,,
 27-10-2021,Adults,Lodge Group Care UK Ltd,Home Care - Private Contractors Payment,742.42,0.00,COMMERCIAL SUPPLIER ,,
 22-10-2021,Adults,DMP Healthcare (Heatherbrook) Ltd,Nursing Homes - Private Contractors Payment,743.20,0.00,NON COMMERCIAL SUPPLIER ,,
 27-10-2021,Adults,Lodge Group Care UK Ltd,Home Care - Private Contractors Payment,743.35,0.00,COMMERCIAL SUPPLIER ,,
 04-10-2021,Adults,Quality Healthcare Solutions Ltd t/a Kare Plus Romford,Home Care - Private Contractors Payment,743.66,0.00,COMMERCIAL SUPPLIER ,,
 22-10-2021,Adults,DMP Healthcare (Heatherbrook) Ltd,Nursing Homes - Private Contractors Payment,744.00,0.00,NON COMMERCIAL SUPPLIER ,,
 14-10-2021,Adults,Prestige Care & Support Ltd,Home Care - Private Contractors Payment,744.59,0.00,COMMERCIAL SUPPLIER ,,
 14-10-2021,Adults,Prestige Care & Support Ltd,Home Care - Private Contractors Payment,744.90,0.00,COMMERCIAL SUPPLIER ,,
 22-10-2021,Adults,Home Sweet Home Care Ltd,Home Care - Private Contractors Payment,744.90,0.00,COMMERCIAL SUPPLIER ,,
 27-10-2021,Adults,Lodge Group Care UK Ltd,Home Care - Private Contractors Payment,745.83,0.00,COMMERCIAL SUPPLIER ,,
 26-10-2021,Adults,Homestead Care Service,Home Care - Private Contractors Payment,746.76,0.00,COMMERCIAL SUPPLIER ,,
 26-10-2021,Adults,Homestead Care Service,Home Care - Private Contractors Payment,747.37,0.00,COMMERCIAL SUPPLIER ,,
 13-10-2021,Adults,Matrix SCM Ltd,Agency Staff,747.71,0.00,COMMERCIAL SUPPLIER ,,
 27-10-2021,Adults,Matrix SCM Ltd,Agency Staff,747.71,0.00,COMMERCIAL SUPPLIER ,,
 01-10-2021,Adults,Home Sweet Home Care Ltd,Home Care - Private Contractors Payment,748.30,0.00,COMMERCIAL SUPPLIER ,,
 21-10-2021,Adults,Quality Healthcare Solutions Ltd t/a Kare Plus Romford,Home Care - Private Contractors Payment,748.30,0.00,COMMERCIAL SUPPLIER ,,
 21-10-2021,Adults,Allied Health Services Ltd,Home Care - Private Contractors Payment,748.92,0.00,COMMERCIAL SUPPLIER ,,
 15-10-2021,Adults,Anytime Care 2020_a,Home Care - Private Contractors Payment,749.10,0.00,COMMERCIAL SUPPLIER ,,
 22-10-2021,Adults,Home Sweet Home Care Ltd,Home Care - Private Contractors Payment,750.47,0.00,COMMERCIAL SUPPLIER ,,
 26-10-2021,Adults,Homestead Care Service,Home Care - Private Contractors Payment,750.47,0.00,COMMERCIAL SUPPLIER ,,
 01-10-2021,Adults,Home Sweet Home Care Ltd,Home Care - Private Contractors Payment,752.02,0.00,COMMERCIAL SUPPLIER ,,
 21-10-2021,Adults,Quality Healthcare Solutions Ltd t/a Kare Plus Romford,Home Care - Private Contractors Payment,752.02,0.00,COMMERCIAL SUPPLIER ,,
 11-10-2021,Adults,Outreach Support Services Ltd,Home Care - Private Contractors Payment,752.33,0.00,COMMERCIAL SUPPLIER ,,
 11-10-2021,Adults,Outreach Support Services Ltd,Home Care - Private Contractors Payment,752.33,0.00,COMMERCIAL SUPPLIER ,,
 11-10-2021,Adults,Outreach Support Services Ltd,Home Care - Private Contractors Payment,752.33,0.00,COMMERCIAL SUPPLIER ,,
 22-10-2021,Adults,Prior Care Ltd_a,Home Care - Private Contractors Payment,752.50,0.00,COMMERCIAL SUPPLIER ,,
 04-10-2021,Adults,Lodge Group Care UK Ltd,Home Care - Private Contractors Payment,753.26,0.00,COMMERCIAL SUPPLIER ,,
 21-10-2021,Adults,Quality Healthcare Solutions Ltd t/a Kare Plus Romford,Home Care - Private Contractors Payment,753.88,0.00,COMMERCIAL SUPPLIER ,,
 27-10-2021,Adults,Morepower Ltd t/a Aqs Homecare,Home Care - Private Contractors Payment,753.88,0.00,COMMERCIAL SUPPLIER ,,
 15-10-2021,Adults,Anytime Care 2020_a,Home Care - Private Contractors Payment,754.03,0.00,COMMERCIAL SUPPLIER ,,
 04-10-2021,Adults,Lodge Group Care UK Ltd,Home Care - Private Contractors Payment,754.19,0.00,COMMERCIAL SUPPLIER ,,
 22-10-2021,Adults,Home Sweet Home Care Ltd,Home Care - Private Contractors Payment,754.19,0.00,COMMERCIAL SUPPLIER ,,
 27-10-2021,Adults,Morepower Ltd t/a Aqs Homecare,Home Care - Private Contractors Payment,754.19,0.00,COMMERCIAL SUPPLIER ,,
 27-10-2021,Adults,Morepower Ltd t/a Aqs Homecare,Home Care - Private Contractors Payment,754.19,0.00,COMMERCIAL SUPPLIER ,,
 01-10-2021,Adults,Home Sweet Home Care Ltd,Home Care - Private Contractors Payment,754.80,0.00,COMMERCIAL SUPPLIER ,,
 27-10-2021,Adults,Lodge Group Care UK Ltd,Home Care - Private Contractors Payment,755.27,0.00,COMMERCIAL SUPPLIER ,,
 14-10-2021,Adults,Prestige Care & Support Ltd,Home Care - Private Contractors Payment,755.90,0.00,COMMERCIAL SUPPLIER ,,
 20-10-2021,Adults,Matrix SCM Ltd,Agency Staff,756.78,0.00,COMMERCIAL SUPPLIER ,,
 27-10-2021,Adults,Matrix SCM Ltd,Agency Staff,756.79,0.00,COMMERCIAL SUPPLIER ,,
 27-10-2021,Adults,Lodge Group Care UK Ltd,Home Care - Private Contractors Payment,756.97,0.00,COMMERCIAL SUPPLIER ,,
 22-10-2021,Adults,Home Sweet Home Care Ltd,Home Care - Private Contractors Payment,758.21,0.00,COMMERCIAL SUPPLIER ,,
 27-10-2021,Adults,Lodge Group Care UK Ltd,Home Care - Private Contractors Payment,758.83,0.00,COMMERCIAL SUPPLIER ,,
 04-10-2021,Adults,Quality Healthcare Solutions Ltd t/a Kare Plus Romford,Home Care - Private Contractors Payment,761.78,0.00,COMMERCIAL SUPPLIER ,,
 01-10-2021,Adults,Home Sweet Home Care Ltd,Home Care - Private Contractors Payment,762.85,0.00,COMMERCIAL SUPPLIER ,,
 01-10-2021,Adults,Home Sweet Home Care Ltd,Home Care - Private Contractors Payment,764.71,0.00,COMMERCIAL SUPPLIER ,,
 04-10-2021,Adults,Lodge Group Care UK Ltd,Home Care - Private Contractors Payment,765.33,0.00,COMMERCIAL SUPPLIER ,,
 05-10-2021,Adults,Prior Care Ltd_a,Home Care - Private Contractors Payment,765.33,0.00,COMMERCIAL SUPPLIER ,,
 12-10-2021,Adults,Care-Away Ltd T/A Care Support,Home Care - Private Contractors Payment,765.44,0.00,COMMERCIAL SUPPLIER ,,
 04-10-2021,Adults,Cera Care Operations Ltd,Home Care - Private Contractors Payment,765.64,0.00,COMMERCIAL SUPPLIER ,,
 04-10-2021,Adults,Lodge Group Care UK Ltd,Home Care - Private Contractors Payment,765.95,0.00,COMMERCIAL SUPPLIER ,,
 14-10-2021,Adults,John Stanleys Care Agency Ltd,Home Care - Private Contractors Payment,766.26,0.00,COMMERCIAL SUPPLIER ,,
 26-10-2021,Adults,Homestead Care Service,Home Care - Private Contractors Payment,767.19,0.00,COMMERCIAL SUPPLIER ,,
 22-10-2021,Adults,Home Sweet Home Care Ltd,Home Care - Private Contractors Payment,767.81,0.00,COMMERCIAL SUPPLIER ,,
 22-10-2021,Adults,Home Sweet Home Care Ltd,Home Care - Private Contractors Payment,767.81,0.00,COMMERCIAL SUPPLIER ,,
 10-10-2021,Adults,Hospiva Care & Associates Agency Ltd_a,Home Care - Private Contractors Payment,769.36,0.00,COMMERCIAL SUPPLIER ,,
 04-10-2021,Adults,Lodge Group Care UK Ltd,Home Care - Private Contractors Payment,770.59,0.00,COMMERCIAL SUPPLIER ,,
 22-10-2021,Adults,Chosen Care Group Ltd,Supported Other Accommodation - Private Contractors Payment,772.96,0.00,COMMERCIAL SUPPLIER ,,
 04-10-2021,Adults,Lodge Group Care UK Ltd,Home Care - Private Contractors Payment,773.07,0.00,COMMERCIAL SUPPLIER ,,
 26-10-2021,Adults,Homestead Care Service,Home Care - Private Contractors Payment,773.38,0.00,COMMERCIAL SUPPLIER ,,
 12-10-2021,Adults,Care-Away Ltd T/A Care Support,Home Care - Private Contractors Payment,773.76,0.00,COMMERCIAL SUPPLIER ,,
 01-10-2021,Adults,Home Sweet Home Care Ltd,Home Care - Private Contractors Payment,774.62,0.00,COMMERCIAL SUPPLIER ,,
 04-10-2021,Adults,Lodge Group Care UK Ltd,Home Care - Private Contractors Payment,776.64,0.00,COMMERCIAL SUPPLIER ,,
 01-10-2021,Adults,Home Sweet Home Care Ltd,Home Care - Private Contractors Payment,777.10,0.00,COMMERCIAL SUPPLIER ,,
 21-10-2021,Adults,Allied Health Services Ltd,Home Care - Private Contractors Payment,778.02,0.00,COMMERCIAL SUPPLIER ,,
 27-10-2021,Adults,Morepower Ltd t/a Aqs Homecare,Home Care - Private Contractors Payment,778.02,0.00,COMMERCIAL SUPPLIER ,,
 22-10-2021,Adults,Brandon House,Residential Placements - Private Contractors Payment,779.04,0.00,COMMERCIAL SUPPLIER ,,
 01-10-2021,Adults,Home Sweet Home Care Ltd,Home Care - Private Contractors Payment,779.26,0.00,COMMERCIAL SUPPLIER ,,
 11-10-2021,Adults,Outreach Support Services Ltd,Home Care - Private Contractors Payment,780.19,0.00,COMMERCIAL SUPPLIER ,,
 11-10-2021,Adults,Outreach Support Services Ltd,Home Care - Private Contractors Payment,780.19,0.00,COMMERCIAL SUPPLIER ,,
 19-10-2021,Adults,Rosemont Care Limited,Home Care - Private Contractors Payment,780.19,0.00,COMMERCIAL SUPPLIER ,,
 19-10-2021,Adults,Rosemont Care Limited,Home Care - Private Contractors Payment,780.19,0.00,COMMERCIAL SUPPLIER ,,
 18-10-2021,Adults,London Care Plc_a,Home Care - Private Contractors Payment,780.81,0.00,COMMERCIAL SUPPLIER ,,
 01-10-2021,Adults,Home Sweet Home Care Ltd,Home Care - Private Contractors Payment,781.12,0.00,COMMERCIAL SUPPLIER ,,
 26-10-2021,Adults,Homestead Care Service,Home Care - Private Contractors Payment,782.05,0.00,COMMERCIAL SUPPLIER ,,
 21-10-2021,Adults,Quality Healthcare Solutions Ltd t/a Kare Plus Romford,Home Care - Private Contractors Payment,782.36,0.00,COMMERCIAL SUPPLIER ,,
 27-10-2021,Adults,Lodge Group Care UK Ltd,Home Care - Private Contractors Payment,782.54,0.00,COMMERCIAL SUPPLIER ,,
 14-10-2021,Adults,Prestige Care & Support Ltd,Home Care - Private Contractors Payment,782.67,0.00,COMMERCIAL SUPPLIER ,,
 26-10-2021,Adults,Homestead Care Service,Home Care - Private Contractors Payment,782.67,0.00,COMMERCIAL SUPPLIER ,,
 26-10-2021,Adults,Homestead Care Service,Home Care - Private Contractors Payment,782.98,0.00,COMMERCIAL SUPPLIER ,,
 26-10-2021,Adults,Homestead Care Service,Home Care - Private Contractors Payment,784.53,0.00,COMMERCIAL SUPPLIER ,,
 21-10-2021,Adults,Quality Healthcare Solutions Ltd t/a Kare Plus Romford,Home Care - Private Contractors Payment,785.15,0.00,COMMERCIAL SUPPLIER ,,
 26-10-2021,Adults,Homestead Care Service,Home Care - Private Contractors Payment,785.76,0.00,COMMERCIAL SUPPLIER ,,
 26-10-2021,Adults,Homestead Care Service,Home Care - Private Contractors Payment,786.07,0.00,COMMERCIAL SUPPLIER ,,
 26-10-2021,Adults,Homestead Care Service,Home Care - Private Contractors Payment,787.62,0.00,COMMERCIAL SUPPLIER ,,
 26-10-2021,Adults,Homestead Care Service,Home Care - Private Contractors Payment,787.93,0.00,COMMERCIAL SUPPLIER ,,
 27-10-2021,Adults,Lodge Group Care UK Ltd,Home Care - Private Contractors Payment,788.55,0.00,COMMERCIAL SUPPLIER ,,
 18-10-2021,Adults,Home Support Services (Havering & Essex) Ltd,Home Care - Private Contractors Payment,788.72,0.00,COMMERCIAL SUPPLIER ,,
 14-10-2021,Adults,John Stanleys Care Agency Ltd,Home Care - Private Contractors Payment,788.86,0.00,COMMERCIAL SUPPLIER ,,
 22-10-2021,Adults,Home Sweet Home Care Ltd,Home Care - Private Contractors Payment,789.17,0.00,COMMERCIAL SUPPLIER ,,
 04-10-2021,Adults,Lodge Group Care UK Ltd,Home Care - Private Contractors Payment,789.48,0.00,COMMERCIAL SUPPLIER ,,
 27-10-2021,Adults,Lodge Group Care UK Ltd,Home Care - Private Contractors Payment,789.48,0.00,COMMERCIAL SUPPLIER ,,
 26-10-2021,Adults,Homestead Care Service,Home Care - Private Contractors Payment,790.41,0.00,COMMERCIAL SUPPLIER ,,
 20-10-2021,Adults,Matrix SCM Ltd,Agency Staff,790.59,0.00,COMMERCIAL SUPPLIER ,,
 20-10-2021,Adults,Cera Care Operations Ltd,Home Care - Private Contractors Payment,791.83,0.00,COMMERCIAL SUPPLIER ,,
 18-10-2021,Adults,Home Support Services (Havering & Essex) Ltd,Home Care - Private Contractors Payment,792.44,0.00,COMMERCIAL SUPPLIER ,,
 26-10-2021,Adults,Homestead Care Service,Home Care - Private Contractors Payment,792.89,0.00,COMMERCIAL SUPPLIER ,,
 04-10-2021,Adults,Lodge Group Care UK Ltd,Home Care - Private Contractors Payment,793.81,0.00,COMMERCIAL SUPPLIER ,,
 04-10-2021,Adults,Lodge Group Care UK Ltd,Home Care - Private Contractors Payment,794.29,0.00,COMMERCIAL SUPPLIER ,,
 04-10-2021,Adults,Lodge Group Care UK Ltd,Home Care - Private Contractors Payment,796.46,0.00,COMMERCIAL SUPPLIER ,,
 18-10-2021,Adults,Home Support Services (Havering & Essex) Ltd,Home Care - Private Contractors Payment,797.07,0.00,COMMERCIAL SUPPLIER ,,
 20-10-2021,Adults,Cera Care Operations Ltd,Home Care - Private Contractors Payment,797.41,0.00,COMMERCIAL SUPPLIER ,,
 11-10-2021,Adults,Care-Away Ltd T/A Care Support,Home Care - Private Contractors Payment,798.72,0.00,COMMERCIAL SUPPLIER ,,
 11-10-2021,Adults,Care-Away Ltd T/A Care Support,Home Care - Private Contractors Payment,798.72,0.00,COMMERCIAL SUPPLIER ,,
 22-10-2021,Adults,Prior Care Ltd_a,Home Care - Private Contractors Payment,798.77,0.00,COMMERCIAL SUPPLIER ,,
 22-10-2021,Adults,Home Sweet Home Care Ltd,Home Care - Private Contractors Payment,798.77,0.00,COMMERCIAL SUPPLIER ,,
 26-10-2021,Adults,Homestead Care Service,Home Care - Private Contractors Payment,798.77,0.00,COMMERCIAL SUPPLIER ,,
 08-10-2021,Adults,Havering Care Homes Ltd t/a Abbscross Nursing Home,Other Short Term Support,800.00,0.00,COMMERCIAL SUPPLIER ,,
 08-10-2021,Adults,Langley House,Other Short Term Support,800.00,0.00,COMMERCIAL SUPPLIER ,,
 08-10-2021,Adults,Havering Care Homes Ltd t/a Upminster Nursing Home,Other Short Term Support,800.00,0.00,COMMERCIAL SUPPLIER ,,
 08-10-2021,Adults,Ebury Court_a,Other Short Term Support,800.00,0.00,COMMERCIAL SUPPLIER ,,
 08-10-2021,Adults,May Residential Homes Ltd,Other Short Term Support,800.00,0.00,COMMERCIAL SUPPLIER ,,
 08-10-2021,Adults,Ash Grove Residential Care Home,Other Short Term Support,800.00,0.00,COMMERCIAL SUPPLIER ,,
 08-10-2021,Adults,Priory Supporting Care Ltd,Other Short Term Support,800.00,0.00,COMMERCIAL SUPPLIER ,,
 11-10-2021,Adults,DMP Healthcare (Heatherbrook) Ltd,Other Short Term Support,800.00,0.00,NON COMMERCIAL SUPPLIER ,,
 12-10-2021,Adults,R G Care Ltd ,Daycare - Private Contractors Payment,800.00,0.00,COMMERCIAL SUPPLIER ,,
 12-10-2021,Adults,Oaks Residential Home,Other Short Term Support,800.00,0.00,COMMERCIAL SUPPLIER ,,
 12-10-2021,Adults,Nightingale Residential Care Home Ltd,Other Short Term Support,800.00,0.00,COMMERCIAL SUPPLIER ,,
 12-10-2021,Adults,Highfield Care Homes Ltd t/a Romford Grange Care Home,Other Short Term Support,800.00,0.00,COMMERCIAL SUPPLIER ,,
 12-10-2021,Adults,Meadowbanks,Other Short Term Support,800.00,0.00,COMMERCIAL SUPPLIER ,,
 12-10-2021,Adults,Masumin Ltd t/s Abbeleigh House,Other Short Term Support,800.00,0.00,COMMERCIAL SUPPLIER ,,
 15-10-2021,Adults,Ladyville Lodge_a,Other Short Term Support,800.00,0.00,COMMERCIAL SUPPLIER ,,
 26-10-2021,Adults,Homestead Care Service,Home Care - Private Contractors Payment,800.32,0.00,COMMERCIAL SUPPLIER ,,
 22-10-2021,Adults,Bondcare (London) Ltd ,Nursing Homes - Private Contractors Payment,800.57,0.00,COMMERCIAL SUPPLIER ,,
 22-10-2021,Adults,Bondcare (London) Ltd ,Nursing Homes - Private Contractors Payment,800.57,0.00,COMMERCIAL SUPPLIER ,,
 26-10-2021,Adults,Homestead Care Service,Home Care - Private Contractors Payment,800.63,0.00,COMMERCIAL SUPPLIER ,,
 22-10-2021,Adults,Home Sweet Home Care Ltd,Home Care - Private Contractors Payment,802.79,0.00,COMMERCIAL SUPPLIER ,,
 21-10-2021,Adults,Quality Healthcare Solutions Ltd t/a Kare Plus Romford,Home Care - Private Contractors Payment,803.10,0.00,COMMERCIAL SUPPLIER ,,
 27-10-2021,Adults,Lodge Group Care UK Ltd,Home Care - Private Contractors Payment,804.65,0.00,COMMERCIAL SUPPLIER ,,
 22-10-2021,Adults,Prior Care Ltd_a,Home Care - Private Contractors Payment,807.61,0.00,COMMERCIAL SUPPLIER ,,
 22-10-2021,Adults,Home Sweet Home Care Ltd,Home Care - Private Contractors Payment,808.37,0.00,COMMERCIAL SUPPLIER ,,
 15-10-2021,Adults,Anytime Care 2020_a,Home Care - Private Contractors Payment,809.14,0.00,COMMERCIAL SUPPLIER ,,
 27-10-2021,Adults,Morepower Ltd t/a Aqs Homecare,Home Care - Private Contractors Payment,809.29,0.00,COMMERCIAL SUPPLIER ,,
 27-10-2021,Adults,Morepower Ltd t/a Aqs Homecare,Home Care - Private Contractors Payment,811.46,0.00,COMMERCIAL SUPPLIER ,,
 27-10-2021,Adults,Morepower Ltd t/a Aqs Homecare,Home Care - Private Contractors Payment,811.46,0.00,COMMERCIAL SUPPLIER ,,
 22-10-2021,Adults,Prior Care Ltd_a,Home Care - Private Contractors Payment,812.08,0.00,COMMERCIAL SUPPLIER ,,
 04-10-2021,Adults,Lodge Group Care UK Ltd,Home Care - Private Contractors Payment,812.39,0.00,COMMERCIAL SUPPLIER ,,
 04-10-2021,Adults,Lodge Group Care UK Ltd,Home Care - Private Contractors Payment,812.39,0.00,COMMERCIAL SUPPLIER ,,
 22-10-2021,Adults,Barchester Healthcare Ltd - Park View Care Home,Nursing Homes - Private Contractors Payment,812.97,0.00,COMMERCIAL SUPPLIER ,,
 26-10-2021,Adults,Homestead Care Service,Home Care - Private Contractors Payment,813.32,0.00,COMMERCIAL SUPPLIER ,,
 22-10-2021,Adults,Topaz Care and Support Co Ltd,Supported Other Accommodation - Private Contractors Payment,813.52,0.00,COMMERCIAL SUPPLIER ,,
 27-10-2021,Adults,Lodge Group Care UK Ltd,Home Care - Private Contractors Payment,814.56,0.00,COMMERCIAL SUPPLIER ,,
 18-10-2021,Adults,Home Support Services (Havering & Essex) Ltd,Home Care - Private Contractors Payment,815.04,0.00,COMMERCIAL SUPPLIER ,,
 20-10-2021,Adults,Cera Care Operations Ltd,Home Care - Private Contractors Payment,815.49,0.00,COMMERCIAL SUPPLIER ,,
 21-10-2021,Adults,Quality Healthcare Solutions Ltd t/a Kare Plus Romford,Home Care - Private Contractors Payment,815.80,0.00,COMMERCIAL SUPPLIER ,,
 26-10-2021,Adults,Homestead Care Service,Home Care - Private Contractors Payment,816.11,0.00,COMMERCIAL SUPPLIER ,,
 13-10-2021,Adults,Matrix SCM Ltd,Agency Staff,816.54,0.00,COMMERCIAL SUPPLIER ,,
 04-10-2021,Adults,Cera Care Operations Ltd,Home Care - Private Contractors Payment,816.60,0.00,COMMERCIAL SUPPLIER ,,
 04-10-2021,Adults,Lodge Group Care UK Ltd,Home Care - Private Contractors Payment,817.96,0.00,COMMERCIAL SUPPLIER ,,
 22-10-2021,Adults,Home Sweet Home Care Ltd,Home Care - Private Contractors Payment,817.96,0.00,COMMERCIAL SUPPLIER ,,
 18-10-2021,Adults,Home Support Services (Havering & Essex) Ltd,Home Care - Private Contractors Payment,819.06,0.00,COMMERCIAL SUPPLIER ,,
 27-10-2021,Adults,Lodge Group Care UK Ltd,Home Care - Private Contractors Payment,819.20,0.00,COMMERCIAL SUPPLIER ,,
 04-10-2021,Adults,Quality Healthcare Solutions Ltd t/a Kare Plus Romford,Home Care - Private Contractors Payment,819.51,0.00,COMMERCIAL SUPPLIER ,,
 26-10-2021,Adults,Homestead Care Service,Home Care - Private Contractors Payment,819.51,0.00,COMMERCIAL SUPPLIER ,,
 14-10-2021,Adults,Prestige Care & Support Ltd,Home Care - Private Contractors Payment,821.06,0.00,COMMERCIAL SUPPLIER ,,
 26-10-2021,Adults,Homestead Care Service,Home Care - Private Contractors Payment,821.37,0.00,COMMERCIAL SUPPLIER ,,
 22-10-2021,Adults,Home Sweet Home Care Ltd,Home Care - Private Contractors Payment,821.99,0.00,COMMERCIAL SUPPLIER ,,
 26-10-2021,Adults,Homestead Care Service,Home Care - Private Contractors Payment,822.30,0.00,COMMERCIAL SUPPLIER ,,
 18-10-2021,Adults,Home Support Services (Havering & Essex) Ltd,Home Care - Private Contractors Payment,822.50,0.00,COMMERCIAL SUPPLIER ,,
 27-10-2021,Adults,Lodge Group Care UK Ltd,Home Care - Private Contractors Payment,822.79,0.00,COMMERCIAL SUPPLIER ,,
 22-10-2021,Adults,Prior Care Ltd_a,Home Care - Private Contractors Payment,822.92,0.00,COMMERCIAL SUPPLIER ,,
 26-10-2021,Adults,Homestead Care Service,Home Care - Private Contractors Payment,822.92,0.00,COMMERCIAL SUPPLIER ,,
 04-10-2021,Adults,Cera Care Operations Ltd,Home Care - Private Contractors Payment,823.23,0.00,COMMERCIAL SUPPLIER ,,
 14-10-2021,Adults,Lakefield Enterprises Ltd t/a R J Bowyer Building Services,"Maintenance - Equipment, Furniture And Materials",825.00,0.00,COMMERCIAL SUPPLIER ,,
 15-10-2021,Adults,Anytime Care 2020_a,Home Care - Private Contractors Payment,825.25,0.00,COMMERCIAL SUPPLIER ,,
 04-10-2021,Adults,Cera Care Operations Ltd,Home Care - Private Contractors Payment,825.27,0.00,COMMERCIAL SUPPLIER ,,
 14-10-2021,Adults,John Stanleys Care Agency Ltd,Home Care - Private Contractors Payment,826.32,0.00,COMMERCIAL SUPPLIER ,,
 26-10-2021,Adults,Homestead Care Service,Home Care - Private Contractors Payment,827.87,0.00,COMMERCIAL SUPPLIER ,,
 27-10-2021,Adults,Lodge Group Care UK Ltd,Home Care - Private Contractors Payment,829.61,0.00,COMMERCIAL SUPPLIER ,,
 04-10-2021,Adults,Lodge Group Care UK Ltd,Home Care - Private Contractors Payment,829.73,0.00,COMMERCIAL SUPPLIER ,,
 14-10-2021,Adults,John Stanleys Care Agency Ltd,Home Care - Private Contractors Payment,830.04,0.00,COMMERCIAL SUPPLIER ,,
 27-10-2021,Adults,Morepower Ltd t/a Aqs Homecare,Home Care - Private Contractors Payment,830.35,0.00,COMMERCIAL SUPPLIER ,,
 26-10-2021,Adults,Homestead Care Service,Home Care - Private Contractors Payment,832.20,0.00,COMMERCIAL SUPPLIER ,,
 22-10-2021,Adults,Chosen Care Group Ltd,Supported Other Accommodation - Private Contractors Payment,832.52,0.00,COMMERCIAL SUPPLIER ,,
 22-10-2021,Adults,Chosen Care Group Ltd,Supported Other Accommodation - Private Contractors Payment,832.52,0.00,COMMERCIAL SUPPLIER ,,
 22-10-2021,Adults,Chosen Care Group Ltd,Supported Other Accommodation - Private Contractors Payment,832.52,0.00,COMMERCIAL SUPPLIER ,,
 22-10-2021,Adults,Chosen Care Group Ltd,Supported Other Accommodation - Private Contractors Payment,832.52,0.00,COMMERCIAL SUPPLIER ,,
 04-10-2021,Adults,Lodge Group Care UK Ltd,Home Care - Private Contractors Payment,832.70,0.00,COMMERCIAL SUPPLIER ,,
 26-10-2021,Adults,Homestead Care Service,Home Care - Private Contractors Payment,832.82,0.00,COMMERCIAL SUPPLIER ,,
 27-10-2021,Adults,Morepower Ltd t/a Aqs Homecare,Home Care - Private Contractors Payment,833.44,0.00,COMMERCIAL SUPPLIER ,,
 22-10-2021,Adults,Genesis Residential Homes Ltd - Dothan House,Respite Care - Private Contractors Payment,834.29,0.00,COMMERCIAL SUPPLIER ,,
 15-10-2021,Adults,Anytime Care 2020_a,Home Care - Private Contractors Payment,834.37,0.00,COMMERCIAL SUPPLIER ,,
 26-10-2021,Adults,Homestead Care Service,Home Care - Private Contractors Payment,835.61,0.00,COMMERCIAL SUPPLIER ,,
 06-10-2021,Adults,Matrix SCM Ltd,Agency Staff,835.92,0.00,COMMERCIAL SUPPLIER ,,
 13-10-2021,Adults,Matrix SCM Ltd,Agency Staff,835.92,0.00,COMMERCIAL SUPPLIER ,,
 20-10-2021,Adults,Matrix SCM Ltd,Agency Staff,835.92,0.00,COMMERCIAL SUPPLIER ,,
 22-10-2021,Adults,Home Sweet Home Care Ltd,Home Care - Private Contractors Payment,836.23,0.00,COMMERCIAL SUPPLIER ,,
 27-10-2021,Adults,Morepower Ltd t/a Aqs Homecare,Home Care - Private Contractors Payment,837.47,0.00,COMMERCIAL SUPPLIER ,,
 04-10-2021,Adults,Cera Care Operations Ltd,Home Care - Private Contractors Payment,837.96,0.00,COMMERCIAL SUPPLIER ,,
 04-10-2021,Adults,Lodge Group Care UK Ltd,Home Care - Private Contractors Payment,838.09,0.00,COMMERCIAL SUPPLIER ,,
 20-10-2021,Adults,Cera Care Operations Ltd,Home Care - Private Contractors Payment,838.57,0.00,COMMERCIAL SUPPLIER ,,
 26-10-2021,Adults,Homestead Care Service,Home Care - Private Contractors Payment,839.94,0.00,COMMERCIAL SUPPLIER ,,
 26-10-2021,Adults,Homestead Care Service,Home Care - Private Contractors Payment,840.25,0.00,COMMERCIAL SUPPLIER ,,
 04-10-2021,Adults,Quality Healthcare Solutions Ltd t/a Kare Plus Romford,Home Care - Private Contractors Payment,840.56,0.00,COMMERCIAL SUPPLIER ,,
 04-10-2021,Adults,Lodge Group Care UK Ltd,Home Care - Private Contractors Payment,840.56,0.00,COMMERCIAL SUPPLIER ,,
 14-10-2021,Adults,John Stanleys Care Agency Ltd,Home Care - Private Contractors Payment,840.87,0.00,COMMERCIAL SUPPLIER ,,
 04-10-2021,Adults,Quality Healthcare Solutions Ltd t/a Kare Plus Romford,Home Care - Private Contractors Payment,841.18,0.00,COMMERCIAL SUPPLIER ,,
 14-10-2021,Adults,Prestige Care & Support Ltd,Home Care - Private Contractors Payment,841.80,0.00,COMMERCIAL SUPPLIER ,,
 26-10-2021,Adults,Homestead Care Service,Home Care - Private Contractors Payment,842.11,0.00,COMMERCIAL SUPPLIER ,,
 04-10-2021,Adults,Lodge Group Care UK Ltd,Home Care - Private Contractors Payment,842.42,0.00,COMMERCIAL SUPPLIER ,,
 26-10-2021,Adults,Homestead Care Service,Home Care - Private Contractors Payment,842.42,0.00,COMMERCIAL SUPPLIER ,,
 04-10-2021,Adults,Lodge Group Care UK Ltd,Home Care - Private Contractors Payment,842.73,0.00,COMMERCIAL SUPPLIER ,,
 22-10-2021,Adults,Masumin Ltd t/s Abbeleigh House,Residential Placements - Private Contractors Payment,843.43,0.00,COMMERCIAL SUPPLIER ,,
 27-10-2021,Adults,Lodge Group Care UK Ltd,Home Care - Private Contractors Payment,843.84,0.00,COMMERCIAL SUPPLIER ,,
 26-10-2021,Adults,Homestead Care Service,Home Care - Private Contractors Payment,844.28,0.00,COMMERCIAL SUPPLIER ,,
 14-10-2021,Adults,Prestige Care & Support Ltd,Home Care - Private Contractors Payment,844.90,0.00,COMMERCIAL SUPPLIER ,,
 05-10-2021,Adults,Prior Care Ltd_a,Home Care - Private Contractors Payment,845.10,0.00,COMMERCIAL SUPPLIER ,,
 01-10-2021,Adults,Home Sweet Home Care Ltd,Home Care - Private Contractors Payment,845.21,0.00,COMMERCIAL SUPPLIER ,,
 27-10-2021,Adults,Lodge Group Care UK Ltd,Home Care - Private Contractors Payment,845.21,0.00,COMMERCIAL SUPPLIER ,,
 14-10-2021,Adults,Prestige Care & Support Ltd,Home Care - Private Contractors Payment,846.76,0.00,COMMERCIAL SUPPLIER ,,
 26-10-2021,Adults,Homestead Care Service,Home Care - Private Contractors Payment,846.76,0.00,COMMERCIAL SUPPLIER ,,
 15-10-2021,Adults,Anytime Care 2020_a,Home Care - Private Contractors Payment,847.07,0.00,COMMERCIAL SUPPLIER ,,
 06-10-2021,Adults,Matrix SCM Ltd,Agency Staff,847.12,0.00,COMMERCIAL SUPPLIER ,,
 06-10-2021,Adults,Matrix SCM Ltd,Agency Staff,847.12,0.00,COMMERCIAL SUPPLIER ,,
 13-10-2021,Adults,Matrix SCM Ltd,Agency Staff,847.12,0.00,COMMERCIAL SUPPLIER ,,
 20-10-2021,Adults,Matrix SCM Ltd,Agency Staff,847.12,0.00,COMMERCIAL SUPPLIER ,,
 27-10-2021,Adults,Matrix SCM Ltd,Agency Staff,847.12,0.00,COMMERCIAL SUPPLIER ,,
 22-10-2021,Adults,Chosen Care Group Ltd,Supported Other Accommodation - Private Contractors Payment,849.16,0.00,COMMERCIAL SUPPLIER ,,
 22-10-2021,Adults,Chosen Care Group Ltd,Supported Other Accommodation - Private Contractors Payment,849.16,0.00,COMMERCIAL SUPPLIER ,,
 22-10-2021,Adults,Chosen Care Group Ltd,Supported Other Accommodation - Private Contractors Payment,849.16,0.00,COMMERCIAL SUPPLIER ,,
 22-10-2021,Adults,Chosen Care Group Ltd,Supported Other Accommodation - Private Contractors Payment,849.16,0.00,COMMERCIAL SUPPLIER ,,
 22-10-2021,Adults,Chosen Care Group Ltd,Supported Other Accommodation - Private Contractors Payment,849.16,0.00,COMMERCIAL SUPPLIER ,,
 22-10-2021,Adults,Chosen Care Group Ltd,Supported Other Accommodation - Private Contractors Payment,849.16,0.00,COMMERCIAL SUPPLIER ,,
 22-10-2021,Adults,Chosen Care Group Ltd,Supported Other Accommodation - Private Contractors Payment,849.16,0.00,COMMERCIAL SUPPLIER ,,
 22-10-2021,Adults,Chosen Care Group Ltd,Supported Other Accommodation - Private Contractors Payment,849.16,0.00,COMMERCIAL SUPPLIER ,,
 26-10-2021,Adults,Homestead Care Service,Home Care - Private Contractors Payment,849.23,0.00,COMMERCIAL SUPPLIER ,,
 26-10-2021,Adults,Homestead Care Service,Home Care - Private Contractors Payment,849.54,0.00,COMMERCIAL SUPPLIER ,,
 26-10-2021,Adults,Homestead Care Service,Home Care - Private Contractors Payment,850.47,0.00,COMMERCIAL SUPPLIER ,,
 21-10-2021,Adults,Quality Healthcare Solutions Ltd t/a Kare Plus Romford,Home Care - Private Contractors Payment,851.09,0.00,COMMERCIAL SUPPLIER ,,
 04-10-2021,Adults,Lodge Group Care UK Ltd,Home Care - Private Contractors Payment,852.20,0.00,COMMERCIAL SUPPLIER ,,
 04-10-2021,Adults,Lodge Group Care UK Ltd,Home Care - Private Contractors Payment,852.50,0.00,COMMERCIAL SUPPLIER ,,
 27-10-2021,Adults,Matrix SCM Ltd,Agency Staff,853.44,0.00,COMMERCIAL SUPPLIER ,,
 01-10-2021,Adults,Home Sweet Home Care Ltd,Home Care - Private Contractors Payment,854.50,0.00,COMMERCIAL SUPPLIER ,,
 26-10-2021,Adults,Homestead Care Service,Home Care - Private Contractors Payment,858.21,0.00,COMMERCIAL SUPPLIER ,,
 11-10-2021,Adults,Eastway Care Ltd_a,Daycare - Private Contractors Payment,860.00,0.00,COMMERCIAL SUPPLIER ,,
 04-10-2021,Adults,Lodge Group Care UK Ltd,Home Care - Private Contractors Payment,861.47,0.00,COMMERCIAL SUPPLIER ,,
 04-10-2021,Adults,Lodge Group Care UK Ltd,Home Care - Private Contractors Payment,861.50,0.00,COMMERCIAL SUPPLIER ,,
 04-10-2021,Adults,Lodge Group Care UK Ltd,Home Care - Private Contractors Payment,861.62,0.00,COMMERCIAL SUPPLIER ,,
 22-10-2021,Adults,Chosen Care Group Ltd,Supported Other Accommodation - Private Contractors Payment,862.25,0.00,COMMERCIAL SUPPLIER ,,
 22-10-2021,Adults,Home Sweet Home Care Ltd,Home Care - Private Contractors Payment,862.55,0.00,COMMERCIAL SUPPLIER ,,
 04-10-2021,Adults,Lodge Group Care UK Ltd,Home Care - Private Contractors Payment,864.09,0.00,COMMERCIAL SUPPLIER ,,
 22-10-2021,Adults,Home Sweet Home Care Ltd,Home Care - Private Contractors Payment,864.09,0.00,COMMERCIAL SUPPLIER ,,
 04-10-2021,Adults,Lodge Group Care UK Ltd,Home Care - Private Contractors Payment,864.89,0.00,COMMERCIAL SUPPLIER ,,
 14-10-2021,Adults,Prestige Care & Support Ltd,Home Care - Private Contractors Payment,865.02,0.00,COMMERCIAL SUPPLIER ,,
 26-10-2021,Adults,Homestead Care Service,Home Care - Private Contractors Payment,865.95,0.00,COMMERCIAL SUPPLIER ,,
 04-10-2021,Adults,Quality Healthcare Solutions Ltd t/a Kare Plus Romford,Home Care - Private Contractors Payment,866.26,0.00,COMMERCIAL SUPPLIER ,,
 14-10-2021,Adults,Prestige Care & Support Ltd,Home Care - Private Contractors Payment,866.57,0.00,COMMERCIAL SUPPLIER ,,
 14-10-2021,Adults,Prestige Care & Support Ltd,Home Care - Private Contractors Payment,867.50,0.00,COMMERCIAL SUPPLIER ,,
 26-10-2021,Adults,Homestead Care Service,Home Care - Private Contractors Payment,868.12,0.00,COMMERCIAL SUPPLIER ,,
 27-10-2021,Adults,Lodge Group Care UK Ltd,Home Care - Private Contractors Payment,870.60,0.00,COMMERCIAL SUPPLIER ,,
 27-10-2021,Adults,Lodge Group Care UK Ltd,Home Care - Private Contractors Payment,871.83,0.00,COMMERCIAL SUPPLIER ,,
 27-10-2021,Adults,Lodge Group Care UK Ltd,Home Care - Private Contractors Payment,872.33,0.00,COMMERCIAL SUPPLIER ,,
 22-10-2021,Adults,Home Sweet Home Care Ltd,Home Care - Private Contractors Payment,872.45,0.00,COMMERCIAL SUPPLIER ,,
 14-10-2021,Adults,John Stanleys Care Agency Ltd,Home Care - Private Contractors Payment,873.38,0.00,COMMERCIAL SUPPLIER ,,
 14-10-2021,Adults,Prestige Care & Support Ltd,Home Care - Private Contractors Payment,873.69,0.00,COMMERCIAL SUPPLIER ,,
 22-10-2021,Adults,Outlook Care - 4 Peel Way,Supported Other Accommodation - Private Contractors Payment,873.92,0.00,COMMERCIAL SUPPLIER ,,
 22-10-2021,Adults,Home Sweet Home Care Ltd,Home Care - Private Contractors Payment,874.00,0.00,COMMERCIAL SUPPLIER ,,
 26-10-2021,Adults,Homestead Care Service,Home Care - Private Contractors Payment,874.00,0.00,COMMERCIAL SUPPLIER ,,
 04-10-2021,Adults,Quality Healthcare Solutions Ltd t/a Kare Plus Romford,Home Care - Private Contractors Payment,874.31,0.00,COMMERCIAL SUPPLIER ,,
 27-10-2021,Adults,Lodge Group Care UK Ltd,Home Care - Private Contractors Payment,875.74,0.00,COMMERCIAL SUPPLIER ,,
 27-10-2021,Adults,Lodge Group Care UK Ltd,Home Care - Private Contractors Payment,875.74,0.00,COMMERCIAL SUPPLIER ,,
 27-10-2021,Adults,Lodge Group Care UK Ltd,Home Care - Private Contractors Payment,876.04,0.00,COMMERCIAL SUPPLIER ,,
 26-10-2021,Adults,Homestead Care Service,Home Care - Private Contractors Payment,879.57,0.00,COMMERCIAL SUPPLIER ,,
 26-10-2021,Adults,Homestead Care Service,Home Care - Private Contractors Payment,879.57,0.00,COMMERCIAL SUPPLIER ,,
 12-10-2021,Adults,Tapestry_a.,Daycare - Private Contractors Payment,880.00,0.00,COMMERCIAL SUPPLIER ,,
 05-10-2021,Adults,Prior Care Ltd_a,Home Care - Private Contractors Payment,880.12,0.00,COMMERCIAL SUPPLIER ,,
 26-10-2021,Adults,Homestead Care Service,Home Care - Private Contractors Payment,882.05,0.00,COMMERCIAL SUPPLIER ,,
 20-10-2021,Adults,Matrix SCM Ltd,Agency Staff,883.92,0.00,COMMERCIAL SUPPLIER ,,
 26-10-2021,Adults,Homestead Care Service,Home Care - Private Contractors Payment,884.53,0.00,COMMERCIAL SUPPLIER ,,
 26-10-2021,Adults,Homestead Care Service,Home Care - Private Contractors Payment,884.53,0.00,COMMERCIAL SUPPLIER ,,
 04-10-2021,Adults,Lodge Group Care UK Ltd,Home Care - Private Contractors Payment,884.71,0.00,COMMERCIAL SUPPLIER ,,
 05-10-2021,Adults,Prior Care Ltd_a,Home Care - Private Contractors Payment,886.08,0.00,COMMERCIAL SUPPLIER ,,
 27-10-2021,Adults,Lodge Group Care UK Ltd,Home Care - Private Contractors Payment,886.69,0.00,COMMERCIAL SUPPLIER ,,
 26-10-2021,Adults,Homestead Care Service,Home Care - Private Contractors Payment,887.62,0.00,COMMERCIAL SUPPLIER ,,
 01-10-2021,Adults,Home Sweet Home Care Ltd,Home Care - Private Contractors Payment,888.24,0.00,COMMERCIAL SUPPLIER ,,
 01-10-2021,Adults,Home Sweet Home Care Ltd,Home Care - Private Contractors Payment,888.24,0.00,COMMERCIAL SUPPLIER ,,
 22-10-2021,Adults,Prior Care Ltd_a,Home Care - Private Contractors Payment,889.05,0.00,COMMERCIAL SUPPLIER ,,
 04-10-2021,Adults,Lodge Group Care UK Ltd,Home Care - Private Contractors Payment,889.17,0.00,COMMERCIAL SUPPLIER ,,
 04-10-2021,Adults,Lodge Group Care UK Ltd,Home Care - Private Contractors Payment,889.48,0.00,COMMERCIAL SUPPLIER ,,
 26-10-2021,Adults,Homestead Care Service,Home Care - Private Contractors Payment,889.48,0.00,COMMERCIAL SUPPLIER ,,
 04-10-2021,Adults,Lodge Group Care UK Ltd,Home Care - Private Contractors Payment,889.68,0.00,COMMERCIAL SUPPLIER ,,
 05-10-2021,Adults,Prior Care Ltd_a,Home Care - Private Contractors Payment,890.03,0.00,COMMERCIAL SUPPLIER ,,
 11-10-2021,Adults,Outreach Support Services Ltd,Home Care - Private Contractors Payment,891.65,0.00,COMMERCIAL SUPPLIER ,,
 11-10-2021,Adults,London Homecare Ltd,Home Care - Private Contractors Payment,891.65,0.00,COMMERCIAL SUPPLIER ,,
 11-10-2021,Adults,London Homecare Ltd,Home Care - Private Contractors Payment,891.65,0.00,COMMERCIAL SUPPLIER ,,
 14-10-2021,Adults,Passion Tree Care Services Ltd,Home Care - Private Contractors Payment,891.65,0.00,COMMERCIAL SUPPLIER ,,
 14-10-2021,Adults,Passion Tree Care Services Ltd,Home Care - Private Contractors Payment,891.65,0.00,COMMERCIAL SUPPLIER ,,
 22-10-2021,Adults,Home Sweet Home Care Ltd,Home Care - Private Contractors Payment,891.65,0.00,COMMERCIAL SUPPLIER ,,
 26-10-2021,Adults,Homestead Care Service,Home Care - Private Contractors Payment,891.65,0.00,COMMERCIAL SUPPLIER ,,
 27-10-2021,Adults,Lodge Group Care UK Ltd,Home Care - Private Contractors Payment,891.96,0.00,COMMERCIAL SUPPLIER ,,
 01-10-2021,Adults,Home Sweet Home Care Ltd,Home Care - Private Contractors Payment,893.20,0.00,COMMERCIAL SUPPLIER ,,
 18-10-2021,Adults,Home Support Services (Havering & Essex) Ltd,Home Care - Private Contractors Payment,893.20,0.00,COMMERCIAL SUPPLIER ,,
 04-10-2021,Adults,Lodge Group Care UK Ltd,Home Care - Private Contractors Payment,893.71,0.00,COMMERCIAL SUPPLIER ,,
 14-10-2021,Adults,John Stanleys Care Agency Ltd,Home Care - Private Contractors Payment,894.43,0.00,COMMERCIAL SUPPLIER ,,
 22-10-2021,Adults,Omega Elifar Ltd,Residential Placements - Private Contractors Payment,896.00,0.00,COMMERCIAL SUPPLIER ,,
 13-10-2021,Adults,Matrix SCM Ltd,Agency Staff,896.42,0.00,COMMERCIAL SUPPLIER ,,
 27-10-2021,Adults,Matrix SCM Ltd,Agency Staff,896.42,0.00,COMMERCIAL SUPPLIER ,,
 04-10-2021,Adults,Lodge Group Care UK Ltd,Home Care - Private Contractors Payment,896.60,0.00,COMMERCIAL SUPPLIER ,,
 22-10-2021,Adults,Home Sweet Home Care Ltd,Home Care - Private Contractors Payment,896.91,0.00,COMMERCIAL SUPPLIER ,,
 22-10-2021,Adults,Home Sweet Home Care Ltd,Home Care - Private Contractors Payment,896.91,0.00,COMMERCIAL SUPPLIER ,,
 20-10-2021,Adults,Cera Care Operations Ltd,Home Care - Private Contractors Payment,897.22,0.00,COMMERCIAL SUPPLIER ,,
 15-10-2021,Adults,Anytime Care 2020_a,Home Care - Private Contractors Payment,897.41,0.00,COMMERCIAL SUPPLIER ,,
 26-10-2021,Adults,Homestead Care Service,Home Care - Private Contractors Payment,897.53,0.00,COMMERCIAL SUPPLIER ,,
 27-10-2021,Adults,Lodge Group Care UK Ltd,Home Care - Private Contractors Payment,898.04,0.00,COMMERCIAL SUPPLIER ,,
 05-10-2021,Adults,Prior Care Ltd_a,Home Care - Private Contractors Payment,898.15,0.00,COMMERCIAL SUPPLIER ,,
 26-10-2021,Adults,Homestead Care Service,Home Care - Private Contractors Payment,898.15,0.00,COMMERCIAL SUPPLIER ,,
 22-10-2021,Adults,Prior Care Ltd_a,Home Care - Private Contractors Payment,898.46,0.00,COMMERCIAL SUPPLIER ,,
 22-10-2021,Adults,Prior Care Ltd_a,Home Care - Private Contractors Payment,899.26,0.00,COMMERCIAL SUPPLIER ,,
 22-10-2021,Adults,Home Sweet Home Care Ltd,Home Care - Private Contractors Payment,900.94,0.00,COMMERCIAL SUPPLIER ,,
 01-10-2021,Adults,Home Sweet Home Care Ltd,Home Care - Private Contractors Payment,902.79,0.00,COMMERCIAL SUPPLIER ,,
 26-10-2021,Adults,Homestead Care Service,Home Care - Private Contractors Payment,903.72,0.00,COMMERCIAL SUPPLIER ,,
 14-10-2021,Adults,Prestige Care & Support Ltd,Home Care - Private Contractors Payment,904.65,0.00,COMMERCIAL SUPPLIER ,,
 14-10-2021,Adults,John Stanleys Care Agency Ltd,Home Care - Private Contractors Payment,904.96,0.00,COMMERCIAL SUPPLIER ,,
 27-10-2021,Adults,Lodge Group Care UK Ltd,Home Care - Private Contractors Payment,904.96,0.00,COMMERCIAL SUPPLIER ,,
 04-10-2021,Adults,Lodge Group Care UK Ltd,Home Care - Private Contractors Payment,906.20,0.00,COMMERCIAL SUPPLIER ,,
 04-10-2021,Adults,Lodge Group Care UK Ltd,Home Care - Private Contractors Payment,907.44,0.00,COMMERCIAL SUPPLIER ,,
 26-10-2021,Adults,Homestead Care Service,Home Care - Private Contractors Payment,908.68,0.00,COMMERCIAL SUPPLIER ,,
 01-10-2021,Adults,Home Sweet Home Care Ltd,Home Care - Private Contractors Payment,909.91,0.00,COMMERCIAL SUPPLIER ,,
 26-10-2021,Adults,Homestead Care Service,Home Care - Private Contractors Payment,909.91,0.00,COMMERCIAL SUPPLIER ,,
 11-10-2021,Adults,Outreach Support Services Ltd,Home Care - Private Contractors Payment,910.22,0.00,COMMERCIAL SUPPLIER ,,
 12-10-2021,Adults,KJD Care Limited,Home Care - Private Contractors Payment,910.22,0.00,INDIVIDUALS ,,
 26-10-2021,Adults,Homestead Care Service,Home Care - Private Contractors Payment,912.08,0.00,COMMERCIAL SUPPLIER ,,
 04-10-2021,Adults,Lodge Group Care UK Ltd,Home Care - Private Contractors Payment,912.28,0.00,COMMERCIAL SUPPLIER ,,
 27-10-2021,Adults,Lodge Group Care UK Ltd,Home Care - Private Contractors Payment,912.90,0.00,COMMERCIAL SUPPLIER ,,
 26-10-2021,Adults,Homestead Care Service,Home Care - Private Contractors Payment,915.49,0.00,COMMERCIAL SUPPLIER ,,
 27-10-2021,Adults,Lodge Group Care UK Ltd,Home Care - Private Contractors Payment,915.69,0.00,COMMERCIAL SUPPLIER ,,
 18-10-2021,Adults,Home Support Services (Havering & Essex) Ltd,Home Care - Private Contractors Payment,915.80,0.00,COMMERCIAL SUPPLIER ,,
 25-10-2021,Adults,Westminster Homecare Ltd_a,Home Care - Private Contractors Payment,917.34,0.00,COMMERCIAL SUPPLIER ,,
 22-10-2021,Adults,2 Peel Way - Outlook Care,Home Care - Private Contractors Payment,918.00,0.00,NON COMMERCIAL SUPPLIER ,,
 26-10-2021,Adults,Homestead Care Service,Home Care - Private Contractors Payment,919.82,0.00,COMMERCIAL SUPPLIER ,,
 26-10-2021,Adults,Homestead Care Service,Home Care - Private Contractors Payment,920.44,0.00,COMMERCIAL SUPPLIER ,,
 27-10-2021,Adults,Lodge Group Care UK Ltd,Home Care - Private Contractors Payment,922.30,0.00,COMMERCIAL SUPPLIER ,,
 27-10-2021,Adults,Lodge Group Care UK Ltd,Home Care - Private Contractors Payment,922.61,0.00,COMMERCIAL SUPPLIER ,,
 05-10-2021,Adults,Prior Care Ltd_a,Home Care - Private Contractors Payment,923.12,0.00,COMMERCIAL SUPPLIER ,,
 26-10-2021,Adults,Homestead Care Service,Home Care - Private Contractors Payment,923.54,0.00,COMMERCIAL SUPPLIER ,,
 14-10-2021,Adults,Prestige Care & Support Ltd,Home Care - Private Contractors Payment,923.85,0.00,COMMERCIAL SUPPLIER ,,
 22-10-2021,Adults,Home Sweet Home Care Ltd,Home Care - Private Contractors Payment,928.49,0.00,COMMERCIAL SUPPLIER ,,
 11-10-2021,Adults,Outreach Support Services Ltd,Home Care - Private Contractors Payment,928.80,0.00,COMMERCIAL SUPPLIER ,,
 19-10-2021,Adults,Rosemont Care Limited,Home Care - Private Contractors Payment,928.80,0.00,COMMERCIAL SUPPLIER ,,
 04-10-2021,Adults,Cera Care Operations Ltd,Home Care - Private Contractors Payment,929.42,0.00,COMMERCIAL SUPPLIER ,,
 26-10-2021,Adults,Homestead Care Service,Home Care - Private Contractors Payment,929.73,0.00,COMMERCIAL SUPPLIER ,,
 04-10-2021,Adults,Lodge Group Care UK Ltd,Home Care - Private Contractors Payment,930.04,0.00,COMMERCIAL SUPPLIER ,,
 26-10-2021,Adults,Homestead Care Service,Home Care - Private Contractors Payment,930.97,0.00,COMMERCIAL SUPPLIER ,,
 01-10-2021,Adults,Home Sweet Home Care Ltd,Home Care - Private Contractors Payment,931.59,0.00,COMMERCIAL SUPPLIER ,,
 11-10-2021,Adults,Care-Away Ltd T/A Care Support,Home Care - Private Contractors Payment,931.84,0.00,COMMERCIAL SUPPLIER ,,
 12-10-2021,Adults,Care-Away Ltd T/A Care Support,Home Care - Private Contractors Payment,931.84,0.00,COMMERCIAL SUPPLIER ,,
 12-10-2021,Adults,Care-Away Ltd T/A Care Support,Home Care - Private Contractors Payment,931.84,0.00,COMMERCIAL SUPPLIER ,,
 13-10-2021,Adults,Care-Away Ltd T/A Care Support,Home Care - Private Contractors Payment,931.84,0.00,COMMERCIAL SUPPLIER ,,
 13-10-2021,Adults,Care-Away Ltd T/A Care Support,Home Care - Private Contractors Payment,931.84,0.00,COMMERCIAL SUPPLIER ,,
 13-10-2021,Adults,Care-Away Ltd T/A Care Support,Home Care - Private Contractors Payment,931.84,0.00,COMMERCIAL SUPPLIER ,,
 13-10-2021,Adults,Care-Away Ltd T/A Care Support,Home Care - Private Contractors Payment,931.84,0.00,COMMERCIAL SUPPLIER ,,
 26-10-2021,Adults,Homestead Care Service,Home Care - Private Contractors Payment,932.21,0.00,COMMERCIAL SUPPLIER ,,
 04-10-2021,Adults,Quality Healthcare Solutions Ltd t/a Kare Plus Romford,Home Care - Private Contractors Payment,932.52,0.00,COMMERCIAL SUPPLIER ,,
 22-10-2021,Adults,Home Sweet Home Care Ltd,Home Care - Private Contractors Payment,934.06,0.00,COMMERCIAL SUPPLIER ,,
 01-10-2021,Adults,Home Sweet Home Care Ltd,Home Care - Private Contractors Payment,934.68,0.00,COMMERCIAL SUPPLIER ,,
 04-10-2021,Adults,Lodge Group Care UK Ltd,Home Care - Private Contractors Payment,935.50,0.00,COMMERCIAL SUPPLIER ,,
 01-10-2021,Adults,Home Sweet Home Care Ltd,Home Care - Private Contractors Payment,935.61,0.00,COMMERCIAL SUPPLIER ,,
 26-10-2021,Adults,Homestead Care Service,Home Care - Private Contractors Payment,936.23,0.00,COMMERCIAL SUPPLIER ,,
 22-10-2021,Adults,May Residential Homes Ltd,Respite Care - Private Contractors Payment,937.14,0.00,COMMERCIAL SUPPLIER ,,
 14-10-2021,Adults,John Stanleys Care Agency Ltd,Home Care - Private Contractors Payment,937.47,0.00,COMMERCIAL SUPPLIER ,,
 26-10-2021,Adults,Homestead Care Service,Home Care - Private Contractors Payment,937.47,0.00,COMMERCIAL SUPPLIER ,,
 19-10-2021,Adults,Rosemont Care Limited,Home Care - Private Contractors Payment,938.09,0.00,COMMERCIAL SUPPLIER ,,
 19-10-2021,Adults,Rosemont Care Limited,Home Care - Private Contractors Payment,938.09,0.00,COMMERCIAL SUPPLIER ,,
 27-10-2021,Adults,Morepower Ltd t/a Aqs Homecare,Home Care - Private Contractors Payment,939.02,0.00,COMMERCIAL SUPPLIER ,,
 01-10-2021,Adults,Home Sweet Home Care Ltd,Home Care - Private Contractors Payment,940.26,0.00,COMMERCIAL SUPPLIER ,,
 06-10-2021,Adults,Matrix SCM Ltd,Agency Staff,941.92,0.00,COMMERCIAL SUPPLIER ,,
 13-10-2021,Adults,Matrix SCM Ltd,Agency Staff,941.92,0.00,COMMERCIAL SUPPLIER ,,
 14-10-2021,Adults,Prestige Care & Support Ltd,Home Care - Private Contractors Payment,942.34,0.00,COMMERCIAL SUPPLIER ,,
 22-10-2021,Adults,Outlook Care - 86 Veronica Close,Residential Placements - Private Contractors Payment,943.77,0.00,COMMERCIAL SUPPLIER ,,
 20-10-2021,Adults,Matrix SCM Ltd,Agency Staff,946.20,0.00,COMMERCIAL SUPPLIER ,,
 26-10-2021,Adults,Homestead Care Service,Home Care - Private Contractors Payment,946.76,0.00,COMMERCIAL SUPPLIER ,,
 26-10-2021,Adults,Homestead Care Service,Home Care - Private Contractors Payment,947.07,0.00,COMMERCIAL SUPPLIER ,,
 26-10-2021,Adults,Homestead Care Service,Home Care - Private Contractors Payment,947.38,0.00,COMMERCIAL SUPPLIER ,,
 14-10-2021,Adults,John Stanleys Care Agency Ltd,Home Care - Private Contractors Payment,947.69,0.00,COMMERCIAL SUPPLIER ,,
 22-10-2021,Adults,Home Sweet Home Care Ltd,Home Care - Private Contractors Payment,948.61,0.00,COMMERCIAL SUPPLIER ,,
 14-10-2021,Adults,John Stanleys Care Agency Ltd,Home Care - Private Contractors Payment,949.23,0.00,COMMERCIAL SUPPLIER ,,
 20-10-2021,Adults,Cera Care Operations Ltd,Home Care - Private Contractors Payment,949.23,0.00,COMMERCIAL SUPPLIER ,,
 01-10-2021,Adults,Home Sweet Home Care Ltd,Home Care - Private Contractors Payment,951.09,0.00,COMMERCIAL SUPPLIER ,,
 18-10-2021,Adults,Home Support Services (Havering & Essex) Ltd,Home Care - Private Contractors Payment,951.40,0.00,COMMERCIAL SUPPLIER ,,
 18-10-2021,Adults,Home Support Services (Havering & Essex) Ltd,Home Care - Private Contractors Payment,951.62,0.00,COMMERCIAL SUPPLIER ,,
 26-10-2021,Adults,Homestead Care Service,Home Care - Private Contractors Payment,952.02,0.00,COMMERCIAL SUPPLIER ,,
 18-10-2021,Adults,Home Support Services (Havering & Essex) Ltd,Home Care - Private Contractors Payment,952.83,0.00,COMMERCIAL SUPPLIER ,,
 22-10-2021,Adults,Coastal Supported Living CIC,Supported Other Accommodation - Private Contractors Payment,954.80,0.00,COMMERCIAL SUPPLIER ,,
 18-10-2021,Adults,Home Support Services (Havering & Essex) Ltd,Home Care - Private Contractors Payment,956.50,0.00,COMMERCIAL SUPPLIER ,,
 22-10-2021,Adults,Christies Care Ltd_a,Supported Other Accommodation - Private Contractors Payment,956.60,0.00,COMMERCIAL SUPPLIER ,,
 27-10-2021,Adults,Morepower Ltd t/a Aqs Homecare,Home Care - Private Contractors Payment,957.59,0.00,COMMERCIAL SUPPLIER ,,
 27-10-2021,Adults,Morepower Ltd t/a Aqs Homecare,Home Care - Private Contractors Payment,957.59,0.00,COMMERCIAL SUPPLIER ,,
 01-10-2021,Adults,Home Sweet Home Care Ltd,Home Care - Private Contractors Payment,957.90,0.00,COMMERCIAL SUPPLIER ,,
 05-10-2021,Adults,Prior Care Ltd_a,Home Care - Private Contractors Payment,958.21,0.00,COMMERCIAL SUPPLIER ,,
 27-10-2021,Adults,Lodge Group Care UK Ltd,Home Care - Private Contractors Payment,958.43,0.00,COMMERCIAL SUPPLIER ,,
 18-10-2021,Adults,Home Support Services (Havering & Essex) Ltd,Home Care - Private Contractors Payment,959.66,0.00,COMMERCIAL SUPPLIER ,,
 26-10-2021,Adults,Homestead Care Service,Home Care - Private Contractors Payment,959.76,0.00,COMMERCIAL SUPPLIER ,,
 01-10-2021,Adults,Home Sweet Home Care Ltd,Home Care - Private Contractors Payment,961.00,0.00,COMMERCIAL SUPPLIER ,,
 06-10-2021,Adults,Matrix SCM Ltd,Agency Staff,962.80,0.00,COMMERCIAL SUPPLIER ,,
 20-10-2021,Adults,Matrix SCM Ltd,Agency Staff,962.80,0.00,COMMERCIAL SUPPLIER ,,
 01-10-2021,Adults,Home Sweet Home Care Ltd,Home Care - Private Contractors Payment,963.17,0.00,COMMERCIAL SUPPLIER ,,
 04-10-2021,Adults,Lodge Group Care UK Ltd,Home Care - Private Contractors Payment,963.78,0.00,COMMERCIAL SUPPLIER ,,
 22-10-2021,Adults,Home Sweet Home Care Ltd,Home Care - Private Contractors Payment,964.71,0.00,COMMERCIAL SUPPLIER ,,
 12-10-2021,Adults,Care-Away Ltd T/A Care Support,Home Care - Private Contractors Payment,965.12,0.00,COMMERCIAL SUPPLIER ,,
 12-10-2021,Adults,Care-Away Ltd T/A Care Support,Home Care - Private Contractors Payment,965.12,0.00,COMMERCIAL SUPPLIER ,,
 14-10-2021,Adults,John Stanleys Care Agency Ltd,Home Care - Private Contractors Payment,966.26,0.00,COMMERCIAL SUPPLIER ,,
 27-10-2021,Adults,Lodge Group Care UK Ltd,Home Care - Private Contractors Payment,966.88,0.00,COMMERCIAL SUPPLIER ,,
 27-10-2021,Adults,Morepower Ltd t/a Aqs Homecare,Home Care - Private Contractors Payment,967.50,0.00,COMMERCIAL SUPPLIER ,,
 22-10-2021,Adults,Home Sweet Home Care Ltd,Home Care - Private Contractors Payment,969.67,0.00,COMMERCIAL SUPPLIER ,,
 15-10-2021,Adults,Anytime Care 2020_a,Home Care - Private Contractors Payment,971.52,0.00,COMMERCIAL SUPPLIER ,,
 27-10-2021,Adults,Lodge Group Care UK Ltd,Home Care - Private Contractors Payment,971.73,0.00,COMMERCIAL SUPPLIER ,,
 15-10-2021,Adults,Anytime Care 2020_a,Home Care - Private Contractors Payment,971.83,0.00,COMMERCIAL SUPPLIER ,,
 04-10-2021,Adults,Lodge Group Care UK Ltd,Home Care - Private Contractors Payment,972.97,0.00,COMMERCIAL SUPPLIER ,,
 04-10-2021,Adults,Quality Healthcare Solutions Ltd t/a Kare Plus Romford,Home Care - Private Contractors Payment,973.38,0.00,COMMERCIAL SUPPLIER ,,
 13-10-2021,Adults,Matrix SCM Ltd,Agency Staff,974.40,0.00,COMMERCIAL SUPPLIER ,,
 20-10-2021,Adults,Matrix SCM Ltd,Agency Staff,974.40,0.00,COMMERCIAL SUPPLIER ,,
 27-10-2021,Adults,Matrix SCM Ltd,Agency Staff,974.40,0.00,COMMERCIAL SUPPLIER ,,
 01-10-2021,Adults,Home Sweet Home Care Ltd,Home Care - Private Contractors Payment,975.55,0.00,COMMERCIAL SUPPLIER ,,
 05-10-2021,Adults,Prior Care Ltd_a,Home Care - Private Contractors Payment,975.81,0.00,COMMERCIAL SUPPLIER ,,
 18-10-2021,Adults,Home Support Services (Havering & Essex) Ltd,Home Care - Private Contractors Payment,975.86,0.00,COMMERCIAL SUPPLIER ,,
 01-10-2021,Adults,Home Sweet Home Care Ltd,Home Care - Private Contractors Payment,976.17,0.00,COMMERCIAL SUPPLIER ,,
 04-10-2021,Adults,Lodge Group Care UK Ltd,Home Care - Private Contractors Payment,977.31,0.00,COMMERCIAL SUPPLIER ,,
 04-10-2021,Adults,Lodge Group Care UK Ltd,Home Care - Private Contractors Payment,978.03,0.00,COMMERCIAL SUPPLIER ,,
 27-10-2021,Adults,Morepower Ltd t/a Aqs Homecare,Home Care - Private Contractors Payment,978.65,0.00,COMMERCIAL SUPPLIER ,,
 27-10-2021,Adults,Morepower Ltd t/a Aqs Homecare,Home Care - Private Contractors Payment,978.65,0.00,COMMERCIAL SUPPLIER ,,
 01-10-2021,Adults,Home Sweet Home Care Ltd,Home Care - Private Contractors Payment,981.74,0.00,COMMERCIAL SUPPLIER ,,
 01-10-2021,Adults,Home Sweet Home Care Ltd,Home Care - Private Contractors Payment,982.98,0.00,COMMERCIAL SUPPLIER ,,
 01-10-2021,Adults,Home Sweet Home Care Ltd,Home Care - Private Contractors Payment,985.15,0.00,COMMERCIAL SUPPLIER ,,
 27-10-2021,Adults,Lodge Group Care UK Ltd,Home Care - Private Contractors Payment,986.39,0.00,COMMERCIAL SUPPLIER ,,
 22-10-2021,Adults,Home Sweet Home Care Ltd,Home Care - Private Contractors Payment,987.00,0.00,COMMERCIAL SUPPLIER ,,
 26-10-2021,Adults,Homestead Care Service,Home Care - Private Contractors Payment,987.00,0.00,COMMERCIAL SUPPLIER ,,
 22-10-2021,Adults,Home Sweet Home Care Ltd,Home Care - Private Contractors Payment,987.93,0.00,COMMERCIAL SUPPLIER ,,
 14-10-2021,Adults,Prestige Care & Support Ltd,Home Care - Private Contractors Payment,988.55,0.00,COMMERCIAL SUPPLIER ,,
 22-10-2021,Adults,Home Sweet Home Care Ltd,Home Care - Private Contractors Payment,994.74,0.00,COMMERCIAL SUPPLIER ,,
 05-10-2021,Adults,Prior Care Ltd_a,Home Care - Private Contractors Payment,995.05,0.00,COMMERCIAL SUPPLIER ,,
 22-10-2021,Adults,Prior Care Ltd_a,Home Care - Private Contractors Payment,995.67,0.00,COMMERCIAL SUPPLIER ,,
 14-10-2021,Adults,John Stanleys Care Agency Ltd,Home Care - Private Contractors Payment,996.60,0.00,COMMERCIAL SUPPLIER ,,
 22-10-2021,Adults,Care Management Group Ltd - The Ridgeway,Supported Other Accommodation - Private Contractors Payment,997.88,0.00,COMMERCIAL SUPPLIER ,,
 05-10-2021,Adults,Coastal Supported Living CIC,Supported Other Accommodation - Private Contractors Payment,997.93,0.00,COMMERCIAL SUPPLIER ,,
 01-10-2021,Adults,Home Sweet Home Care Ltd,Home Care - Private Contractors Payment,998.46,0.00,COMMERCIAL SUPPLIER ,,
 12-10-2021,Adults,KJD Care Limited,Home Care - Private Contractors Payment,999.31,0.00,INDIVIDUALS ,,
 08-10-2021,Adults,One Tree Estates Ltd t/a Ashbrook Nursing Home,Other Short Term Support,1000.00,0.00,COMMERCIAL SUPPLIER ,,
 08-10-2021,Adults,GCH - Hillside Nursing Home,Other Short Term Support,1000.00,0.00,COMMERCIAL SUPPLIER ,,
 08-10-2021,Adults,Lukka Care Homes Ltd - Ravenscourt,Other Short Term Support,1000.00,0.00,COMMERCIAL SUPPLIER ,,
 08-10-2021,Adults,Fountains Care Centre - Bondcare,Other Short Term Support,1000.00,0.00,COMMERCIAL SUPPLIER ,,
 08-10-2021,Adults,Beechcourt Care Centre - Bondcare,Other Short Term Support,1000.00,0.00,COMMERCIAL SUPPLIER ,,
 08-10-2021,Adults,Bupa Care Homes (HVC) - Havering Court,Other Short Term Support,1000.00,0.00,COMMERCIAL SUPPLIER ,,
 08-10-2021,Adults,Moreland House_a,Other Short Term Support,1000.00,0.00,COMMERCIAL SUPPLIER ,,
 12-10-2021,Adults,HC-One Oval Ltd - The Hornchurch Nursing Centre,Other Short Term Support,1000.00,0.00,COMMERCIAL SUPPLIER ,,
 12-10-2021,Adults,Care-Away Ltd T/A Care Support,Other Short Term Support,1000.00,0.00,COMMERCIAL SUPPLIER ,,
 22-10-2021,Adults,Prior Care Ltd_a,Home Care - Private Contractors Payment,1000.63,0.00,COMMERCIAL SUPPLIER ,,
 04-10-2021,Adults,Lodge Group Care UK Ltd,Home Care - Private Contractors Payment,1003.02,0.00,COMMERCIAL SUPPLIER ,,
 01-10-2021,Adults,Home Sweet Home Care Ltd,Home Care - Private Contractors Payment,1003.10,0.00,COMMERCIAL SUPPLIER ,,
 10-10-2021,Adults,Hospiva Care & Associates Agency Ltd_a,Home Care - Private Contractors Payment,1003.10,0.00,COMMERCIAL SUPPLIER ,,
 11-10-2021,Adults,London Homecare Ltd,Home Care - Private Contractors Payment,1003.10,0.00,COMMERCIAL SUPPLIER ,,
 11-10-2021,Adults,London Homecare Ltd,Home Care - Private Contractors Payment,1003.10,0.00,COMMERCIAL SUPPLIER ,,
 01-10-2021,Adults,Home Sweet Home Care Ltd,Home Care - Private Contractors Payment,1005.89,0.00,COMMERCIAL SUPPLIER ,,
 26-10-2021,Adults,Homestead Care Service,Home Care - Private Contractors Payment,1006.82,0.00,COMMERCIAL SUPPLIER ,,
 22-10-2021,Adults,Outreach Support Services Ltd,Supported Other Accommodation - Private Contractors Payment,1008.00,0.00,COMMERCIAL SUPPLIER ,,
 18-10-2021,Adults,London Care Plc_a,Home Care - Private Contractors Payment,1008.37,0.00,COMMERCIAL SUPPLIER ,,
 06-10-2021,Adults,Matrix SCM Ltd,Agency Staff,1012.12,0.00,COMMERCIAL SUPPLIER ,,
 26-10-2021,Adults,Homestead Care Service,Home Care - Private Contractors Payment,1012.39,0.00,COMMERCIAL SUPPLIER ,,
 26-10-2021,Adults,Homestead Care Service,Home Care - Private Contractors Payment,1013.32,0.00,COMMERCIAL SUPPLIER ,,
 26-10-2021,Adults,Homestead Care Service,Home Care - Private Contractors Payment,1014.25,0.00,COMMERCIAL SUPPLIER ,,
 22-10-2021,Adults,Home Sweet Home Care Ltd,Home Care - Private Contractors Payment,1014.56,0.00,COMMERCIAL SUPPLIER ,,
 22-10-2021,Adults,The Cottage Residential Care Home,Residential Placements - Private Contractors Payment,1014.92,0.00,COMMERCIAL SUPPLIER ,,
 12-10-2021,Adults,Care-Away Ltd T/A Care Support,Home Care - Private Contractors Payment,1015.04,0.00,COMMERCIAL SUPPLIER ,,
 13-10-2021,Adults,Care-Away Ltd T/A Care Support,Home Care - Private Contractors Payment,1015.04,0.00,COMMERCIAL SUPPLIER ,,
 26-10-2021,Adults,Homestead Care Service,Home Care - Private Contractors Payment,1015.80,0.00,COMMERCIAL SUPPLIER ,,
 04-10-2021,Adults,Cera Care Operations Ltd,Home Care - Private Contractors Payment,1016.73,0.00,COMMERCIAL SUPPLIER ,,
 01-10-2021,Adults,Home Sweet Home Care Ltd,Home Care - Private Contractors Payment,1017.96,0.00,COMMERCIAL SUPPLIER ,,
 14-10-2021,Adults,Prestige Care & Support Ltd,Home Care - Private Contractors Payment,1017.96,0.00,COMMERCIAL SUPPLIER ,,
 14-10-2021,Adults,John Stanleys Care Agency Ltd,Home Care - Private Contractors Payment,1019.20,0.00,COMMERCIAL SUPPLIER ,,
 22-10-2021,Adults,Prior Care Ltd_a,Home Care - Private Contractors Payment,1020.68,0.00,COMMERCIAL SUPPLIER ,,
 04-10-2021,Adults,Lodge Group Care UK Ltd,Home Care - Private Contractors Payment,1020.75,0.00,COMMERCIAL SUPPLIER ,,
 01-10-2021,Adults,Home Sweet Home Care Ltd,Home Care - Private Contractors Payment,1021.68,0.00,COMMERCIAL SUPPLIER ,,
 18-10-2021,Adults,London Care Plc_a,Home Care - Private Contractors Payment,1021.68,0.00,COMMERCIAL SUPPLIER ,,
 21-10-2021,Adults,Allied Health Services Ltd,Home Care - Private Contractors Payment,1022.61,0.00,COMMERCIAL SUPPLIER ,,
 05-10-2021,Adults,Prior Care Ltd_a,Home Care - Private Contractors Payment,1023.54,0.00,COMMERCIAL SUPPLIER ,,
 18-10-2021,Adults,London Care Plc_a,Home Care - Private Contractors Payment,1023.85,0.00,COMMERCIAL SUPPLIER ,,
 14-10-2021,Adults,Prestige Care & Support Ltd,Home Care - Private Contractors Payment,1024.16,0.00,COMMERCIAL SUPPLIER ,,
 22-10-2021,Adults,Prior Care Ltd_a,Home Care - Private Contractors Payment,1024.71,0.00,COMMERCIAL SUPPLIER ,,
 05-10-2021,Adults,Trinity London Care Ltd,Daycare - Private Contractors Payment,1025.20,0.00,COMMERCIAL SUPPLIER ,,
 05-10-2021,Adults,Trinity London Care Ltd,Daycare - Private Contractors Payment,1025.20,0.00,COMMERCIAL SUPPLIER ,,
 05-10-2021,Adults,Trinity London Care Ltd,Daycare - Private Contractors Payment,1025.20,0.00,COMMERCIAL SUPPLIER ,,
 29-10-2021,Adults,Trinity London Care Ltd,Daycare - Private Contractors Payment,1025.20,0.00,COMMERCIAL SUPPLIER ,,
 29-10-2021,Adults,Trinity London Care Ltd,Daycare - Private Contractors Payment,1025.20,0.00,COMMERCIAL SUPPLIER ,,
 29-10-2021,Adults,Trinity London Care Ltd,Daycare - Private Contractors Payment,1025.20,0.00,COMMERCIAL SUPPLIER ,,
 20-10-2021,Adults,Cera Care Operations Ltd,Home Care - Private Contractors Payment,1026.63,0.00,COMMERCIAL SUPPLIER ,,
 22-10-2021,Adults,Ebony Health Care Services Limited,Supported Other Accommodation - Private Contractors Payment,1029.52,0.00,COMMERCIAL SUPPLIER ,,
 27-10-2021,Adults,Lodge Group Care UK Ltd,Home Care - Private Contractors Payment,1030.56,0.00,COMMERCIAL SUPPLIER ,,
 01-10-2021,Adults,Home Sweet Home Care Ltd,Home Care - Private Contractors Payment,1030.97,0.00,COMMERCIAL SUPPLIER ,,
 05-10-2021,Adults,Prior Care Ltd_a,Home Care - Private Contractors Payment,1034.68,0.00,COMMERCIAL SUPPLIER ,,
 26-10-2021,Adults,Homestead Care Service,Home Care - Private Contractors Payment,1034.99,0.00,COMMERCIAL SUPPLIER ,,
 11-10-2021,Adults,Bluebird Care Havering,Home Care - Private Contractors Payment,1035.52,0.00,COMMERCIAL SUPPLIER ,,
 25-10-2021,Adults,Bluebird Care Havering,Home Care - Private Contractors Payment,1035.52,0.00,COMMERCIAL SUPPLIER ,,
 26-10-2021,Adults,Homestead Care Service,Home Care - Private Contractors Payment,1036.54,0.00,COMMERCIAL SUPPLIER ,,
 27-10-2021,Adults,Morepower Ltd t/a Aqs Homecare,Home Care - Private Contractors Payment,1037.47,0.00,COMMERCIAL SUPPLIER ,,
 10-10-2021,Adults,Hospiva Care & Associates Agency Ltd_a,Home Care - Private Contractors Payment,1038.71,0.00,COMMERCIAL SUPPLIER ,,
 01-10-2021,Adults,Home Sweet Home Care Ltd,Home Care - Private Contractors Payment,1040.26,0.00,COMMERCIAL SUPPLIER ,,
 05-10-2021,Adults,Inna Care Ltd,Home Care - Private Contractors Payment,1040.26,0.00,COMMERCIAL SUPPLIER ,,
 10-10-2021,Adults,Hospiva Care & Associates Agency Ltd_a,Home Care - Private Contractors Payment,1040.26,0.00,COMMERCIAL SUPPLIER ,,
 11-10-2021,Adults,Outreach Support Services Ltd,Home Care - Private Contractors Payment,1040.26,0.00,COMMERCIAL SUPPLIER ,,
 11-10-2021,Adults,Outreach Support Services Ltd,Home Care - Private Contractors Payment,1040.26,0.00,COMMERCIAL SUPPLIER ,,
 11-10-2021,Adults,Outreach Support Services Ltd,Home Care - Private Contractors Payment,1040.26,0.00,COMMERCIAL SUPPLIER ,,
 11-10-2021,Adults,Outreach Support Services Ltd,Home Care - Private Contractors Payment,1040.26,0.00,COMMERCIAL SUPPLIER ,,
 11-10-2021,Adults,Outreach Support Services Ltd,Home Care - Private Contractors Payment,1040.26,0.00,COMMERCIAL SUPPLIER ,,
 11-10-2021,Adults,London Homecare Ltd,Home Care - Private Contractors Payment,1040.26,0.00,COMMERCIAL SUPPLIER ,,
 12-10-2021,Adults,KJD Care Limited,Home Care - Private Contractors Payment,1040.26,0.00,INDIVIDUALS ,,
 12-10-2021,Adults,Premier Carewaiting Ltd,Home Care - Private Contractors Payment,1040.26,0.00,COMMERCIAL SUPPLIER ,,
 19-10-2021,Adults,Rosemont Care Limited,Home Care - Private Contractors Payment,1040.26,0.00,COMMERCIAL SUPPLIER ,,
 19-10-2021,Adults,Rosemont Care Limited,Home Care - Private Contractors Payment,1040.26,0.00,COMMERCIAL SUPPLIER ,,
 19-10-2021,Adults,Rosemont Care Limited,Home Care - Private Contractors Payment,1040.26,0.00,COMMERCIAL SUPPLIER ,,
 19-10-2021,Adults,Rosemont Care Limited,Home Care - Private Contractors Payment,1040.26,0.00,COMMERCIAL SUPPLIER ,,
 20-10-2021,Adults,Inna Care Ltd,Home Care - Private Contractors Payment,1040.26,0.00,COMMERCIAL SUPPLIER ,,
 25-10-2021,Adults,Candid Care Services,Home Care - Private Contractors Payment,1040.26,0.00,COMMERCIAL SUPPLIER ,,
 27-10-2021,Adults,Lodge Group Care UK Ltd,Home Care - Private Contractors Payment,1041.18,0.00,COMMERCIAL SUPPLIER ,,
 14-10-2021,Adults,John Stanleys Care Agency Ltd,Home Care - Private Contractors Payment,1041.49,0.00,COMMERCIAL SUPPLIER ,,
 22-10-2021,Adults,Home Sweet Home Care Ltd,Home Care - Private Contractors Payment,1042.42,0.00,COMMERCIAL SUPPLIER ,,
 10-10-2021,Adults,Hospiva Care & Associates Agency Ltd_a,Home Care - Private Contractors Payment,1042.73,0.00,COMMERCIAL SUPPLIER ,,
 25-10-2021,Adults,Westminster Homecare Ltd_a,Home Care - Private Contractors Payment,1044.90,0.00,COMMERCIAL SUPPLIER ,,
 26-10-2021,Adults,Homestead Care Service,Home Care - Private Contractors Payment,1047.38,0.00,COMMERCIAL SUPPLIER ,,
 13-10-2021,Adults,Care-Away Ltd T/A Care Support,Home Care - Private Contractors Payment,1048.32,0.00,COMMERCIAL SUPPLIER ,,
 13-10-2021,Adults,Care-Away Ltd T/A Care Support,Home Care - Private Contractors Payment,1048.32,0.00,COMMERCIAL SUPPLIER ,,
 27-10-2021,Adults,Lodge Group Care UK Ltd,Home Care - Private Contractors Payment,1050.09,0.00,COMMERCIAL SUPPLIER ,,
 27-10-2021,Adults,Morepower Ltd t/a Aqs Homecare,Home Care - Private Contractors Payment,1054.19,0.00,COMMERCIAL SUPPLIER ,,
 27-10-2021,Adults,Lodge Group Care UK Ltd,Home Care - Private Contractors Payment,1054.81,0.00,COMMERCIAL SUPPLIER ,,
 27-10-2021,Adults,Morepower Ltd t/a Aqs Homecare,Home Care - Private Contractors Payment,1056.97,0.00,COMMERCIAL SUPPLIER ,,
 27-10-2021,Adults,Morepower Ltd t/a Aqs Homecare,Home Care - Private Contractors Payment,1056.97,0.00,COMMERCIAL SUPPLIER ,,
 22-10-2021,Adults,Outlook Care_a,Residential Placements - Private Contractors Payment,1063.32,0.00,COMMERCIAL SUPPLIER ,,
 05-10-2021,Adults,The Riverside Group,Respite Care - Private Contractors Payment,1064.03,0.00, ,,
 21-10-2021,Adults,Allied Health Services Ltd,Home Care - Private Contractors Payment,1064.71,0.00,COMMERCIAL SUPPLIER ,,
 18-10-2021,Adults,Home Support Services (Havering & Essex) Ltd,Home Care - Private Contractors Payment,1064.89,0.00,COMMERCIAL SUPPLIER ,,
 21-10-2021,Adults,Allied Health Services Ltd,Home Care - Private Contractors Payment,1065.02,0.00,COMMERCIAL SUPPLIER ,,
 21-10-2021,Adults,Allied Health Services Ltd,Home Care - Private Contractors Payment,1065.95,0.00,COMMERCIAL SUPPLIER ,,
 27-10-2021,Adults,Lodge Group Care UK Ltd,Home Care - Private Contractors Payment,1066.50,0.00,COMMERCIAL SUPPLIER ,,
 13-10-2021,Adults,Matrix SCM Ltd,Agency Staff,1066.80,0.00,COMMERCIAL SUPPLIER ,,
 27-10-2021,Adults,Morepower Ltd t/a Aqs Homecare,Home Care - Private Contractors Payment,1066.88,0.00,COMMERCIAL SUPPLIER ,,
 14-10-2021,Adults,John Stanleys Care Agency Ltd,Home Care - Private Contractors Payment,1070.60,0.00,COMMERCIAL SUPPLIER ,,
 18-10-2021,Adults,London Care Plc_a,Home Care - Private Contractors Payment,1071.84,0.00,COMMERCIAL SUPPLIER ,,
 22-10-2021,Adults,Prior Care Ltd_a,Home Care - Private Contractors Payment,1073.07,0.00,COMMERCIAL SUPPLIER ,,
 26-10-2021,Adults,Homestead Care Service,Home Care - Private Contractors Payment,1074.62,0.00,COMMERCIAL SUPPLIER ,,
 15-10-2021,Adults,Anytime Care 2020_a,Home Care - Private Contractors Payment,1075.86,0.00,COMMERCIAL SUPPLIER ,,
 04-10-2021,Adults,Lodge Group Care UK Ltd,Home Care - Private Contractors Payment,1077.03,0.00,COMMERCIAL SUPPLIER ,,
 14-10-2021,Adults,John Stanleys Care Agency Ltd,Home Care - Private Contractors Payment,1077.72,0.00,COMMERCIAL SUPPLIER ,,
 13-10-2021,Adults,Matrix SCM Ltd,Agency Staff,1078.14,0.00,COMMERCIAL SUPPLIER ,,
 18-10-2021,Adults,London Care Plc_a,Home Care - Private Contractors Payment,1080.19,0.00,COMMERCIAL SUPPLIER ,,
 22-10-2021,Adults,HC-One Oval Ltd - Admirals Reach Residential & Nursing Centre,Nursing Homes - Private Contractors Payment,1087.04,0.00,COMMERCIAL SUPPLIER ,,
 22-10-2021,Adults,Axcelence Limited,Supported Other Accommodation - Private Contractors Payment,1088.92,0.00,COMMERCIAL SUPPLIER ,,
 25-10-2021,Adults,Westminster Homecare Ltd_a,Home Care - Private Contractors Payment,1091.65,0.00,COMMERCIAL SUPPLIER ,,
 21-10-2021,Adults,Allied Health Services Ltd,Home Care - Private Contractors Payment,1093.20,0.00,COMMERCIAL SUPPLIER ,,
 25-10-2021,Adults,Westminster Homecare Ltd_a,Home Care - Private Contractors Payment,1095.67,0.00,COMMERCIAL SUPPLIER ,,
 14-10-2021,Adults,John Stanleys Care Agency Ltd,Home Care - Private Contractors Payment,1096.91,0.00,COMMERCIAL SUPPLIER ,,
 06-10-2021,Adults,Matrix SCM Ltd,Agency Staff,1097.28,0.00,COMMERCIAL SUPPLIER ,,
 06-10-2021,Adults,Matrix SCM Ltd,Agency Staff,1097.28,0.00,COMMERCIAL SUPPLIER ,,
 06-10-2021,Adults,Matrix SCM Ltd,Agency Staff,1097.28,0.00,COMMERCIAL SUPPLIER ,,
 06-10-2021,Adults,Matrix SCM Ltd,Agency Staff,1097.28,0.00,COMMERCIAL SUPPLIER ,,
 06-10-2021,Adults,Matrix SCM Ltd,Agency Staff,1097.28,0.00,COMMERCIAL SUPPLIER ,,
 13-10-2021,Adults,Matrix SCM Ltd,Agency Staff,1097.28,0.00,COMMERCIAL SUPPLIER ,,
 13-10-2021,Adults,Matrix SCM Ltd,Agency Staff,1097.28,0.00,COMMERCIAL SUPPLIER ,,
 13-10-2021,Adults,Matrix SCM Ltd,Agency Staff,1097.28,0.00,COMMERCIAL SUPPLIER ,,
 13-10-2021,Adults,Matrix SCM Ltd,Agency Staff,1097.28,0.00,COMMERCIAL SUPPLIER ,,
 20-10-2021,Adults,Matrix SCM Ltd,Agency Staff,1097.28,0.00,COMMERCIAL SUPPLIER ,,
 20-10-2021,Adults,Matrix SCM Ltd,Agency Staff,1097.28,0.00,COMMERCIAL SUPPLIER ,,
 20-10-2021,Adults,Matrix SCM Ltd,Agency Staff,1097.28,0.00,COMMERCIAL SUPPLIER ,,
 20-10-2021,Adults,Matrix SCM Ltd,Agency Staff,1097.28,0.00,COMMERCIAL SUPPLIER ,,
 27-10-2021,Adults,Matrix SCM Ltd,Agency Staff,1097.28,0.00,COMMERCIAL SUPPLIER ,,
 27-10-2021,Adults,Matrix SCM Ltd,Agency Staff,1097.28,0.00,COMMERCIAL SUPPLIER ,,
 27-10-2021,Adults,Matrix SCM Ltd,Agency Staff,1097.28,0.00,COMMERCIAL SUPPLIER ,,
 27-10-2021,Adults,Matrix SCM Ltd,Agency Staff,1097.28,0.00,COMMERCIAL SUPPLIER ,,
 27-10-2021,Adults,Matrix SCM Ltd,Agency Staff,1097.28,0.00,COMMERCIAL SUPPLIER ,,
 21-10-2021,Adults,Allied Health Services Ltd,Home Care - Private Contractors Payment,1098.15,0.00,COMMERCIAL SUPPLIER ,,
 11-10-2021,Adults,Tapestry_a.,Daycare - Private Contractors Payment,1100.00,0.00,COMMERCIAL SUPPLIER ,,
 12-10-2021,Adults,Tapestry_a.,Daycare - Private Contractors Payment,1100.00,0.00,COMMERCIAL SUPPLIER ,,
 12-10-2021,Adults,Tapestry_a.,Daycare - Private Contractors Payment,1100.00,0.00,COMMERCIAL SUPPLIER ,,
 12-10-2021,Adults,Tapestry_a.,Daycare - Private Contractors Payment,1100.00,0.00,COMMERCIAL SUPPLIER ,,
 22-10-2021,Adults,The Riverside Group,Supported Other Accommodation - Private Contractors Payment,1100.00,0.00, ,,
 22-10-2021,Adults,The Riverside Group,Supported Other Accommodation - Private Contractors Payment,1100.00,0.00, ,,
 22-10-2021,Adults,The Riverside Group,Supported Other Accommodation - Private Contractors Payment,1100.00,0.00, ,,
 22-10-2021,Adults,The Riverside Group,Supported Other Accommodation - Private Contractors Payment,1100.00,0.00, ,,
 22-10-2021,Adults,The Riverside Group,Supported Other Accommodation - Private Contractors Payment,1100.00,0.00, ,,
 22-10-2021,Adults,The Riverside Group,Supported Other Accommodation - Private Contractors Payment,1100.00,0.00, ,,
 22-10-2021,Adults,The Riverside Group,Supported Other Accommodation - Private Contractors Payment,1100.00,0.00, ,,
 22-10-2021,Adults,The Riverside Group,Supported Other Accommodation - Private Contractors Payment,1100.00,0.00, ,,
 22-10-2021,Adults,Prior Care Ltd_a,Home Care - Private Contractors Payment,1100.32,0.00,COMMERCIAL SUPPLIER ,,
 26-10-2021,Adults,Homestead Care Service,Home Care - Private Contractors Payment,1101.25,0.00,COMMERCIAL SUPPLIER ,,
 04-10-2021,Adults,Lodge Group Care UK Ltd,Home Care - Private Contractors Payment,1104.29,0.00,COMMERCIAL SUPPLIER ,,
 20-10-2021,Adults,Matrix SCM Ltd,Agency Staff,1104.32,0.00,COMMERCIAL SUPPLIER ,,
 21-10-2021,Adults,Allied Health Services Ltd,Home Care - Private Contractors Payment,1104.96,0.00,COMMERCIAL SUPPLIER ,,
 26-10-2021,Adults,Homestead Care Service,Home Care - Private Contractors Payment,1104.96,0.00,COMMERCIAL SUPPLIER ,,
 21-10-2021,Adults,Allied Health Services Ltd,Home Care - Private Contractors Payment,1106.82,0.00,COMMERCIAL SUPPLIER ,,
 22-10-2021,Adults,DMP Healthcare (Heatherbrook) Ltd,Respite Care - Private Contractors Payment,1106.86,0.00,NON COMMERCIAL SUPPLIER ,,
 14-10-2021,Adults,Prestige Care & Support Ltd,Home Care - Private Contractors Payment,1109.30,0.00,COMMERCIAL SUPPLIER ,,
 18-10-2021,Adults,Home Support Services (Havering & Essex) Ltd,Home Care - Private Contractors Payment,1115.11,0.00,COMMERCIAL SUPPLIER ,,
 21-10-2021,Adults,Allied Health Services Ltd,Home Care - Private Contractors Payment,1121.06,0.00,COMMERCIAL SUPPLIER ,,
 06-10-2021,Adults,Matrix SCM Ltd,Agency Staff,1121.41,0.00,COMMERCIAL SUPPLIER ,,
 13-10-2021,Adults,Matrix SCM Ltd,Agency Staff,1121.41,0.00,COMMERCIAL SUPPLIER ,,
 25-10-2021,Adults,Bluebird Care Havering,Home Care - Private Contractors Payment,1125.00,0.00,COMMERCIAL SUPPLIER ,,
 04-10-2021,Adults,Lodge Group Care UK Ltd,Home Care - Private Contractors Payment,1125.40,0.00,COMMERCIAL SUPPLIER ,,
 06-10-2021,Adults,Matrix SCM Ltd,Agency Staff,1128.80,0.00,COMMERCIAL SUPPLIER ,,
 27-10-2021,Adults,Matrix SCM Ltd,Agency Staff,1128.80,0.00,COMMERCIAL SUPPLIER ,,
 20-10-2021,Adults,Cera Care Operations Ltd,Home Care - Private Contractors Payment,1132.14,0.00,COMMERCIAL SUPPLIER ,,
 25-10-2021,Adults,Westminster Homecare Ltd_a,Home Care - Private Contractors Payment,1137.47,0.00,COMMERCIAL SUPPLIER ,,
 01-10-2021,Adults,Home Sweet Home Care Ltd,Home Care - Private Contractors Payment,1142.73,0.00,COMMERCIAL SUPPLIER ,,
 14-10-2021,Adults,Prestige Care & Support Ltd,Home Care - Private Contractors Payment,1147.69,0.00,COMMERCIAL SUPPLIER ,,
 15-10-2021,Adults,Ace Outreach Ltd,Home Care - Private Contractors Payment,1148.00,0.00,COMMERCIAL SUPPLIER ,,
 21-10-2021,Adults,Allied Health Services Ltd,Home Care - Private Contractors Payment,1154.50,0.00,COMMERCIAL SUPPLIER ,,
 05-10-2021,Adults,Treal Care Limited,Home Care - Private Contractors Payment,1155.00,0.00,COMMERCIAL SUPPLIER ,,
 01-10-2021,Adults,Home Sweet Home Care Ltd,Home Care - Private Contractors Payment,1157.28,0.00,COMMERCIAL SUPPLIER ,,
 01-10-2021,Adults,Home Sweet Home Care Ltd,Home Care - Private Contractors Payment,1157.59,0.00,COMMERCIAL SUPPLIER ,,
 20-10-2021,Adults,Matrix SCM Ltd,Agency Staff,1162.00,0.00,COMMERCIAL SUPPLIER ,,
 12-10-2021,Adults,Care-Away Ltd T/A Care Support,Home Care - Private Contractors Payment,1164.80,0.00,COMMERCIAL SUPPLIER ,,
 13-10-2021,Adults,Care-Away Ltd T/A Care Support,Home Care - Private Contractors Payment,1164.80,0.00,COMMERCIAL SUPPLIER ,,
 13-10-2021,Adults,Care-Away Ltd T/A Care Support,Home Care - Private Contractors Payment,1164.80,0.00,COMMERCIAL SUPPLIER ,,
 13-10-2021,Adults,Care-Away Ltd T/A Care Support,Home Care - Private Contractors Payment,1164.80,0.00,COMMERCIAL SUPPLIER ,,
 13-10-2021,Adults,Care-Away Ltd T/A Care Support,Home Care - Private Contractors Payment,1164.80,0.00,COMMERCIAL SUPPLIER ,,
 26-10-2021,Adults,Homestead Care Service,Home Care - Private Contractors Payment,1165.33,0.00,COMMERCIAL SUPPLIER ,,
 06-10-2021,Adults,Matrix SCM Ltd,Agency Staff,1169.28,0.00,COMMERCIAL SUPPLIER ,,
 06-10-2021,Adults,Matrix SCM Ltd,Agency Staff,1169.28,0.00,COMMERCIAL SUPPLIER ,,
 06-10-2021,Adults,Matrix SCM Ltd,Agency Staff,1169.28,0.00,COMMERCIAL SUPPLIER ,,
 06-10-2021,Adults,Matrix SCM Ltd,Agency Staff,1169.28,0.00,COMMERCIAL SUPPLIER ,,
 06-10-2021,Adults,Matrix SCM Ltd,Agency Staff,1169.28,0.00,COMMERCIAL SUPPLIER ,,
 06-10-2021,Adults,Matrix SCM Ltd,Agency Staff,1169.28,0.00,COMMERCIAL SUPPLIER ,,
 06-10-2021,Adults,Matrix SCM Ltd,Agency Staff,1169.28,0.00,COMMERCIAL SUPPLIER ,,
 06-10-2021,Adults,Matrix SCM Ltd,Agency Staff,1169.28,0.00,COMMERCIAL SUPPLIER ,,
 13-10-2021,Adults,Matrix SCM Ltd,Agency Staff,1169.28,0.00,COMMERCIAL SUPPLIER ,,
 13-10-2021,Adults,Matrix SCM Ltd,Agency Staff,1169.28,0.00,COMMERCIAL SUPPLIER ,,
 13-10-2021,Adults,Matrix SCM Ltd,Agency Staff,1169.28,0.00,COMMERCIAL SUPPLIER ,,
 13-10-2021,Adults,Matrix SCM Ltd,Agency Staff,1169.28,0.00,COMMERCIAL SUPPLIER ,,
 13-10-2021,Adults,Matrix SCM Ltd,Agency Staff,1169.28,0.00,COMMERCIAL SUPPLIER ,,
 13-10-2021,Adults,Matrix SCM Ltd,Agency Staff,1169.28,0.00,COMMERCIAL SUPPLIER ,,
 20-10-2021,Adults,Matrix SCM Ltd,Agency Staff,1169.28,0.00,COMMERCIAL SUPPLIER ,,
 20-10-2021,Adults,Matrix SCM Ltd,Agency Staff,1169.28,0.00,COMMERCIAL SUPPLIER ,,
 20-10-2021,Adults,Matrix SCM Ltd,Agency Staff,1169.28,0.00,COMMERCIAL SUPPLIER ,,
 20-10-2021,Adults,Matrix SCM Ltd,Agency Staff,1169.28,0.00,COMMERCIAL SUPPLIER ,,
 20-10-2021,Adults,Matrix SCM Ltd,Agency Staff,1169.28,0.00,COMMERCIAL SUPPLIER ,,
 20-10-2021,Adults,Matrix SCM Ltd,Agency Staff,1169.28,0.00,COMMERCIAL SUPPLIER ,,
 20-10-2021,Adults,Matrix SCM Ltd,Agency Staff,1169.28,0.00,COMMERCIAL SUPPLIER ,,
 20-10-2021,Adults,Matrix SCM Ltd,Agency Staff,1169.28,0.00,COMMERCIAL SUPPLIER ,,
 27-10-2021,Adults,Matrix SCM Ltd,Agency Staff,1169.28,0.00,COMMERCIAL SUPPLIER ,,
 27-10-2021,Adults,Matrix SCM Ltd,Agency Staff,1169.28,0.00,COMMERCIAL SUPPLIER ,,
 27-10-2021,Adults,Matrix SCM Ltd,Agency Staff,1169.28,0.00,COMMERCIAL SUPPLIER ,,
 27-10-2021,Adults,Matrix SCM Ltd,Agency Staff,1169.28,0.00,COMMERCIAL SUPPLIER ,,
 27-10-2021,Adults,Matrix SCM Ltd,Agency Staff,1169.28,0.00,COMMERCIAL SUPPLIER ,,
 27-10-2021,Adults,Matrix SCM Ltd,Agency Staff,1169.28,0.00,COMMERCIAL SUPPLIER ,,
 27-10-2021,Adults,Matrix SCM Ltd,Agency Staff,1169.28,0.00,COMMERCIAL SUPPLIER ,,
 27-10-2021,Adults,Matrix SCM Ltd,Agency Staff,1169.28,0.00,COMMERCIAL SUPPLIER ,,
 01-10-2021,Adults,Home Sweet Home Care Ltd,Home Care - Private Contractors Payment,1170.29,0.00,COMMERCIAL SUPPLIER ,,
 01-10-2021,Adults,Home Sweet Home Care Ltd,Home Care - Private Contractors Payment,1170.29,0.00,COMMERCIAL SUPPLIER ,,
 10-10-2021,Adults,Hospiva Care & Associates Agency Ltd_a,Home Care - Private Contractors Payment,1170.29,0.00,COMMERCIAL SUPPLIER ,,
 10-10-2021,Adults,Hospiva Care & Associates Agency Ltd_a,Home Care - Private Contractors Payment,1170.29,0.00,COMMERCIAL SUPPLIER ,,
 11-10-2021,Adults,Outreach Support Services Ltd,Home Care - Private Contractors Payment,1170.29,0.00,COMMERCIAL SUPPLIER ,,
 11-10-2021,Adults,Outreach Support Services Ltd,Home Care - Private Contractors Payment,1170.29,0.00,COMMERCIAL SUPPLIER ,,
 11-10-2021,Adults,Outreach Support Services Ltd,Home Care - Private Contractors Payment,1170.29,0.00,COMMERCIAL SUPPLIER ,,
 11-10-2021,Adults,Outreach Support Services Ltd,Home Care - Private Contractors Payment,1170.29,0.00,COMMERCIAL SUPPLIER ,,
 11-10-2021,Adults,London Homecare Ltd,Home Care - Private Contractors Payment,1170.29,0.00,COMMERCIAL SUPPLIER ,,
 18-10-2021,Adults,Home Support Services (Havering & Essex) Ltd,Home Care - Private Contractors Payment,1173.01,0.00,COMMERCIAL SUPPLIER ,,
 05-10-2021,Adults,Prior Care Ltd_a,Home Care - Private Contractors Payment,1173.07,0.00,COMMERCIAL SUPPLIER ,,
 27-10-2021,Adults,Lodge Group Care UK Ltd,Home Care - Private Contractors Payment,1173.32,0.00,COMMERCIAL SUPPLIER ,,
 18-10-2021,Adults,Home Support Services (Havering & Essex) Ltd,Home Care - Private Contractors Payment,1173.33,0.00,COMMERCIAL SUPPLIER ,,
 26-10-2021,Adults,Homestead Care Service,Home Care - Private Contractors Payment,1178.34,0.00,COMMERCIAL SUPPLIER ,,
 22-10-2021,Adults,Bettertogether Limited,Supported Other Accommodation - Private Contractors Payment,1182.86,0.00,NON COMMERCIAL SUPPLIER ,,
 04-10-2021,Adults,Lodge Group Care UK Ltd,Home Care - Private Contractors Payment,1186.64,0.00,COMMERCIAL SUPPLIER ,,
 22-10-2021,Adults,HC-One Oval Ltd - The Hornchurch Nursing Centre,Nursing Homes - Private Contractors Payment,1188.57,0.00,COMMERCIAL SUPPLIER ,,
 22-10-2021,Adults,MNS Care Plc_a,Nursing Homes - Private Contractors Payment,1192.00,0.00,COMMERCIAL SUPPLIER ,,
 06-10-2021,Adults,Matrix SCM Ltd,Agency Staff,1194.85,0.00,COMMERCIAL SUPPLIER ,,
 13-10-2021,Adults,Matrix SCM Ltd,Agency Staff,1194.85,0.00,COMMERCIAL SUPPLIER ,,
 20-10-2021,Adults,Matrix SCM Ltd,Agency Staff,1194.85,0.00,COMMERCIAL SUPPLIER ,,
 27-10-2021,Adults,Matrix SCM Ltd,Agency Staff,1194.85,0.00,COMMERCIAL SUPPLIER ,,
 18-10-2021,Adults,Home Support Services (Havering & Essex) Ltd,Home Care - Private Contractors Payment,1195.02,0.00,COMMERCIAL SUPPLIER ,,
 06-10-2021,Adults,Matrix SCM Ltd,Agency Staff,1195.20,0.00,COMMERCIAL SUPPLIER ,,
 13-10-2021,Adults,Matrix SCM Ltd,Agency Staff,1195.20,0.00,COMMERCIAL SUPPLIER ,,
 20-10-2021,Adults,Matrix SCM Ltd,Agency Staff,1195.20,0.00,COMMERCIAL SUPPLIER ,,
 27-10-2021,Adults,Matrix SCM Ltd,Agency Staff,1195.20,0.00,COMMERCIAL SUPPLIER ,,
 12-10-2021,Adults,Barleycroft Care Home Ltd,Other Short Term Support,1200.00,0.00,COMMERCIAL SUPPLIER ,,
 22-10-2021,Adults,Ranc Care Homes Ltd - Romford Care Centre,Nursing Homes - Private Contractors Payment,1200.86,0.00,COMMERCIAL SUPPLIER ,,
 06-10-2021,Adults,Matrix SCM Ltd,Agency Staff,1205.28,0.00,COMMERCIAL SUPPLIER ,,
 13-10-2021,Adults,Matrix SCM Ltd,Agency Staff,1205.28,0.00,COMMERCIAL SUPPLIER ,,
 20-10-2021,Adults,Matrix SCM Ltd,Agency Staff,1205.28,0.00,COMMERCIAL SUPPLIER ,,
 27-10-2021,Adults,Matrix SCM Ltd,Agency Staff,1205.28,0.00,COMMERCIAL SUPPLIER ,,
 18-10-2021,Adults,Home Support Services (Havering & Essex) Ltd,Home Care - Private Contractors Payment,1208.95,0.00,COMMERCIAL SUPPLIER ,,
 27-10-2021,Adults,Matrix SCM Ltd,Agency Staff,1209.95,0.00,COMMERCIAL SUPPLIER ,,
 13-10-2021,Adults,Care-Away Ltd T/A Care Support,Home Care - Private Contractors Payment,1210.56,0.00,COMMERCIAL SUPPLIER ,,
 25-10-2021,Adults,Westminster Homecare Ltd_a,Home Care - Private Contractors Payment,1210.85,0.00,COMMERCIAL SUPPLIER ,,
 04-10-2021,Adults,Lodge Group Care UK Ltd,Home Care - Private Contractors Payment,1211.77,0.00,COMMERCIAL SUPPLIER ,,
 12-10-2021,Adults,Premier Carewaiting Ltd,Home Care - Private Contractors Payment,1212.08,0.00,COMMERCIAL SUPPLIER ,,
 27-10-2021,Adults,Morepower Ltd t/a Aqs Homecare,Home Care - Private Contractors Payment,1213.32,0.00,COMMERCIAL SUPPLIER ,,
 04-10-2021,Adults,Lodge Group Care UK Ltd,Home Care - Private Contractors Payment,1213.63,0.00,COMMERCIAL SUPPLIER ,,
 18-10-2021,Adults,Home Support Services (Havering & Essex) Ltd,Home Care - Private Contractors Payment,1213.90,0.00,COMMERCIAL SUPPLIER ,,
 22-10-2021,Adults,May Residential Homes Ltd,Respite Care - Private Contractors Payment,1218.29,0.00,COMMERCIAL SUPPLIER ,,
 06-10-2021,Adults,Matrix SCM Ltd,Agency Staff,1226.52,0.00,COMMERCIAL SUPPLIER ,,
 20-10-2021,Adults,Matrix SCM Ltd,Agency Staff,1226.52,0.00,COMMERCIAL SUPPLIER ,,
 20-10-2021,Adults,Matrix SCM Ltd,Agency Staff,1226.52,0.00,COMMERCIAL SUPPLIER ,,
 27-10-2021,Adults,Matrix SCM Ltd,Agency Staff,1226.52,0.00,COMMERCIAL SUPPLIER ,,
 27-10-2021,Adults,Morepower Ltd t/a Aqs Homecare,Home Care - Private Contractors Payment,1227.25,0.00,COMMERCIAL SUPPLIER ,,
 22-10-2021,Adults,Prior Care Ltd_a,Home Care - Private Contractors Payment,1231.28,0.00,COMMERCIAL SUPPLIER ,,
 06-10-2021,Adults,Matrix SCM Ltd,Agency Staff,1233.40,0.00,COMMERCIAL SUPPLIER ,,
 13-10-2021,Adults,Matrix SCM Ltd,Agency Staff,1233.40,0.00,COMMERCIAL SUPPLIER ,,
 27-10-2021,Adults,Matrix SCM Ltd,Agency Staff,1233.40,0.00,COMMERCIAL SUPPLIER ,,
 22-10-2021,Adults,St Georges Supported Living Ltd,Supported Other Accommodation - Private Contractors Payment,1233.52,0.00,COMMERCIAL SUPPLIER ,,
 22-10-2021,Adults,Prior Care Ltd_a,Home Care - Private Contractors Payment,1239.02,0.00,COMMERCIAL SUPPLIER ,,
 21-10-2021,Adults,Allied Health Services Ltd,Home Care - Private Contractors Payment,1240.26,0.00,COMMERCIAL SUPPLIER ,,
 06-10-2021,Adults,Matrix SCM Ltd,Agency Staff,1241.28,0.00,COMMERCIAL SUPPLIER ,,
 13-10-2021,Adults,Matrix SCM Ltd,Agency Staff,1241.28,0.00,COMMERCIAL SUPPLIER ,,
 13-10-2021,Adults,Matrix SCM Ltd,Agency Staff,1241.28,0.00,COMMERCIAL SUPPLIER ,,
 13-10-2021,Adults,Matrix SCM Ltd,Agency Staff,1241.28,0.00,COMMERCIAL SUPPLIER ,,
 20-10-2021,Adults,Matrix SCM Ltd,Agency Staff,1241.28,0.00,COMMERCIAL SUPPLIER ,,
 20-10-2021,Adults,Matrix SCM Ltd,Agency Staff,1241.28,0.00,COMMERCIAL SUPPLIER ,,
 27-10-2021,Adults,Matrix SCM Ltd,Agency Staff,1241.28,0.00,COMMERCIAL SUPPLIER ,,
 22-10-2021,Adults,Home Sweet Home Care Ltd,Home Care - Private Contractors Payment,1241.50,0.00,COMMERCIAL SUPPLIER ,,
 13-10-2021,Adults,Pristine Care London Ltd ,Daycare - Private Contractors Payment,1244.59,0.00,COMMERCIAL SUPPLIER ,,
 18-10-2021,Adults,Eveshel Care Ltd,Home Care - Private Contractors Payment,1244.59,0.00,COMMERCIAL SUPPLIER ,,
 18-10-2021,Adults,Eveshel Care Ltd,Home Care - Private Contractors Payment,1244.59,0.00,COMMERCIAL SUPPLIER ,,
 27-10-2021,Adults,Lodge Group Care UK Ltd,Home Care - Private Contractors Payment,1245.21,0.00,COMMERCIAL SUPPLIER ,,
 06-10-2021,Adults,Matrix SCM Ltd,Agency Staff,1246.34,0.00,COMMERCIAL SUPPLIER ,,
 20-10-2021,Adults,Matrix SCM Ltd,Agency Staff,1246.34,0.00,COMMERCIAL SUPPLIER ,,
 20-10-2021,Adults,Matrix SCM Ltd,Agency Staff,1246.34,0.00,COMMERCIAL SUPPLIER ,,
 22-10-2021,Adults,Prior Care Ltd_a,Home Care - Private Contractors Payment,1253.57,0.00,COMMERCIAL SUPPLIER ,,
 22-10-2021,Adults,L & Q Living (SWIFT Payments),Supported Other Accommodation - Private Contractors Payment,1255.92,0.00,COMMERCIAL SUPPLIER ,,
 13-10-2021,Adults,Matrix SCM Ltd,Agency Staff,1256.42,0.00,COMMERCIAL SUPPLIER ,,
 20-10-2021,Adults,Matrix SCM Ltd,Agency Staff,1256.42,0.00,COMMERCIAL SUPPLIER ,,
 27-10-2021,Adults,Matrix SCM Ltd,Agency Staff,1256.42,0.00,COMMERCIAL SUPPLIER ,,
 04-10-2021,Adults,Lodge Group Care UK Ltd,Home Care - Private Contractors Payment,1261.59,0.00,COMMERCIAL SUPPLIER ,,
 06-10-2021,Adults,Gims Care Solution Ltd_a,Home Care - Private Contractors Payment,1263.17,0.00,NON COMMERCIAL SUPPLIER ,,
 21-10-2021,Adults,Allied Health Services Ltd,Home Care - Private Contractors Payment,1264.10,0.00,COMMERCIAL SUPPLIER ,,
 27-10-2021,Adults,Lodge Group Care UK Ltd,Home Care - Private Contractors Payment,1267.15,0.00,COMMERCIAL SUPPLIER ,,
 13-10-2021,Adults,Matrix SCM Ltd,Agency Staff,1267.68,0.00,COMMERCIAL SUPPLIER ,,
 22-10-2021,Adults,Ashgate House Ltd_a,Residential Placements - Private Contractors Payment,1272.00,0.00,COMMERCIAL SUPPLIER ,,
 12-10-2021,Adults,Premier Carewaiting Ltd,Home Care - Private Contractors Payment,1272.46,0.00,COMMERCIAL SUPPLIER ,,
 14-10-2021,Adults,Prestige Care & Support Ltd,Home Care - Private Contractors Payment,1275.24,0.00,COMMERCIAL SUPPLIER ,,
 18-10-2021,Adults,Home Support Services (Havering & Essex) Ltd,Home Care - Private Contractors Payment,1281.11,0.00,COMMERCIAL SUPPLIER ,,
 12-10-2021,Adults,Care-Away Ltd T/A Care Support,Home Care - Private Contractors Payment,1281.28,0.00,COMMERCIAL SUPPLIER ,,
 12-10-2021,Adults,Care-Away Ltd T/A Care Support,Home Care - Private Contractors Payment,1281.28,0.00,COMMERCIAL SUPPLIER ,,
 12-10-2021,Adults,Premier Carewaiting Ltd,Home Care - Private Contractors Payment,1281.74,0.00,COMMERCIAL SUPPLIER ,,
 22-10-2021,Adults,2 Peel Way - Outlook Care,Supported Other Accommodation - Private Contractors Payment,1285.20,0.00,NON COMMERCIAL SUPPLIER ,,
 18-10-2021,Adults,London Care Plc_a,Home Care - Private Contractors Payment,1286.70,0.00,COMMERCIAL SUPPLIER ,,
 10-10-2021,Adults,Hospiva Care & Associates Agency Ltd_a,Home Care - Private Contractors Payment,1297.84,0.00,COMMERCIAL SUPPLIER ,,
 10-10-2021,Adults,Hospiva Care & Associates Agency Ltd_a,Home Care - Private Contractors Payment,1298.46,0.00,COMMERCIAL SUPPLIER ,,
 05-10-2021,Adults,Prior Care Ltd_a,Home Care - Private Contractors Payment,1299.39,0.00,COMMERCIAL SUPPLIER ,,
 10-10-2021,Adults,Hospiva Care & Associates Agency Ltd_a,Home Care - Private Contractors Payment,1300.32,0.00,COMMERCIAL SUPPLIER ,,
 10-10-2021,Adults,Hospiva Care & Associates Agency Ltd_a,Home Care - Private Contractors Payment,1300.32,0.00,COMMERCIAL SUPPLIER ,,
 12-10-2021,Adults,Premier Carewaiting Ltd,Home Care - Private Contractors Payment,1300.32,0.00,COMMERCIAL SUPPLIER ,,
 14-10-2021,Adults,IJB Healthcare Ltd,Home Care - Private Contractors Payment,1300.32,0.00,COMMERCIAL SUPPLIER ,,
 22-10-2021,Adults,Outlook Care - 76 Neave Crescent,Supported Other Accommodation - Private Contractors Payment,1310.92,0.00,COMMERCIAL SUPPLIER ,,
 22-10-2021,Adults,Nightingale Residential Care Home Ltd,Residential Placements - Private Contractors Payment,1312.00,0.00,COMMERCIAL SUPPLIER ,,
 18-10-2021,Adults,Home Support Services (Havering & Essex) Ltd,Home Care - Private Contractors Payment,1316.40,0.00,COMMERCIAL SUPPLIER ,,
 11-10-2021,Adults,London Homecare Ltd,Home Care - Private Contractors Payment,1318.90,0.00,COMMERCIAL SUPPLIER ,,
 14-10-2021,Adults,Prestige Care & Support Ltd,Home Care - Private Contractors Payment,1320.44,0.00,COMMERCIAL SUPPLIER ,,
 26-10-2021,Adults,Homestead Care Service,Home Care - Private Contractors Payment,1322.30,0.00,COMMERCIAL SUPPLIER ,,
 14-10-2021,Adults,Prestige Care & Support Ltd,Home Care - Private Contractors Payment,1322.61,0.00,COMMERCIAL SUPPLIER ,,
 22-10-2021,Adults,Bettertogether Limited,Supported Other Accommodation - Private Contractors Payment,1324.14,0.00,NON COMMERCIAL SUPPLIER ,,
 22-10-2021,Adults,Bettertogether Limited,Supported Other Accommodation - Private Contractors Payment,1324.14,0.00,NON COMMERCIAL SUPPLIER ,,
 22-10-2021,Adults,Home Sweet Home Care Ltd,Home Care - Private Contractors Payment,1326.02,0.00,COMMERCIAL SUPPLIER ,,
 01-10-2021,Adults,Home Sweet Home Care Ltd,Home Care - Private Contractors Payment,1337.47,0.00,COMMERCIAL SUPPLIER ,,
 11-10-2021,Adults,Eastway Care Ltd_a,Daycare - Private Contractors Payment,1380.00,0.00,COMMERCIAL SUPPLIER ,,
 06-10-2021,Adults,Matrix SCM Ltd,Agency Staff,1385.28,0.00,COMMERCIAL SUPPLIER ,,
 13-10-2021,Adults,Matrix SCM Ltd,Agency Staff,1385.28,0.00,COMMERCIAL SUPPLIER ,,
 20-10-2021,Adults,Matrix SCM Ltd,Agency Staff,1385.28,0.00,COMMERCIAL SUPPLIER ,,
 27-10-2021,Adults,Matrix SCM Ltd,Agency Staff,1385.28,0.00,COMMERCIAL SUPPLIER ,,
 27-10-2021,Adults,Morepower Ltd t/a Aqs Homecare,Home Care - Private Contractors Payment,1390.41,0.00,COMMERCIAL SUPPLIER ,,
 14-10-2021,Adults,John Stanleys Care Agency Ltd,Home Care - Private Contractors Payment,1390.72,0.00,COMMERCIAL SUPPLIER ,,
 08-10-2021,Adults,Ranc Care Homes Ltd - Romford Care Centre,Other Short Term Support,1400.00,0.00,COMMERCIAL SUPPLIER ,,
 22-10-2021,Adults,May Residential Homes Ltd,Residential Placements - Private Contractors Payment,1405.71,0.00,COMMERCIAL SUPPLIER ,,
 22-10-2021,Adults,Langley House,Residential Placements - Private Contractors Payment,1405.71,0.00,COMMERCIAL SUPPLIER ,,
 22-10-2021,Adults,Parkside_a,Residential Placements - Private Contractors Payment,1405.71,0.00,COMMERCIAL SUPPLIER ,,
 22-10-2021,Adults,Blueboard Care Services Ltd,Supported Other Accommodation - Private Contractors Payment,1408.00,0.00,COMMERCIAL SUPPLIER ,,
 22-10-2021,Adults,The Cedars,Supported Other Accommodation - Private Contractors Payment,1408.80,0.00,COMMERCIAL SUPPLIER ,,
 27-10-2021,Adults,Matrix SCM Ltd,Agency Staff,1412.24,0.00,COMMERCIAL SUPPLIER ,,
 06-10-2021,Adults,Matrix SCM Ltd,Agency Staff,1421.25,0.00,COMMERCIAL SUPPLIER ,,
 11-10-2021,Adults,Osborne Partnership,Daycare - Private Contractors Payment,1440.00,0.00,COMMERCIAL SUPPLIER ,,
 21-10-2021,Adults,Allied Health Services Ltd,Home Care - Private Contractors Payment,1442.43,0.00,COMMERCIAL SUPPLIER ,,
 21-10-2021,Adults,Allied Health Services Ltd,Home Care - Private Contractors Payment,1442.74,0.00,COMMERCIAL SUPPLIER ,,
 13-10-2021,Adults,Matrix SCM Ltd,Agency Staff,1455.36,0.00,COMMERCIAL SUPPLIER ,,
 06-10-2021,Adults,Matrix SCM Ltd,Agency Staff,1457.28,0.00,COMMERCIAL SUPPLIER ,,
 13-10-2021,Adults,Matrix SCM Ltd,Agency Staff,1457.28,0.00,COMMERCIAL SUPPLIER ,,
 20-10-2021,Adults,Matrix SCM Ltd,Agency Staff,1457.28,0.00,COMMERCIAL SUPPLIER ,,
 27-10-2021,Adults,Matrix SCM Ltd,Agency Staff,1457.28,0.00,COMMERCIAL SUPPLIER ,,
 13-10-2021,Adults,Matrix SCM Ltd,Agency Staff,1457.68,0.00,COMMERCIAL SUPPLIER ,,
 13-10-2021,Adults,Matrix SCM Ltd,Agency Staff,1457.68,0.00,COMMERCIAL SUPPLIER ,,
 20-10-2021,Adults,Matrix SCM Ltd,Agency Staff,1457.68,0.00,COMMERCIAL SUPPLIER ,,
 27-10-2021,Adults,Matrix SCM Ltd,Agency Staff,1457.68,0.00,COMMERCIAL SUPPLIER ,,
 22-10-2021,Adults,The Cedars,Supported Other Accommodation - Private Contractors Payment,1458.08,0.00,COMMERCIAL SUPPLIER ,,
 22-10-2021,Adults,Bettertogether Limited,Supported Other Accommodation - Private Contractors Payment,1458.86,0.00,NON COMMERCIAL SUPPLIER ,,
 20-10-2021,Adults,Cera Care Operations Ltd,Home Care - Private Contractors Payment,1474.31,0.00,COMMERCIAL SUPPLIER ,,
 21-10-2021,Adults,Allied Health Services Ltd,Home Care - Private Contractors Payment,1476.79,0.00,COMMERCIAL SUPPLIER ,,
 12-10-2021,Adults,Premier Carewaiting Ltd,Home Care - Private Contractors Payment,1486.08,0.00,COMMERCIAL SUPPLIER ,,
 12-10-2021,Adults,Premier Carewaiting Ltd,Home Care - Private Contractors Payment,1486.08,0.00,COMMERCIAL SUPPLIER ,,
 22-10-2021,Adults,Outlook Care - 76 Neave Crescent,Supported Other Accommodation - Private Contractors Payment,1487.60,0.00,COMMERCIAL SUPPLIER ,,
 22-10-2021,Adults,Outlook Care - 76 Neave Crescent,Supported Other Accommodation - Private Contractors Payment,1487.60,0.00,COMMERCIAL SUPPLIER ,,
 22-10-2021,Adults,Outlook Care - 76 Neave Crescent,Supported Other Accommodation - Private Contractors Payment,1487.60,0.00,COMMERCIAL SUPPLIER ,,
 22-10-2021,Adults,Outlook Care - 76 Neave Crescent,Supported Other Accommodation - Private Contractors Payment,1487.60,0.00,COMMERCIAL SUPPLIER ,,
 22-10-2021,Adults,Outlook Care - 76 Neave Crescent,Supported Other Accommodation - Private Contractors Payment,1487.60,0.00,COMMERCIAL SUPPLIER ,,
 22-10-2021,Adults,Outlook Care - 76 Neave Crescent,Supported Other Accommodation - Private Contractors Payment,1487.60,0.00,COMMERCIAL SUPPLIER ,,
 22-10-2021,Adults,Outlook Care - 76 Neave Crescent,Supported Other Accommodation - Private Contractors Payment,1487.60,0.00,COMMERCIAL SUPPLIER ,,
 22-10-2021,Adults,Outlook Care - 76 Neave Crescent,Supported Other Accommodation - Private Contractors Payment,1487.60,0.00,COMMERCIAL SUPPLIER ,,
 22-10-2021,Adults,Outlook Care - 76 Neave Crescent,Supported Other Accommodation - Private Contractors Payment,1487.60,0.00,COMMERCIAL SUPPLIER ,,
 22-10-2021,Adults,Outlook Care - 76 Neave Crescent,Supported Other Accommodation - Private Contractors Payment,1487.60,0.00,COMMERCIAL SUPPLIER ,,
 22-10-2021,Adults,Outlook Care - 76 Neave Crescent,Supported Other Accommodation - Private Contractors Payment,1487.60,0.00,COMMERCIAL SUPPLIER ,,
 18-10-2021,Adults,Home Support Services (Havering & Essex) Ltd,Home Care - Private Contractors Payment,1490.10,0.00,COMMERCIAL SUPPLIER ,,
 08-10-2021,Adults,Care-Away Ltd T/A Care Support,Other Short Term Support,1496.80,0.00,COMMERCIAL SUPPLIER ,,
 01-10-2021,Adults,Ladyville Lodge_a,Other Short Term Support,1500.00,0.00,COMMERCIAL SUPPLIER ,,
 22-10-2021,Adults,Bondcare (London) Ltd ,Nursing Homes - Private Contractors Payment,1500.00,0.00,COMMERCIAL SUPPLIER ,,
 22-10-2021,Adults,Genesis Residential Homes Ltd - Dothan House,Respite Care - Private Contractors Payment,1501.71,0.00,COMMERCIAL SUPPLIER ,,
 22-10-2021,Adults,Bettertogether Limited,Supported Other Accommodation - Private Contractors Payment,1504.86,0.00,NON COMMERCIAL SUPPLIER ,,
 22-10-2021,Adults,Bettertogether Limited,Supported Other Accommodation - Private Contractors Payment,1504.86,0.00,NON COMMERCIAL SUPPLIER ,,
 22-10-2021,Adults,Bettertogether Limited,Supported Other Accommodation - Private Contractors Payment,1504.86,0.00,NON COMMERCIAL SUPPLIER ,,
 22-10-2021,Adults,Bettertogether Limited,Supported Other Accommodation - Private Contractors Payment,1504.86,0.00,NON COMMERCIAL SUPPLIER ,,
 22-10-2021,Adults,Bettertogether Limited,Supported Other Accommodation - Private Contractors Payment,1504.86,0.00,NON COMMERCIAL SUPPLIER ,,
 22-10-2021,Adults,Bettertogether Limited,Supported Other Accommodation - Private Contractors Payment,1504.86,0.00,NON COMMERCIAL SUPPLIER ,,
 22-10-2021,Adults,Acorn Village_a,Residential Placements - Private Contractors Payment,1512.00,0.00,COMMERCIAL SUPPLIER ,,
 11-10-2021,Adults,Care-Away Ltd T/A Care Support,Home Care - Private Contractors Payment,1514.24,0.00,COMMERCIAL SUPPLIER ,,
 22-10-2021,Adults,Outlook Care - 76 Neave Crescent,Supported Other Accommodation - Private Contractors Payment,1521.84,0.00,COMMERCIAL SUPPLIER ,,
 22-10-2021,Adults,Outlook Care - 76 Neave Crescent,Supported Other Accommodation - Private Contractors Payment,1521.84,0.00,COMMERCIAL SUPPLIER ,,
 22-10-2021,Adults,Outlook Care - 76 Neave Crescent,Supported Other Accommodation - Private Contractors Payment,1521.84,0.00,COMMERCIAL SUPPLIER ,,
 22-10-2021,Adults,Outlook Care - 76 Neave Crescent,Supported Other Accommodation - Private Contractors Payment,1521.84,0.00,COMMERCIAL SUPPLIER ,,
 27-10-2021,Adults,Morepower Ltd t/a Aqs Homecare,Home Care - Private Contractors Payment,1539.33,0.00,COMMERCIAL SUPPLIER ,,
 11-10-2021,Adults,Outreach Support Services Ltd,Home Care - Private Contractors Payment,1540.00,0.00,COMMERCIAL SUPPLIER ,,
 11-10-2021,Adults,Outreach Support Services Ltd,Home Care - Private Contractors Payment,1540.00,0.00,COMMERCIAL SUPPLIER ,,
 04-10-2021,Adults,Cera Care Operations Ltd,Home Care - Private Contractors Payment,1540.29,0.00,COMMERCIAL SUPPLIER ,,
 11-10-2021,Adults,Outreach Support Services Ltd,Home Care - Private Contractors Payment,1541.81,0.00,COMMERCIAL SUPPLIER ,,
 22-10-2021,Adults,The Riverside Group,Supported Other Accommodation - Private Contractors Payment,1544.24,0.00, ,,
 06-10-2021,Adults,Gims Care Solution Ltd_a,Home Care - Private Contractors Payment,1560.38,0.00,NON COMMERCIAL SUPPLIER ,,
 26-10-2021,Adults,De Vere Care Partnership Ltd,Home Care - Private Contractors Payment,1560.38,0.00,COMMERCIAL SUPPLIER ,,
 26-10-2021,Adults,De Vere Care Partnership Ltd,Home Care - Private Contractors Payment,1560.38,0.00,COMMERCIAL SUPPLIER ,,
 12-10-2021,Adults,Care-Away Ltd T/A Care Support,Home Care - Private Contractors Payment,1564.16,0.00,COMMERCIAL SUPPLIER ,,
 22-10-2021,Adults,Affinia Healthcare Ltd_a,Supported Other Accommodation - Private Contractors Payment,1572.16,0.00,COMMERCIAL SUPPLIER ,,
 21-10-2021,Adults,Allied Health Services Ltd,Home Care - Private Contractors Payment,1577.10,0.00,COMMERCIAL SUPPLIER ,,
 22-10-2021,Adults,Ashking House Ltd,Residential Placements - Private Contractors Payment,1577.40,0.00,COMMERCIAL SUPPLIER ,,
 11-10-2021,Adults,Outreach Support Services Ltd,Home Care - Private Contractors Payment,1578.96,0.00,COMMERCIAL SUPPLIER ,,
 21-10-2021,Adults,Allied Health Services Ltd,Home Care - Private Contractors Payment,1582.68,0.00,COMMERCIAL SUPPLIER ,,
 22-10-2021,Adults,GCH - Hillside Nursing Home,Nursing Homes - Private Contractors Payment,1584.00,0.00,COMMERCIAL SUPPLIER ,,
 22-10-2021,Adults,GCH - Hillside Nursing Home,Nursing Homes - Private Contractors Payment,1601.14,0.00,COMMERCIAL SUPPLIER ,,
 22-10-2021,Adults,2 Peel Way - Outlook Care,Supported Other Accommodation - Private Contractors Payment,1606.92,0.00,NON COMMERCIAL SUPPLIER ,,
 22-10-2021,Adults,Affinia Healthcare Ltd_a,Supported Other Accommodation - Private Contractors Payment,1623.04,0.00,COMMERCIAL SUPPLIER ,,
 20-10-2021,Adults,Matrix SCM Ltd,Agency Staff,1637.28,0.00,COMMERCIAL SUPPLIER ,,
 27-10-2021,Adults,Matrix SCM Ltd,Agency Staff,1637.28,0.00,COMMERCIAL SUPPLIER ,,
 22-10-2021,Adults,Outlook Care - 4 Peel Way,Supported Other Accommodation - Private Contractors Payment,1637.92,0.00,COMMERCIAL SUPPLIER ,,
 22-10-2021,Adults,2 Peel Way - Outlook Care,Supported Other Accommodation - Private Contractors Payment,1639.04,0.00,NON COMMERCIAL SUPPLIER ,,
 22-10-2021,Adults,Affinia Healthcare Ltd_a,Supported Other Accommodation - Private Contractors Payment,1648.84,0.00,COMMERCIAL SUPPLIER ,,
 22-10-2021,Adults,Affinia Healthcare Ltd_a,Supported Other Accommodation - Private Contractors Payment,1667.72,0.00,COMMERCIAL SUPPLIER ,,
 22-10-2021,Adults,Affinia Healthcare Ltd_a,Supported Other Accommodation - Private Contractors Payment,1667.72,0.00,COMMERCIAL SUPPLIER ,,
 22-10-2021,Adults,Affinia Healthcare Ltd_a,Supported Other Accommodation - Private Contractors Payment,1667.72,0.00,COMMERCIAL SUPPLIER ,,
 22-10-2021,Adults,Affinia Healthcare Ltd_a,Supported Other Accommodation - Private Contractors Payment,1669.04,0.00,COMMERCIAL SUPPLIER ,,
 22-10-2021,Adults,Coastal Supported Living CIC,Supported Other Accommodation - Private Contractors Payment,1669.44,0.00,COMMERCIAL SUPPLIER ,,
 14-10-2021,Adults,IJB Healthcare Ltd,Home Care - Private Contractors Payment,1671.84,0.00,COMMERCIAL SUPPLIER ,,
 27-10-2021,Adults,Morepower Ltd t/a Aqs Homecare,Home Care - Private Contractors Payment,1678.65,0.00,COMMERCIAL SUPPLIER ,,
 22-10-2021,Adults,Vibrance ,Residential Placements - Private Contractors Payment,1678.80,0.00,COMMERCIAL SUPPLIER ,,
 22-10-2021,Adults,Fresh Tree Care Services,Supported Other Accommodation - Private Contractors Payment,1680.00,0.00,COMMERCIAL SUPPLIER ,,
 22-10-2021,Adults,Ash Grove Residential Care Home,Respite Care - Private Contractors Payment,1686.86,0.00,COMMERCIAL SUPPLIER ,,
 22-10-2021,Adults,Bettertogether Limited,Supported Other Accommodation - Private Contractors Payment,1688.86,0.00,NON COMMERCIAL SUPPLIER ,,
 22-10-2021,Adults,Bettertogether Limited,Supported Other Accommodation - Private Contractors Payment,1688.86,0.00,NON COMMERCIAL SUPPLIER ,,
 22-10-2021,Adults,Bettertogether Limited,Supported Other Accommodation - Private Contractors Payment,1688.86,0.00,NON COMMERCIAL SUPPLIER ,,
 22-10-2021,Adults,Abbottswood Lodge,Residential Placements - Private Contractors Payment,1720.76,0.00,COMMERCIAL SUPPLIER ,,
 22-10-2021,Adults,GCH - Hillside Nursing Home,Nursing Homes - Private Contractors Payment,1728.57,0.00,COMMERCIAL SUPPLIER ,,
 12-10-2021,Adults,Care-Away Ltd T/A Care Support,Home Care - Private Contractors Payment,1730.56,0.00,COMMERCIAL SUPPLIER ,,
 22-10-2021,Adults,Affinia Healthcare Ltd_a,Supported Other Accommodation - Private Contractors Payment,1731.24,0.00,COMMERCIAL SUPPLIER ,,
 22-10-2021,Adults,Fresh Tree Care Services,Supported Other Accommodation - Private Contractors Payment,1764.00,0.00,COMMERCIAL SUPPLIER ,,
 22-10-2021,Adults,Lukka Care Homes Ltd - Ravenscourt,Nursing Care Income,1777.24,0.00,COMMERCIAL SUPPLIER ,,
 20-10-2021,Adults,Quality Healthcare Solutions Ltd t/a Kare Plus Romford,Home Care - Private Contractors Payment,1782.00,0.00,COMMERCIAL SUPPLIER ,,
 13-10-2021,Adults,Matrix SCM Ltd,Agency Staff,1796.90,0.00,COMMERCIAL SUPPLIER ,,
 20-10-2021,Adults,Matrix SCM Ltd,Agency Staff,1796.90,0.00,COMMERCIAL SUPPLIER ,,
 22-10-2021,Adults,Maison Moti Ltd,Supported Other Accommodation - Private Contractors Payment,1800.00,0.00,COMMERCIAL SUPPLIER ,,
 13-10-2021,Adults,Care-Away Ltd T/A Care Support,Home Care - Private Contractors Payment,1801.28,0.00,COMMERCIAL SUPPLIER ,,
 22-10-2021,Adults,One Tree Estates Ltd t/a Ashbrook Nursing Home,Nursing Homes - Private Contractors Payment,1806.00,0.00,COMMERCIAL SUPPLIER ,,
 22-10-2021,Adults,One Tree Estates Ltd t/a Ashbrook Nursing Home,Nursing Homes - Private Contractors Payment,1806.00,0.00,COMMERCIAL SUPPLIER ,,
 22-10-2021,Adults,One Tree Estates Ltd t/a Ashbrook Nursing Home,Nursing Homes - Private Contractors Payment,1806.00,0.00,COMMERCIAL SUPPLIER ,,
 22-10-2021,Adults,One Tree Estates Ltd t/a Ashbrook Nursing Home,Nursing Homes - Private Contractors Payment,1806.00,0.00,COMMERCIAL SUPPLIER ,,
 22-10-2021,Adults,One Tree Estates Ltd t/a Ashbrook Nursing Home,Nursing Homes - Private Contractors Payment,1806.00,0.00,COMMERCIAL SUPPLIER ,,
 22-10-2021,Adults,One Tree Estates Ltd t/a Ashbrook Nursing Home,Nursing Homes - Private Contractors Payment,1806.00,0.00,COMMERCIAL SUPPLIER ,,
 22-10-2021,Adults,One Tree Estates Ltd t/a Ashbrook Nursing Home,Nursing Homes - Private Contractors Payment,1806.00,0.00,COMMERCIAL SUPPLIER ,,
 22-10-2021,Adults,One Tree Estates Ltd t/a Ashbrook Nursing Home,Nursing Homes - Private Contractors Payment,1806.00,0.00,COMMERCIAL SUPPLIER ,,
 22-10-2021,Adults,One Tree Estates Ltd t/a Ashbrook Nursing Home,Nursing Homes - Private Contractors Payment,1806.00,0.00,COMMERCIAL SUPPLIER ,,
 22-10-2021,Adults,Affinia Healthcare Ltd_a,Supported Other Accommodation - Private Contractors Payment,1810.52,0.00,COMMERCIAL SUPPLIER ,,
 22-10-2021,Adults,TFT Consultancy Limited,Home Care - Private Contractors Payment,1814.40,0.00,NON COMMERCIAL SUPPLIER ,,
 11-10-2021,Adults,Outreach Support Services Ltd,Home Care - Private Contractors Payment,1820.45,0.00,COMMERCIAL SUPPLIER ,,
 13-10-2021,Adults,Care-Away Ltd T/A Care Support,Home Care - Private Contractors Payment,1822.08,0.00,COMMERCIAL SUPPLIER ,,
 22-10-2021,Adults,Bettertogether Limited,Supported Other Accommodation - Private Contractors Payment,1836.71,0.00,NON COMMERCIAL SUPPLIER ,,
 12-10-2021,Adults,Care-Away Ltd T/A Care Support,Home Care - Private Contractors Payment,1863.68,0.00,COMMERCIAL SUPPLIER ,,
 22-10-2021,Adults,One Tree Estates Ltd t/a Ashbrook Nursing Home,Nursing Homes - Private Contractors Payment,1870.50,0.00,COMMERCIAL SUPPLIER ,,
 22-10-2021,Adults,Ebury Court_a,Residential Placements - Private Contractors Payment,1874.29,0.00,COMMERCIAL SUPPLIER ,,
 11-10-2021,Adults,Outreach Support Services Ltd,Home Care - Private Contractors Payment,1876.18,0.00,COMMERCIAL SUPPLIER ,,
 11-10-2021,Adults,Outreach Support Services Ltd,Home Care - Private Contractors Payment,1876.18,0.00,COMMERCIAL SUPPLIER ,,
 11-10-2021,Adults,Outreach Support Services Ltd,Home Care - Private Contractors Payment,1876.18,0.00,COMMERCIAL SUPPLIER ,,
 11-10-2021,Adults,Outreach Support Services Ltd,Home Care - Private Contractors Payment,1876.18,0.00,COMMERCIAL SUPPLIER ,,
 22-10-2021,Adults,One Tree Estates Ltd t/a Ashbrook Nursing Home,Nursing Homes - Private Contractors Payment,1890.00,0.00,COMMERCIAL SUPPLIER ,,
 22-10-2021,Adults,Endsleigh Care Ltd,Residential Placements - Private Contractors Payment,1893.52,0.00,COMMERCIAL SUPPLIER ,,
 22-10-2021,Adults,DMP Healthcare (Heatherbrook) Ltd,Nursing Homes - Private Contractors Payment,1920.00,0.00,NON COMMERCIAL SUPPLIER ,,
 22-10-2021,Adults,Adjuvo Care Essex Ltd ,Supported Other Accommodation - Private Contractors Payment,1936.88,0.00,COMMERCIAL SUPPLIER ,,
 22-10-2021,Adults,Affinia Healthcare Ltd_a,Supported Other Accommodation - Private Contractors Payment,1955.88,0.00,COMMERCIAL SUPPLIER ,,
 22-10-2021,Adults,The Avenues Trust Support Services Glebe House,Nursing Homes - Private Contractors Payment,1958.67,0.00,COMMERCIAL SUPPLIER ,,
 01-10-2021,Adults,Marlow,Residential Placements - Private Contractors Payment,1969.24,0.00,COMMERCIAL SUPPLIER ,,
 04-10-2021,Adults,All Therapy Solutions Ltd,Occupational Health,1980.00,0.00,COMMERCIAL SUPPLIER ,,
 26-10-2021,Adults,All Therapy Solutions Ltd,Occupational Health,1980.00,0.00,COMMERCIAL SUPPLIER ,,
 10-10-2021,Adults,Hospiva Care & Associates Agency Ltd_a,Home Care - Private Contractors Payment,1982.99,0.00,COMMERCIAL SUPPLIER ,,
 10-10-2021,Adults,Hospiva Care & Associates Agency Ltd_a,Home Care - Private Contractors Payment,1982.99,0.00,COMMERCIAL SUPPLIER ,,
 05-10-2021,Adults,Coastal Supported Living CIC,Supported Other Accommodation - Private Contractors Payment,1994.85,0.00,COMMERCIAL SUPPLIER ,,
 22-10-2021,Adults,GCH - Hillside Nursing Home,Nursing Homes - Private Contractors Payment,2001.43,0.00,COMMERCIAL SUPPLIER ,,
 22-10-2021,Adults,Outreach Support Services Ltd,Supported Other Accommodation - Private Contractors Payment,2020.00,0.00,COMMERCIAL SUPPLIER ,,
 22-10-2021,Adults,Crowstone Care Home Ltd - The Grange,Residential Placements - Private Contractors Payment,2027.76,0.00,COMMERCIAL SUPPLIER ,,
 11-10-2021,Adults,Bluebird Care Havering,Home Care - Private Contractors Payment,2028.78,0.00,COMMERCIAL SUPPLIER ,,
 25-10-2021,Adults,Bluebird Care Havering,Home Care - Private Contractors Payment,2028.78,0.00,COMMERCIAL SUPPLIER ,,
 22-10-2021,Adults,Brandon House,Residential Placements - Private Contractors Payment,2034.76,0.00,COMMERCIAL SUPPLIER ,,
 05-10-2021,Adults,Trinity London Care Ltd,Daycare - Private Contractors Payment,2050.00,0.00,COMMERCIAL SUPPLIER ,,
 05-10-2021,Adults,Trinity London Care Ltd,Daycare - Private Contractors Payment,2050.00,0.00,COMMERCIAL SUPPLIER ,,
 05-10-2021,Adults,Trinity London Care Ltd,Daycare - Private Contractors Payment,2050.00,0.00,COMMERCIAL SUPPLIER ,,
 29-10-2021,Adults,Trinity London Care Ltd,Daycare - Private Contractors Payment,2050.00,0.00,COMMERCIAL SUPPLIER ,,
 29-10-2021,Adults,Trinity London Care Ltd,Daycare - Private Contractors Payment,2050.00,0.00,COMMERCIAL SUPPLIER ,,
 29-10-2021,Adults,Trinity London Care Ltd,Daycare - Private Contractors Payment,2050.00,0.00,COMMERCIAL SUPPLIER ,,
 22-10-2021,Adults,Ladyville Lodge_a,Residential Placements - Private Contractors Payment,2057.14,0.00,COMMERCIAL SUPPLIER ,,
 22-10-2021,Adults,Ebony Health Care Services Limited,Supported Other Accommodation - Private Contractors Payment,2057.14,0.00,COMMERCIAL SUPPLIER ,,
 22-10-2021,Adults,Runwood Homes Plc - Woodbury Court,Residential Placements - Private Contractors Payment,2080.00,0.00,COMMERCIAL SUPPLIER ,,
 06-10-2021,Adults,Gims Care Solution Ltd_a,Home Care - Private Contractors Payment,2080.51,0.00,NON COMMERCIAL SUPPLIER ,,
 11-10-2021,Adults,Outreach Support Services Ltd,Home Care - Private Contractors Payment,2080.51,0.00,COMMERCIAL SUPPLIER ,,
 11-10-2021,Adults,Outreach Support Services Ltd,Home Care - Private Contractors Payment,2080.51,0.00,COMMERCIAL SUPPLIER ,,
 12-10-2021,Adults,KJD Care Limited,Home Care - Private Contractors Payment,2080.51,0.00,INDIVIDUALS ,,
 01-10-2021,Adults,Home Sweet Home Care Ltd,Home Care - Private Contractors Payment,2087.63,0.00,COMMERCIAL SUPPLIER ,,
 18-10-2021,Adults,London Borough of Barking & Dagenham_a,Daycare - Private Contractors Payment,2100.00,0.00,LOCAL AUTHORITY SERVICES ,,
 18-10-2021,Adults,London Borough of Barking & Dagenham_a,Daycare - Private Contractors Payment,2100.00,0.00,LOCAL AUTHORITY SERVICES ,,
 18-10-2021,Adults,London Borough of Barking & Dagenham_a,Daycare - Private Contractors Payment,2100.00,0.00,LOCAL AUTHORITY SERVICES ,,
 22-10-2021,Adults,HC-One Oval Ltd - The Hornchurch Nursing Centre,Nursing Homes - Private Contractors Payment,2134.86,0.00,COMMERCIAL SUPPLIER ,,
 22-10-2021,Adults,The Avenues Trust Support Services Glebe House,Nursing Homes - Private Contractors Payment,2142.44,0.00,COMMERCIAL SUPPLIER ,,
 22-10-2021,Adults,Outlook Care_a,Supported Other Accommodation - Private Contractors Payment,2146.12,0.00,COMMERCIAL SUPPLIER ,,
 11-10-2021,Adults,London Homecare Ltd,Home Care - Private Contractors Payment,2154.82,0.00,COMMERCIAL SUPPLIER ,,
 22-10-2021,Adults,Faris Lodge,Supported Other Accommodation - Private Contractors Payment,2159.72,0.00,COMMERCIAL SUPPLIER ,,
 22-10-2021,Adults,Home Sweet Home Care Ltd,Home Care - Private Contractors Payment,2163.79,0.00,COMMERCIAL SUPPLIER ,,
 22-10-2021,Adults,The Maltings Care Home,Residential Placements - Private Contractors Payment,2195.76,0.00,COMMERCIAL SUPPLIER ,,
 22-10-2021,Adults,2 Peel Way - Outlook Care,Supported Other Accommodation - Private Contractors Payment,2233.28,0.00,NON COMMERCIAL SUPPLIER ,,
 22-10-2021,Adults,Gable Court Nursing Home Ltd,Residential Placements - Private Contractors Payment,2239.16,0.00,COMMERCIAL SUPPLIER ,,
 22-10-2021,Adults,Park Riding,Residential Placements - Private Contractors Payment,2239.16,0.00,COMMERCIAL SUPPLIER ,,
 22-10-2021,Adults,Priory Supporting Care Ltd,Residential Placements - Private Contractors Payment,2249.14,0.00,COMMERCIAL SUPPLIER ,,
 22-10-2021,Adults,Livability - John Grooms Court,Residential Placements - Private Contractors Payment,2254.92,0.00,COMMERCIAL SUPPLIER ,,
 22-10-2021,Adults,Livability - John Grooms Court,Residential Placements - Private Contractors Payment,2254.92,0.00,COMMERCIAL SUPPLIER ,,
 22-10-2021,Adults,Fountains Care Centre - Bondcare,Residential Placements - Private Contractors Payment,2257.80,0.00,COMMERCIAL SUPPLIER ,,
 22-10-2021,Adults,Bupa Care Homes - Hutton Village,Nursing Homes - Private Contractors Payment,2265.88,0.00,COMMERCIAL SUPPLIER ,,
 22-10-2021,Adults,Havering Care Homes Ltd t/a Abbscross Nursing Home,Nursing Homes - Private Contractors Payment,2298.86,0.00,COMMERCIAL SUPPLIER ,,
 22-10-2021,Adults,DMP Healthcare (Heatherbrook) Ltd,Respite Care - Private Contractors Payment,2298.86,0.00,NON COMMERCIAL SUPPLIER ,,
 22-10-2021,Adults,Ebony Health Care Services Limited,Supported Other Accommodation - Private Contractors Payment,2302.56,0.00,COMMERCIAL SUPPLIER ,,
 11-10-2021,Adults,Outreach Support Services Ltd,Home Care - Private Contractors Payment,2322.00,0.00,COMMERCIAL SUPPLIER ,,
 13-10-2021,Adults,Care-Away Ltd T/A Care Support,Home Care - Private Contractors Payment,2329.60,0.00,COMMERCIAL SUPPLIER ,,
 22-10-2021,Adults,Highfield Care Homes Ltd t/a Romford Grange Care Home,Nursing Homes - Private Contractors Payment,2332.00,0.00,COMMERCIAL SUPPLIER ,,
 22-10-2021,Adults,Fountains Care Centre - Bondcare,Residential Placements - Private Contractors Payment,2336.00,0.00,COMMERCIAL SUPPLIER ,,
 22-10-2021,Adults,Fountains Care Centre - Bondcare,Residential Placements - Private Contractors Payment,2336.00,0.00,COMMERCIAL SUPPLIER ,,
 22-10-2021,Adults,Fountains Care Centre - Bondcare,Residential Placements - Private Contractors Payment,2336.00,0.00,COMMERCIAL SUPPLIER ,,
 22-10-2021,Adults,Fountains Care Centre - Bondcare,Residential Placements - Private Contractors Payment,2336.00,0.00,COMMERCIAL SUPPLIER ,,
 22-10-2021,Adults,Highfield Care Homes Ltd t/a Romford Grange Care Home,Residential Placements - Private Contractors Payment,2336.00,0.00,COMMERCIAL SUPPLIER ,,
 22-10-2021,Adults,Highfield Care Homes Ltd t/a Romford Grange Care Home,Residential Placements - Private Contractors Payment,2336.00,0.00,COMMERCIAL SUPPLIER ,,
 22-10-2021,Adults,HC-One Oval Ltd - The Hornchurch Nursing Centre,Residential Placements - Private Contractors Payment,2336.00,0.00,COMMERCIAL SUPPLIER ,,
 22-10-2021,Adults,Beechcourt Care Centre - Bondcare,Residential Placements - Private Contractors Payment,2336.00,0.00,COMMERCIAL SUPPLIER ,,
 22-10-2021,Adults,Oakley Carehomes Ltd t/a Abbey Care Home,Residential Placements - Private Contractors Payment,2336.00,0.00,COMMERCIAL SUPPLIER ,,
 22-10-2021,Adults,Masumin Ltd t/s Abbeleigh House,Residential Placements - Private Contractors Payment,2336.00,0.00,COMMERCIAL SUPPLIER ,,
 22-10-2021,Adults,Clover Cottage Ltd,Residential Placements - Private Contractors Payment,2336.00,0.00,COMMERCIAL SUPPLIER ,,
 22-10-2021,Adults,Clover Cottage Ltd,Residential Placements - Private Contractors Payment,2336.00,0.00,COMMERCIAL SUPPLIER ,,
 22-10-2021,Adults,Clover Cottage Ltd,Residential Placements - Private Contractors Payment,2336.00,0.00,COMMERCIAL SUPPLIER ,,
 22-10-2021,Adults,Clover Cottage Ltd,Residential Placements - Private Contractors Payment,2336.00,0.00,COMMERCIAL SUPPLIER ,,
 22-10-2021,Adults,Clover Cottage Ltd,Residential Placements - Private Contractors Payment,2336.00,0.00,COMMERCIAL SUPPLIER ,,
 22-10-2021,Adults,Ebury Court_a,Nursing Homes - Private Contractors Payment,2336.00,0.00,COMMERCIAL SUPPLIER ,,
 22-10-2021,Adults,Ebury Court_a,Residential Placements - Private Contractors Payment,2336.00,0.00,COMMERCIAL SUPPLIER ,,
 22-10-2021,Adults,Langley House,Residential Placements - Private Contractors Payment,2336.00,0.00,COMMERCIAL SUPPLIER ,,
 22-10-2021,Adults,Langley House,Residential Placements - Private Contractors Payment,2336.00,0.00,COMMERCIAL SUPPLIER ,,
 22-10-2021,Adults,Langley House,Residential Placements - Private Contractors Payment,2336.00,0.00,COMMERCIAL SUPPLIER ,,
 22-10-2021,Adults,Oaks Residential Home,Residential Placements - Private Contractors Payment,2336.00,0.00,COMMERCIAL SUPPLIER ,,
 22-10-2021,Adults,Oaks Residential Home,Residential Placements - Private Contractors Payment,2336.00,0.00,COMMERCIAL SUPPLIER ,,
 22-10-2021,Adults,Priory Supporting Care Ltd,Residential Placements - Private Contractors Payment,2336.00,0.00,COMMERCIAL SUPPLIER ,,
 22-10-2021,Adults,Ash Grove Residential Care Home,Residential Placements - Private Contractors Payment,2336.00,0.00,COMMERCIAL SUPPLIER ,,
 22-10-2021,Adults,Ash Grove Residential Care Home,Residential Placements - Private Contractors Payment,2336.00,0.00,COMMERCIAL SUPPLIER ,,
 22-10-2021,Adults,Ash Grove Residential Care Home,Residential Placements - Private Contractors Payment,2336.00,0.00,COMMERCIAL SUPPLIER ,,
 22-10-2021,Adults,Ash Grove Residential Care Home,Residential Placements - Private Contractors Payment,2336.00,0.00,COMMERCIAL SUPPLIER ,,
 22-10-2021,Adults,Ash Grove Residential Care Home,Residential Placements - Private Contractors Payment,2336.00,0.00,COMMERCIAL SUPPLIER ,,
 22-10-2021,Adults,GCH - Hillside Nursing Home,Residential Placements - Private Contractors Payment,2336.00,0.00,COMMERCIAL SUPPLIER ,,
 22-10-2021,Adults,Genesis Residential Homes Ltd - Dothan House,Residential Placements - Private Contractors Payment,2336.00,0.00,COMMERCIAL SUPPLIER ,,
 22-10-2021,Adults,Barleycroft Care Home Ltd,Residential Placements - Private Contractors Payment,2336.00,0.00,COMMERCIAL SUPPLIER ,,
 22-10-2021,Adults,Barleycroft Care Home Ltd,Residential Placements - Private Contractors Payment,2336.00,0.00,COMMERCIAL SUPPLIER ,,
 11-10-2021,Adults,All Therapy Solutions Ltd,Occupational Health,2340.00,0.00,COMMERCIAL SUPPLIER ,,
 22-10-2021,Adults,Adjuvo Care and Support Ltd,Supported Other Accommodation - Private Contractors Payment,2346.36,0.00,COMMERCIAL SUPPLIER ,,
 22-10-2021,Adults,St Mary's House,Residential Placements - Private Contractors Payment,2368.08,0.00,COMMERCIAL SUPPLIER ,,
 22-10-2021,Adults,Priory Supporting Care Ltd,Residential Placements - Private Contractors Payment,2378.40,0.00,COMMERCIAL SUPPLIER ,,
 22-10-2021,Adults,Havering Care Homes Ltd t/a Abbscross Nursing Home,Nursing Homes - Private Contractors Payment,2384.00,0.00,COMMERCIAL SUPPLIER ,,
 22-10-2021,Adults,Havering Care Homes Ltd t/a Abbscross Nursing Home,Nursing Homes - Private Contractors Payment,2384.00,0.00,COMMERCIAL SUPPLIER ,,
 22-10-2021,Adults,Havering Care Homes Ltd t/a Abbscross Nursing Home,Nursing Homes - Private Contractors Payment,2384.00,0.00,COMMERCIAL SUPPLIER ,,
 22-10-2021,Adults,One Tree Estates Ltd t/a Ashbrook Nursing Home,Nursing Homes - Private Contractors Payment,2384.00,0.00,COMMERCIAL SUPPLIER ,,
 22-10-2021,Adults,One Tree Estates Ltd t/a Ashbrook Nursing Home,Nursing Homes - Private Contractors Payment,2384.00,0.00,COMMERCIAL SUPPLIER ,,
 22-10-2021,Adults,Highfield Care Homes Ltd t/a Romford Grange Care Home,Residential Placements - Private Contractors Payment,2384.00,0.00,COMMERCIAL SUPPLIER ,,
 22-10-2021,Adults,Highfield Care Homes Ltd t/a Romford Grange Care Home,Nursing Homes - Private Contractors Payment,2384.00,0.00,COMMERCIAL SUPPLIER ,,
 22-10-2021,Adults,Highfield Care Homes Ltd t/a Romford Grange Care Home,Nursing Homes - Private Contractors Payment,2384.00,0.00,COMMERCIAL SUPPLIER ,,
 22-10-2021,Adults,MNS Care Plc_a,Nursing Homes - Private Contractors Payment,2384.00,0.00,COMMERCIAL SUPPLIER ,,
 22-10-2021,Adults,MNS Care Plc_a,Nursing Homes - Private Contractors Payment,2384.00,0.00,COMMERCIAL SUPPLIER ,,
 22-10-2021,Adults,Havering Care Homes Ltd t/a Upminster Nursing Home,Nursing Homes - Private Contractors Payment,2384.00,0.00,COMMERCIAL SUPPLIER ,,
 22-10-2021,Adults,Havering Care Homes Ltd t/a Upminster Nursing Home,Nursing Homes - Private Contractors Payment,2384.00,0.00,COMMERCIAL SUPPLIER ,,
 22-10-2021,Adults,Havering Care Homes Ltd t/a Upminster Nursing Home,Nursing Homes - Private Contractors Payment,2384.00,0.00,COMMERCIAL SUPPLIER ,,
 22-10-2021,Adults,Havering Care Homes Ltd t/a Upminster Nursing Home,Nursing Homes - Private Contractors Payment,2384.00,0.00,COMMERCIAL SUPPLIER ,,
 22-10-2021,Adults,Lukka Care Homes Ltd - Ravenscourt,Nursing Homes - Private Contractors Payment,2384.00,0.00,COMMERCIAL SUPPLIER ,,
 22-10-2021,Adults,HC-One Oval Ltd - The Hornchurch Nursing Centre,Nursing Homes - Private Contractors Payment,2384.00,0.00,COMMERCIAL SUPPLIER ,,
 22-10-2021,Adults,HC-One Oval Ltd - The Hornchurch Nursing Centre,Nursing Homes - Private Contractors Payment,2384.00,0.00,COMMERCIAL SUPPLIER ,,
 22-10-2021,Adults,HC-One Oval Ltd - The Hornchurch Nursing Centre,Nursing Homes - Private Contractors Payment,2384.00,0.00,COMMERCIAL SUPPLIER ,,
 22-10-2021,Adults,HC-One Oval Ltd - The Hornchurch Nursing Centre,Nursing Homes - Private Contractors Payment,2384.00,0.00,COMMERCIAL SUPPLIER ,,
 22-10-2021,Adults,HC-One Oval Ltd - The Hornchurch Nursing Centre,Nursing Homes - Private Contractors Payment,2384.00,0.00,COMMERCIAL SUPPLIER ,,
 22-10-2021,Adults,Beechcourt Care Centre - Bondcare,Nursing Homes - Private Contractors Payment,2384.00,0.00,COMMERCIAL SUPPLIER ,,
 22-10-2021,Adults,Beechcourt Care Centre - Bondcare,Nursing Homes - Private Contractors Payment,2384.00,0.00,COMMERCIAL SUPPLIER ,,
 22-10-2021,Adults,Beechcourt Care Centre - Bondcare,Nursing Homes - Private Contractors Payment,2384.00,0.00,COMMERCIAL SUPPLIER ,,
 22-10-2021,Adults,Beechcourt Care Centre - Bondcare,Nursing Homes - Private Contractors Payment,2384.00,0.00,COMMERCIAL SUPPLIER ,,
 22-10-2021,Adults,Beechcourt Care Centre - Bondcare,Nursing Homes - Private Contractors Payment,2384.00,0.00,COMMERCIAL SUPPLIER ,,
 22-10-2021,Adults,Beechcourt Care Centre - Bondcare,Nursing Homes - Private Contractors Payment,2384.00,0.00,COMMERCIAL SUPPLIER ,,
 22-10-2021,Adults,Beechcourt Care Centre - Bondcare,Nursing Homes - Private Contractors Payment,2384.00,0.00,COMMERCIAL SUPPLIER ,,
 22-10-2021,Adults,DMP Healthcare (Heatherbrook) Ltd,Respite Care - Private Contractors Payment,2384.00,0.00,NON COMMERCIAL SUPPLIER ,,
 22-10-2021,Adults,DMP Healthcare (Heatherbrook) Ltd,Nursing Homes - Private Contractors Payment,2384.00,0.00,NON COMMERCIAL SUPPLIER ,,
 22-10-2021,Adults,DMP Healthcare (Heatherbrook) Ltd,Nursing Homes - Private Contractors Payment,2384.00,0.00,NON COMMERCIAL SUPPLIER ,,
 22-10-2021,Adults,Ladyville Lodge_a,Nursing Homes - Private Contractors Payment,2384.00,0.00,COMMERCIAL SUPPLIER ,,
 22-10-2021,Adults,Ladyville Lodge_a,Nursing Homes - Private Contractors Payment,2384.00,0.00,COMMERCIAL SUPPLIER ,,
 22-10-2021,Adults,Barleycroft Care Home Ltd,Nursing Homes - Private Contractors Payment,2384.00,0.00,COMMERCIAL SUPPLIER ,,
 22-10-2021,Adults,Barleycroft Care Home Ltd,Nursing Homes - Private Contractors Payment,2384.00,0.00,COMMERCIAL SUPPLIER ,,
 22-10-2021,Adults,Ranc Care Homes Ltd - Romford Care Centre,Nursing Homes - Private Contractors Payment,2384.00,0.00,COMMERCIAL SUPPLIER ,,
 22-10-2021,Adults,Willows Care Home - Churchgate Healthcare (Willows) Ltd,Nursing Homes - Private Contractors Payment,2384.00,0.00,COMMERCIAL SUPPLIER ,,
 22-10-2021,Adults,Gable Court Nursing Home Ltd,Nursing Homes - Private Contractors Payment,2392.92,0.00,COMMERCIAL SUPPLIER ,,
 22-10-2021,Adults,Black Swan International Ltd - Drummonds,Residential Placements - Private Contractors Payment,2408.60,0.00,COMMERCIAL SUPPLIER ,,
 22-10-2021,Adults,Black Swan International Ltd - Drummonds,Residential Placements - Private Contractors Payment,2408.60,0.00,COMMERCIAL SUPPLIER ,,
 22-10-2021,Adults,Barchester Healthcare Ltd - Park View Care Home,Residential Placements - Private Contractors Payment,2413.72,0.00,COMMERCIAL SUPPLIER ,,
 22-10-2021,Adults,Alexander Court Care Centre - Bondcare,Residential Placements - Private Contractors Payment,2413.72,0.00,COMMERCIAL SUPPLIER ,,
 22-10-2021,Adults,Ranc Care Homes Ltd - Romford Care Centre,Nursing Homes - Private Contractors Payment,2414.29,0.00,COMMERCIAL SUPPLIER ,,
 22-10-2021,Adults,Barchester Healthcare Ltd - Park View Care Home,Nursing Homes - Private Contractors Payment,2430.00,0.00,COMMERCIAL SUPPLIER ,,
 26-10-2021,Adults,Homestead Care Service,Home Care - Private Contractors Payment,2434.38,0.00,COMMERCIAL SUPPLIER ,,
 22-10-2021,Adults,HC-One Oval Ltd - Chaseview,Nursing Homes - Private Contractors Payment,2455.36,0.00,COMMERCIAL SUPPLIER ,,
 22-10-2021,Adults,Alexander Court Care Centre - Bondcare,Nursing Homes - Private Contractors Payment,2455.36,0.00,COMMERCIAL SUPPLIER ,,
 22-10-2021,Adults,Acer Healthcare Operation Ltd,Nursing Homes - Private Contractors Payment,2455.36,0.00,COMMERCIAL SUPPLIER ,,
 22-10-2021,Adults,One Tree Estates Ltd t/a Ashbrook Nursing Home,Nursing Homes - Private Contractors Payment,2460.00,0.00,COMMERCIAL SUPPLIER ,,
 22-10-2021,Adults,Westminster Health Care Ltd Derham House,Nursing Homes - Private Contractors Payment,2460.00,0.00,COMMERCIAL SUPPLIER ,,
 22-10-2021,Adults,Barleycroft Care Home Ltd,Nursing Homes - Private Contractors Payment,2460.00,0.00,COMMERCIAL SUPPLIER ,,
 22-10-2021,Adults,Barleycroft Care Home Ltd,Nursing Homes - Private Contractors Payment,2460.00,0.00,COMMERCIAL SUPPLIER ,,
 22-10-2021,Adults,Ladyville Lodge_a,Nursing Homes - Private Contractors Payment,2464.32,0.00,COMMERCIAL SUPPLIER ,,
 22-10-2021,Adults,Manor Lodge Care Home,Residential Placements - Private Contractors Payment,2465.92,0.00,COMMERCIAL SUPPLIER ,,
 22-10-2021,Adults,Westminster Health Care Ltd Derham House,Nursing Homes - Private Contractors Payment,2468.57,0.00,COMMERCIAL SUPPLIER ,,
 22-10-2021,Adults,Runwood Homes - Windle Court,Residential Placements - Private Contractors Payment,2480.04,0.00,COMMERCIAL SUPPLIER ,,
 22-10-2021,Adults,Mundy House,Residential Placements - Private Contractors Payment,2496.96,0.00,COMMERCIAL SUPPLIER ,,
 22-10-2021,Adults,Priory Supporting Care Ltd,Residential Placements - Private Contractors Payment,2496.96,0.00,COMMERCIAL SUPPLIER ,,
 22-10-2021,Adults,Ebony Health Care Services Limited,Supported Other Accommodation - Private Contractors Payment,2496.96,0.00,COMMERCIAL SUPPLIER ,,
 11-10-2021,Adults,Tapestry_a.,Payments To Voluntary Sector,2500.00,0.00,COMMERCIAL SUPPLIER ,,
 22-10-2021,Adults,North Court Care Home,Residential Placements - Private Contractors Payment,2513.72,0.00,COMMERCIAL SUPPLIER ,,
 22-10-2021,Adults,St Georges Supported Living Ltd,Supported Other Accommodation - Private Contractors Payment,2514.60,0.00,COMMERCIAL SUPPLIER ,,
 22-10-2021,Adults,Croftwood Care UK Ltd,Residential Placements - Private Contractors Payment,2516.16,0.00,COMMERCIAL SUPPLIER ,,
 22-10-2021,Adults,Beechcourt Care Centre - Bondcare,Residential Placements - Private Contractors Payment,2524.00,0.00,COMMERCIAL SUPPLIER ,,
 22-10-2021,Adults,May Residential Homes Ltd,Residential Placements - Private Contractors Payment,2524.00,0.00,COMMERCIAL SUPPLIER ,,
 22-10-2021,Adults,Ebony Health Care Services Limited,Supported Other Accommodation - Private Contractors Payment,2529.00,0.00,COMMERCIAL SUPPLIER ,,
 22-10-2021,Adults,Runwood Homes Ltd - Kathryn Court,Residential Placements - Private Contractors Payment,2531.76,0.00,COMMERCIAL SUPPLIER ,,
 22-10-2021,Adults,Black Swan International Ltd - Belamacanda,Residential Placements - Private Contractors Payment,2533.16,0.00,COMMERCIAL SUPPLIER ,,
 22-10-2021,Adults,St Georges Supported Living Ltd,Supported Other Accommodation - Private Contractors Payment,2553.56,0.00,COMMERCIAL SUPPLIER ,,
